Department Family,Entity,Date,Expense Type,Expense Area,Supplier,Transaction Number,Amount,Vat No
Department of Health,CT Revenue Funds,02/07/2015,Absorbents Non X Ray Detectable,Oswestry Minor Injuries Unit,NHS SUPPLY CHAIN,1016053559,-0.02,654 4347 29
Department of Health,CT Revenue Funds,02/07/2015,Absorbents Non X Ray Detectable,Shrewsbury and Atcham North Interdisciplinary Teams,NHS SUPPLY CHAIN,1016053559,-0.01,654 4347 29
Department of Health,CT Revenue Funds,02/07/2015,Absorbents Non X Ray Detectable,Community Childrens Nurses,NHS SUPPLY CHAIN,1016053559,-0.01,654 4347 29
Department of Health,CT Revenue Funds,02/07/2015,Absorbents Non X Ray Detectable,Community Nursing Team 4,NHS SUPPLY CHAIN,1016053559,-0.01,654 4347 29
Department of Health,CT Revenue Funds,02/07/2015,Absorbents Non X Ray Detectable,Tissue Viability Nurses (T&W),NHS SUPPLY CHAIN,1016053559,-0.01,654 4347 29
Department of Health,CT Revenue Funds,02/07/2015,Absorbents Non X Ray Detectable,South West Interdisciplinary Teams,NHS SUPPLY CHAIN,1016053559,0.01,654 4347 29
Department of Health,CT Revenue Funds,02/07/2015,Absorbents Non X Ray Detectable,Single Point of Referral,NHS SUPPLY CHAIN,1016053559,0.02,654 4347 29
Department of Health,CT Revenue Funds,02/07/2015,Absorbents Non X Ray Detectable,Shrewsbury and Atcham DAART,NHS SUPPLY CHAIN,1016053559,0.31,654 4347 29
Department of Health,CT Revenue Funds,02/07/2015,Absorbents Non X Ray Detectable,Bishops Castle Hospital Inpatient Ward,NHS SUPPLY CHAIN,1016053559,0.31,654 4347 29
Department of Health,CT Revenue Funds,02/07/2015,Absorbents Non X Ray Detectable,Shrewsbury and Atcham North Interdisciplinary Teams,NHS SUPPLY CHAIN,1016053559,0.32,654 4347 29
Department of Health,CT Revenue Funds,02/07/2015,Absorbents Non X Ray Detectable,South West Interdisciplinary Teams,NHS SUPPLY CHAIN,1016053559,0.61,654 4347 29
Department of Health,CT Revenue Funds,02/07/2015,Absorbents Non X Ray Detectable,Whitchurch Hospital Minor Injuries Unit,NHS SUPPLY CHAIN,1016053559,0.62,654 4347 29
Department of Health,CT Revenue Funds,02/07/2015,Absorbents Non X Ray Detectable,Community Childrens Nurses,NHS SUPPLY CHAIN,1016053559,0.62,654 4347 29
Department of Health,CT Revenue Funds,02/07/2015,Absorbents Non X Ray Detectable,Tissue Viability Nurses (T&W),NHS SUPPLY CHAIN,1016053559,0.65,654 4347 29
Department of Health,CT Revenue Funds,02/07/2015,Absorbents Non X Ray Detectable,Single Point of Referral,NHS SUPPLY CHAIN,1016053559,0.7,654 4347 29
Department of Health,CT Revenue Funds,02/07/2015,Absorbents Non X Ray Detectable,Podiatry Services,NHS SUPPLY CHAIN,1016053559,0.74,654 4347 29
Department of Health,CT Revenue Funds,02/07/2015,Absorbents Non X Ray Detectable,Bridgnorth Hospital Minor Injuries Unit,NHS SUPPLY CHAIN,1016053559,0.8,654 4347 29
Department of Health,CT Revenue Funds,02/07/2015,Absorbents Non X Ray Detectable,Community Nursing Team 4,NHS SUPPLY CHAIN,1016053559,0.81,654 4347 29
Department of Health,CT Revenue Funds,02/07/2015,Absorbents Non X Ray Detectable,Shrewsbury and Atcham DAART,NHS SUPPLY CHAIN,1016053559,1.23,654 4347 29
Department of Health,CT Revenue Funds,02/07/2015,Absorbents Non X Ray Detectable,Shrewsbury and Atcham DAART,NHS SUPPLY CHAIN,1016053559,1.53,654 4347 29
Department of Health,CT Revenue Funds,02/07/2015,Absorbents Non X Ray Detectable,Bishops Castle Hospital Inpatient Ward,NHS SUPPLY CHAIN,1016053559,1.56,654 4347 29
Department of Health,CT Revenue Funds,02/07/2015,Absorbents Non X Ray Detectable,Shrewsbury and Atcham North Interdisciplinary Teams,NHS SUPPLY CHAIN,1016053559,1.59,654 4347 29
Department of Health,CT Revenue Funds,02/07/2015,Absorbents Non X Ray Detectable,Community Childrens Nurses,NHS SUPPLY CHAIN,1016053559,1.85,654 4347 29
Department of Health,CT Revenue Funds,02/07/2015,Absorbents Non X Ray Detectable,South West Interdisciplinary Teams,NHS SUPPLY CHAIN,1016053559,3.06,654 4347 29
Department of Health,CT Revenue Funds,02/07/2015,Absorbents Non X Ray Detectable,Whitchurch Hospital Minor Injuries Unit,NHS SUPPLY CHAIN,1016053559,3.12,654 4347 29
Department of Health,CT Revenue Funds,02/07/2015,Absorbents Non X Ray Detectable,Community Childrens Nurses,NHS SUPPLY CHAIN,1016053559,3.12,654 4347 29
Department of Health,CT Revenue Funds,02/07/2015,Absorbents Non X Ray Detectable,Oswestry Minor Injuries Unit,NHS SUPPLY CHAIN,1016053559,3.12,654 4347 29
Department of Health,CT Revenue Funds,02/07/2015,Absorbents Non X Ray Detectable,Tissue Viability Nurses (T&W),NHS SUPPLY CHAIN,1016053559,3.28,654 4347 29
Department of Health,CT Revenue Funds,02/07/2015,Absorbents Non X Ray Detectable,Single Point of Referral,NHS SUPPLY CHAIN,1016053559,3.48,654 4347 29
Department of Health,CT Revenue Funds,02/07/2015,Absorbents Non X Ray Detectable,Podiatry Services,NHS SUPPLY CHAIN,1016053559,3.69,654 4347 29
Department of Health,CT Revenue Funds,02/07/2015,Absorbents Non X Ray Detectable,Bridgnorth Hospital Minor Injuries Unit,NHS SUPPLY CHAIN,1016053559,4,654 4347 29
Department of Health,CT Revenue Funds,02/07/2015,Absorbents Non X Ray Detectable,Community Nursing Team 4,NHS SUPPLY CHAIN,1016053559,4.05,654 4347 29
Department of Health,CT Revenue Funds,02/07/2015,Absorbents Non X Ray Detectable,South West Interdisciplinary Teams,NHS SUPPLY CHAIN,1016053559,5.81,654 4347 29
Department of Health,CT Revenue Funds,02/07/2015,Absorbents Non X Ray Detectable,Shrewsbury and Atcham DAART,NHS SUPPLY CHAIN,1016053559,6.15,654 4347 29
Department of Health,CT Revenue Funds,02/07/2015,Absorbents Non X Ray Detectable,South West Interdisciplinary Teams,NHS SUPPLY CHAIN,1016053559,8.22,654 4347 29
Department of Health,CT Revenue Funds,02/07/2015,Absorbents Non X Ray Detectable,Community Childrens Nurses,NHS SUPPLY CHAIN,1016053559,9.28,654 4347 29
Department of Health,CT Revenue Funds,02/07/2015,Absorbents Non X Ray Detectable,Oswestry Minor Injuries Unit,NHS SUPPLY CHAIN,1016053559,15.6,654 4347 29
Department of Health,CT Revenue Funds,02/07/2015,Absorbents Non X Ray Detectable,South West Interdisciplinary Teams,NHS SUPPLY CHAIN,1016053559,29.04,654 4347 29
Department of Health,CT Revenue Funds,02/07/2015,Absorbents Non X Ray Detectable,South West Interdisciplinary Teams,NHS SUPPLY CHAIN,1016053559,41.09,654 4347 29
Department of Health,CT Revenue Funds,02/07/2015,Adhesive Wound Dressings,Whitchurch Hospital Minor Injuries Unit,NHS SUPPLY CHAIN,1016053559,-0.01,654 4347 29
Department of Health,CT Revenue Funds,02/07/2015,Adhesive Wound Dressings,Bridgnorth Hospital Minor Injuries Unit,NHS SUPPLY CHAIN,1016053559,-0.01,654 4347 29
Department of Health,CT Revenue Funds,02/07/2015,Adhesive Wound Dressings,South West Interdisciplinary Teams,NHS SUPPLY CHAIN,1016053559,-0.01,654 4347 29
Department of Health,CT Revenue Funds,02/07/2015,Adhesive Wound Dressings,South West Interdisciplinary Teams,NHS SUPPLY CHAIN,1016053559,-0.01,654 4347 29
Department of Health,CT Revenue Funds,02/07/2015,Adhesive Wound Dressings,Whitchurch Hospital Minor Injuries Unit,NHS SUPPLY CHAIN,1016053559,0.01,654 4347 29
Department of Health,CT Revenue Funds,02/07/2015,Adhesive Wound Dressings,Ludlow Hospital Minor Injuries Unit,NHS SUPPLY CHAIN,1016053559,0.01,654 4347 29
Department of Health,CT Revenue Funds,02/07/2015,Adhesive Wound Dressings,South West Interdisciplinary Teams,NHS SUPPLY CHAIN,1016053559,0.01,654 4347 29
Department of Health,CT Revenue Funds,02/07/2015,Adhesive Wound Dressings,Community Nursing Team 4,NHS SUPPLY CHAIN,1016053559,0.01,654 4347 29
Department of Health,CT Revenue Funds,02/07/2015,Adhesive Wound Dressings,Community Nursing Team 4,NHS SUPPLY CHAIN,1016053559,0.01,654 4347 29
Department of Health,CT Revenue Funds,02/07/2015,Adhesive Wound Dressings,Whitchurch Hospital Inpatient Ward,NHS SUPPLY CHAIN,1016053559,0.1,654 4347 29
Department of Health,CT Revenue Funds,02/07/2015,Adhesive Wound Dressings,North West Shropshire Interdisciplinary Teams,NHS SUPPLY CHAIN,1016053559,0.14,654 4347 29
Department of Health,CT Revenue Funds,02/07/2015,Adhesive Wound Dressings,Bridgnorth Hospital Minor Injuries Unit,NHS SUPPLY CHAIN,1016053559,0.42,654 4347 29
Department of Health,CT Revenue Funds,02/07/2015,Adhesive Wound Dressings,Community Nursing Team 4,NHS SUPPLY CHAIN,1016053559,0.45,654 4347 29
Department of Health,CT Revenue Funds,02/07/2015,Adhesive Wound Dressings,North West Shropshire Interdisciplinary Teams,NHS SUPPLY CHAIN,1016053559,0.46,654 4347 29
Department of Health,CT Revenue Funds,02/07/2015,Adhesive Wound Dressings,Community Nursing Team 4,NHS SUPPLY CHAIN,1016053559,0.46,654 4347 29
Department of Health,CT Revenue Funds,02/07/2015,Adhesive Wound Dressings,South West Interdisciplinary Teams,NHS SUPPLY CHAIN,1016053559,0.46,654 4347 29
Department of Health,CT Revenue Funds,02/07/2015,Adhesive Wound Dressings,Whitchurch Hospital Inpatient Ward,NHS SUPPLY CHAIN,1016053559,0.52,654 4347 29
Department of Health,CT Revenue Funds,02/07/2015,Adhesive Wound Dressings,Community Nursing Team 4,NHS SUPPLY CHAIN,1016053559,0.57,654 4347 29
Department of Health,CT Revenue Funds,02/07/2015,Adhesive Wound Dressings,North West Shropshire Interdisciplinary Teams,NHS SUPPLY CHAIN,1016053559,0.7,654 4347 29
Department of Health,CT Revenue Funds,02/07/2015,Adhesive Wound Dressings,Whitchurch Hospital Minor Injuries Unit,NHS SUPPLY CHAIN,1016053559,0.91,654 4347 29
Department of Health,CT Revenue Funds,02/07/2015,Adhesive Wound Dressings,South West Interdisciplinary Teams,NHS SUPPLY CHAIN,1016053559,0.91,654 4347 29
Department of Health,CT Revenue Funds,02/07/2015,Adhesive Wound Dressings,Whitchurch Hospital Minor Injuries Unit,NHS SUPPLY CHAIN,1016053559,1.13,654 4347 29
Department of Health,CT Revenue Funds,02/07/2015,Adhesive Wound Dressings,Bridgnorth Hospital Minor Injuries Unit,NHS SUPPLY CHAIN,1016053559,1.13,654 4347 29
Department of Health,CT Revenue Funds,02/07/2015,Adhesive Wound Dressings,South West Interdisciplinary Teams,NHS SUPPLY CHAIN,1016053559,1.13,654 4347 29
Department of Health,CT Revenue Funds,02/07/2015,Adhesive Wound Dressings,Ludlow Hospital Minor Injuries Unit,NHS SUPPLY CHAIN,1016053559,1.37,654 4347 29
Department of Health,CT Revenue Funds,02/07/2015,Adhesive Wound Dressings,South West Interdisciplinary Teams,NHS SUPPLY CHAIN,1016053559,1.97,654 4347 29
Department of Health,CT Revenue Funds,02/07/2015,Adhesive Wound Dressings,Bridgnorth Hospital Minor Injuries Unit,NHS SUPPLY CHAIN,1016053559,2.1,654 4347 29
Department of Health,CT Revenue Funds,02/07/2015,Adhesive Wound Dressings,Community Nursing Team 4,NHS SUPPLY CHAIN,1016053559,2.27,654 4347 29
Department of Health,CT Revenue Funds,02/07/2015,Adhesive Wound Dressings,North West Shropshire Interdisciplinary Teams,NHS SUPPLY CHAIN,1016053559,2.28,654 4347 29
Department of Health,CT Revenue Funds,02/07/2015,Adhesive Wound Dressings,South West Interdisciplinary Teams,NHS SUPPLY CHAIN,1016053559,2.28,654 4347 29
Department of Health,CT Revenue Funds,02/07/2015,Adhesive Wound Dressings,Community Nursing Team 4,NHS SUPPLY CHAIN,1016053559,2.28,654 4347 29
Department of Health,CT Revenue Funds,02/07/2015,Adhesive Wound Dressings,Community Nursing Team 4,NHS SUPPLY CHAIN,1016053559,2.83,654 4347 29
Department of Health,CT Revenue Funds,02/07/2015,Adhesive Wound Dressings,Whitchurch Hospital Minor Injuries Unit,NHS SUPPLY CHAIN,1016053559,4.56,654 4347 29
Department of Health,CT Revenue Funds,02/07/2015,Adhesive Wound Dressings,South West Interdisciplinary Teams,NHS SUPPLY CHAIN,1016053559,4.56,654 4347 29
Department of Health,CT Revenue Funds,02/07/2015,Adhesive Wound Dressings,Whitchurch Hospital Minor Injuries Unit,NHS SUPPLY CHAIN,1016053559,5.66,654 4347 29
Department of Health,CT Revenue Funds,02/07/2015,Adhesive Wound Dressings,Bridgnorth Hospital Minor Injuries Unit,NHS SUPPLY CHAIN,1016053559,5.66,654 4347 29
Department of Health,CT Revenue Funds,02/07/2015,Adhesive Wound Dressings,South West Interdisciplinary Teams,NHS SUPPLY CHAIN,1016053559,5.66,654 4347 29
Department of Health,CT Revenue Funds,02/07/2015,Adhesive Wound Dressings,Ludlow Hospital Minor Injuries Unit,NHS SUPPLY CHAIN,1016053559,6.84,654 4347 29
Department of Health,CT Revenue Funds,02/07/2015,Adhesive Wound Dressings,South West Interdisciplinary Teams,NHS SUPPLY CHAIN,1016053559,9.86,654 4347 29
Department of Health,CT Revenue Funds,02/07/2015,Advertising,North Telford Health Visitors,LG DAVIS (STATIONERS) LTD,071670,325,110 6445 14
Department of Health,CT Revenue Funds,02/07/2015,Agency Admin & Clerical,Community Neuro Rehabilitation Team (CNRT),PERTEMPS,P676055,26.63,844 2788 00
Department of Health,CT Revenue Funds,02/07/2015,Agency Admin & Clerical,Single Point of Referral,EXTRA PERSONNEL,833428,51.66,559 6851 83
Department of Health,CT Revenue Funds,02/07/2015,Agency Admin & Clerical,Community Neuro Rehabilitation Team (CNRT),PERTEMPS,P676055,133.14,844 2788 00
Department of Health,CT Revenue Funds,02/07/2015,Agency Admin & Clerical,Single Point of Referral,EXTRA PERSONNEL,833428,258.32,559 6851 83
Department of Health,CT Revenue Funds,02/07/2015,Agency Admin & Clerical,"Management Accounting, Contracting & Costing",AXON RESOURCING LTD,67510,276.26,
Department of Health,CT Revenue Funds,02/07/2015,Agency Admin & Clerical,"Management Accounting, Contracting & Costing",AXON RESOURCING LTD,67510,1381.3,
Department of Health,CT Revenue Funds,02/07/2015,Agency Admin & Clerical,Premises Management,PEAKE PROPERTY MANAGEMENT LTD,5,2448.16,
Department of Health,CT Revenue Funds,02/07/2015,Agency Consultants,Shropshire Community Paediatric Medical Staff,HEALTHMEDIX LTD,2549,3.54,
Department of Health,CT Revenue Funds,02/07/2015,Agency Consultants,Shropshire Community Paediatric Medical Staff,HEALTHMEDIX LTD,2549,17.72,
Department of Health,CT Revenue Funds,02/07/2015,Agency Consultants,Telford Child Psychiatry,INTERACT MEDICAL,132323,879.84,650 7780 24
Department of Health,CT Revenue Funds,02/07/2015,Agency Consultants,Shropshire Community Paediatric Medical Staff,HEALTHMEDIX LTD,2548,888,
Department of Health,CT Revenue Funds,02/07/2015,Agency Consultants,Shropshire Child Psychiatry,PSYCHIATRY PEOPLE,PP119183,930.08,
Department of Health,CT Revenue Funds,02/07/2015,Agency Consultants,Telford Child Psychiatry,INTERACT MEDICAL,132147,1055.81,650 7780 24
Department of Health,CT Revenue Funds,02/07/2015,Agency Consultants,Shropshire Child Psychiatry,PSYCHIATRY PEOPLE,PP119182,1364.57,
Department of Health,CT Revenue Funds,02/07/2015,Agency Consultants,Telford Child Psychiatry,INTERACT MEDICAL,132323,4399.2,650 7780 24
Department of Health,CT Revenue Funds,02/07/2015,Agency Consultants,Shropshire Community Paediatric Medical Staff,HEALTHMEDIX LTD,2548,4440,
Department of Health,CT Revenue Funds,02/07/2015,Agency Consultants,Shropshire Child Psychiatry,PSYCHIATRY PEOPLE,PP119183,4650.39,
Department of Health,CT Revenue Funds,02/07/2015,Agency Consultants,Telford Child Psychiatry,INTERACT MEDICAL,132147,5279.04,650 7780 24
Department of Health,CT Revenue Funds,02/07/2015,Agency Consultants,Shropshire Child Psychiatry,PSYCHIATRY PEOPLE,PP119182,6822.85,
Department of Health,CT Revenue Funds,02/07/2015,Agency Hlthcare Assistants & Support Staff,Bridgnorth Hospital Inpatient Ward,ID MEDICAL,8034,20.68,733 7385 18
Department of Health,CT Revenue Funds,02/07/2015,Agency Hlthcare Assistants & Support Staff,Bridgnorth Hospital Inpatient Ward,ID MEDICAL,337738,21,733 7385 18
Department of Health,CT Revenue Funds,02/07/2015,Agency Hlthcare Assistants & Support Staff,APCS - Rheumatology,ID MEDICAL,8074,26.67,733 7385 18
Department of Health,CT Revenue Funds,02/07/2015,Agency Hlthcare Assistants & Support Staff,Bridgnorth Hospital Inpatient Ward,ID MEDICAL,337739,30.4,733 7385 18
Department of Health,CT Revenue Funds,02/07/2015,Agency Hlthcare Assistants & Support Staff,Whitchurch Hospital Inpatient Ward,ID MEDICAL,8082,30.45,733 7385 18
Department of Health,CT Revenue Funds,02/07/2015,Agency Hlthcare Assistants & Support Staff,Ludlow Hospital Inpatient Wards,ID MEDICAL,8058,32,733 7385 18
Department of Health,CT Revenue Funds,02/07/2015,Agency Hlthcare Assistants & Support Staff,Bridgnorth Hospital Inpatient Ward,ID MEDICAL,8031,32.85,733 7385 18
Department of Health,CT Revenue Funds,02/07/2015,Agency Hlthcare Assistants & Support Staff,Bridgnorth Hospital Inpatient Ward,ID MEDICAL,8036,34.5,733 7385 18
Department of Health,CT Revenue Funds,02/07/2015,Agency Hlthcare Assistants & Support Staff,Ludlow Hospital Inpatient Wards,ID MEDICAL,335896,36,733 7385 18
Department of Health,CT Revenue Funds,02/07/2015,Agency Hlthcare Assistants & Support Staff,Ludlow Hospital Inpatient Wards,ID MEDICAL,8068,40.5,733 7385 18
Department of Health,CT Revenue Funds,02/07/2015,Agency Hlthcare Assistants & Support Staff,Bridgnorth Hospital Inpatient Ward,ID MEDICAL,8032,47.5,733 7385 18
Department of Health,CT Revenue Funds,02/07/2015,Agency Hlthcare Assistants & Support Staff,Ludlow Hospital Inpatient Wards,ID MEDICAL,7876,50,733 7385 18
Department of Health,CT Revenue Funds,02/07/2015,Agency Hlthcare Assistants & Support Staff,Ludlow Hospital Inpatient Wards,ID MEDICAL,7956,50,733 7385 18
Department of Health,CT Revenue Funds,02/07/2015,Agency Hlthcare Assistants & Support Staff,Ludlow Hospital Inpatient Wards,ID MEDICAL,8065,50,733 7385 18
Department of Health,CT Revenue Funds,02/07/2015,Agency Hlthcare Assistants & Support Staff,Ludlow Hospital Inpatient Wards,ID MEDICAL,8070,50,733 7385 18
Department of Health,CT Revenue Funds,02/07/2015,Agency Hlthcare Assistants & Support Staff,Ludlow Hospital Inpatient Wards,ID MEDICAL,7955,51.25,733 7385 18
Department of Health,CT Revenue Funds,02/07/2015,Agency Hlthcare Assistants & Support Staff,Ludlow Hospital Inpatient Wards,ID MEDICAL,8069,52.5,733 7385 18
Department of Health,CT Revenue Funds,02/07/2015,Agency Hlthcare Assistants & Support Staff,Ludlow Hospital Inpatient Wards,ID MEDICAL,8053,54,733 7385 18
Department of Health,CT Revenue Funds,02/07/2015,Agency Hlthcare Assistants & Support Staff,Whitchurch Hospital Inpatient Ward,ID MEDICAL,7982,57.5,733 7385 18
Department of Health,CT Revenue Funds,02/07/2015,Agency Hlthcare Assistants & Support Staff,Whitchurch Hospital Inpatient Ward,ID MEDICAL,8088,57.5,733 7385 18
Department of Health,CT Revenue Funds,02/07/2015,Agency Hlthcare Assistants & Support Staff,Whitchurch Hospital Inpatient Ward,ID MEDICAL,8096,57.5,733 7385 18
Department of Health,CT Revenue Funds,02/07/2015,Agency Hlthcare Assistants & Support Staff,Ludlow Hospital Inpatient Wards,ID MEDICAL,7952,59.8,733 7385 18
Department of Health,CT Revenue Funds,02/07/2015,Agency Hlthcare Assistants & Support Staff,Ludlow Hospital Inpatient Wards,ID MEDICAL,7954,59.8,733 7385 18
Department of Health,CT Revenue Funds,02/07/2015,Agency Hlthcare Assistants & Support Staff,Ludlow Hospital Inpatient Wards,ID MEDICAL,7961,59.8,733 7385 18
Department of Health,CT Revenue Funds,02/07/2015,Agency Hlthcare Assistants & Support Staff,Ludlow Hospital Inpatient Wards,ID MEDICAL,8048,59.8,733 7385 18
Department of Health,CT Revenue Funds,02/07/2015,Agency Hlthcare Assistants & Support Staff,Ludlow Hospital Inpatient Wards,ID MEDICAL,8054,59.8,733 7385 18
Department of Health,CT Revenue Funds,02/07/2015,Agency Hlthcare Assistants & Support Staff,Ludlow Hospital Inpatient Wards,ID MEDICAL,8051,70.2,733 7385 18
Department of Health,CT Revenue Funds,02/07/2015,Agency Hlthcare Assistants & Support Staff,Ludlow Hospital Inpatient Wards,ID MEDICAL,8055,70.2,733 7385 18
Department of Health,CT Revenue Funds,02/07/2015,Agency Hlthcare Assistants & Support Staff,Ludlow Hospital Inpatient Wards,ID MEDICAL,8064,70.2,733 7385 18
Department of Health,CT Revenue Funds,02/07/2015,Agency Hlthcare Assistants & Support Staff,Ludlow Hospital Inpatient Wards,ID MEDICAL,8072,76,733 7385 18
Department of Health,CT Revenue Funds,02/07/2015,Agency Hlthcare Assistants & Support Staff,Ludlow Hospital Inpatient Wards,ID MEDICAL,337743,78,733 7385 18
Department of Health,CT Revenue Funds,02/07/2015,Agency Hlthcare Assistants & Support Staff,Ludlow Hospital Inpatient Wards,ID MEDICAL,335895,82.5,733 7385 18
Department of Health,CT Revenue Funds,02/07/2015,Agency Hlthcare Assistants & Support Staff,Ludlow Hospital Inpatient Wards,ID MEDICAL,8059,94.3,733 7385 18
Department of Health,CT Revenue Funds,02/07/2015,Agency Hlthcare Assistants & Support Staff,Ludlow Hospital Inpatient Wards,ID MEDICAL,8047,100,733 7385 18
Department of Health,CT Revenue Funds,02/07/2015,Agency Hlthcare Assistants & Support Staff,Ludlow Hospital Inpatient Wards,ID MEDICAL,8061,100,733 7385 18
Department of Health,CT Revenue Funds,02/07/2015,Agency Hlthcare Assistants & Support Staff,Bridgnorth Hospital Inpatient Ward,ID MEDICAL,8034,103.39,733 7385 18
Department of Health,CT Revenue Funds,02/07/2015,Agency Hlthcare Assistants & Support Staff,Bridgnorth Hospital Inpatient Ward,ID MEDICAL,337738,105,733 7385 18
Department of Health,CT Revenue Funds,02/07/2015,Agency Hlthcare Assistants & Support Staff,Ludlow Hospital Inpatient Wards,ID MEDICAL,8060,111.55,733 7385 18
Department of Health,CT Revenue Funds,02/07/2015,Agency Hlthcare Assistants & Support Staff,Whitchurch Hospital Inpatient Ward,ID MEDICAL,8091,115,733 7385 18
Department of Health,CT Revenue Funds,02/07/2015,Agency Hlthcare Assistants & Support Staff,Ludlow Hospital Inpatient Wards,ID MEDICAL,8052,119.6,733 7385 18
Department of Health,CT Revenue Funds,02/07/2015,Agency Hlthcare Assistants & Support Staff,Ludlow Hospital Inpatient Wards,ID MEDICAL,7884,128.85,733 7385 18
Department of Health,CT Revenue Funds,02/07/2015,Agency Hlthcare Assistants & Support Staff,APCS - Rheumatology,ID MEDICAL,8074,133.35,733 7385 18
Department of Health,CT Revenue Funds,02/07/2015,Agency Hlthcare Assistants & Support Staff,Whitchurch Hospital Inpatient Ward,ID MEDICAL,8089,150,733 7385 18
Department of Health,CT Revenue Funds,02/07/2015,Agency Hlthcare Assistants & Support Staff,Bridgnorth Hospital Inpatient Ward,ID MEDICAL,337739,152,733 7385 18
Department of Health,CT Revenue Funds,02/07/2015,Agency Hlthcare Assistants & Support Staff,Whitchurch Hospital Inpatient Ward,ID MEDICAL,8082,152.24,733 7385 18
Department of Health,CT Revenue Funds,02/07/2015,Agency Hlthcare Assistants & Support Staff,Ludlow Hospital Inpatient Wards,ID MEDICAL,8049,154,733 7385 18
Department of Health,CT Revenue Funds,02/07/2015,Agency Hlthcare Assistants & Support Staff,Ludlow Hospital Inpatient Wards,ID MEDICAL,8058,160,733 7385 18
Department of Health,CT Revenue Funds,02/07/2015,Agency Hlthcare Assistants & Support Staff,Bridgnorth Hospital Inpatient Ward,ID MEDICAL,8031,164.24,733 7385 18
Department of Health,CT Revenue Funds,02/07/2015,Agency Hlthcare Assistants & Support Staff,Bridgnorth Hospital Inpatient Ward,ID MEDICAL,8036,172.5,733 7385 18
Department of Health,CT Revenue Funds,02/07/2015,Agency Hlthcare Assistants & Support Staff,Ludlow Hospital Inpatient Wards,ID MEDICAL,335896,180,733 7385 18
Department of Health,CT Revenue Funds,02/07/2015,Agency Hlthcare Assistants & Support Staff,Whitchurch Hospital Inpatient Ward,ID MEDICAL,8102,182.5,733 7385 18
Department of Health,CT Revenue Funds,02/07/2015,Agency Hlthcare Assistants & Support Staff,Bridgnorth Hospital Inpatient Ward,ID MEDICAL,8035,184.5,733 7385 18
Department of Health,CT Revenue Funds,02/07/2015,Agency Hlthcare Assistants & Support Staff,Ludlow Hospital Inpatient Wards,THORNBURY NURSING SERVICES LTD,2938945,196.76,676 2854 93
Department of Health,CT Revenue Funds,02/07/2015,Agency Hlthcare Assistants & Support Staff,Whitchurch Hospital Inpatient Ward,ID MEDICAL,8090,200,733 7385 18
Department of Health,CT Revenue Funds,02/07/2015,Agency Hlthcare Assistants & Support Staff,Whitchurch Hospital Inpatient Ward,ID MEDICAL,8092,200,733 7385 18
Department of Health,CT Revenue Funds,02/07/2015,Agency Hlthcare Assistants & Support Staff,Whitchurch Hospital Inpatient Ward,ID MEDICAL,8093,200,733 7385 18
Department of Health,CT Revenue Funds,02/07/2015,Agency Hlthcare Assistants & Support Staff,Ludlow Hospital Inpatient Wards,ID MEDICAL,8068,202.5,733 7385 18
Department of Health,CT Revenue Funds,02/07/2015,Agency Hlthcare Assistants & Support Staff,Bridgnorth Hospital Inpatient Ward,ID MEDICAL,8032,237.5,733 7385 18
Department of Health,CT Revenue Funds,02/07/2015,Agency Hlthcare Assistants & Support Staff,Ludlow Hospital Inpatient Wards,ID MEDICAL,7876,250,733 7385 18
Department of Health,CT Revenue Funds,02/07/2015,Agency Hlthcare Assistants & Support Staff,Ludlow Hospital Inpatient Wards,ID MEDICAL,7956,250,733 7385 18
Department of Health,CT Revenue Funds,02/07/2015,Agency Hlthcare Assistants & Support Staff,Ludlow Hospital Inpatient Wards,ID MEDICAL,8065,250,733 7385 18
Department of Health,CT Revenue Funds,02/07/2015,Agency Hlthcare Assistants & Support Staff,Ludlow Hospital Inpatient Wards,ID MEDICAL,8070,250,733 7385 18
Department of Health,CT Revenue Funds,02/07/2015,Agency Hlthcare Assistants & Support Staff,Ludlow Hospital Inpatient Wards,ID MEDICAL,7955,256.25,733 7385 18
Department of Health,CT Revenue Funds,02/07/2015,Agency Hlthcare Assistants & Support Staff,Ludlow Hospital Inpatient Wards,ID MEDICAL,8069,262.5,733 7385 18
Department of Health,CT Revenue Funds,02/07/2015,Agency Hlthcare Assistants & Support Staff,Ludlow Hospital Inpatient Wards,THORNBURY NURSING SERVICES LTD,2927058,263.6,676 2854 93
Department of Health,CT Revenue Funds,02/07/2015,Agency Hlthcare Assistants & Support Staff,Ludlow Hospital Inpatient Wards,THORNBURY NURSING SERVICES LTD,2936841,264.52,676 2854 93
Department of Health,CT Revenue Funds,02/07/2015,Agency Hlthcare Assistants & Support Staff,Ludlow Hospital Inpatient Wards,ID MEDICAL,8053,270,733 7385 18
Department of Health,CT Revenue Funds,02/07/2015,Agency Hlthcare Assistants & Support Staff,Bishops Castle Hospital Inpatient Ward,ID MEDICAL,8028,272.5,733 7385 18
Department of Health,CT Revenue Funds,02/07/2015,Agency Hlthcare Assistants & Support Staff,Bridgnorth Hospital Inpatient Ward,ID MEDICAL,8037,285,733 7385 18
Department of Health,CT Revenue Funds,02/07/2015,Agency Hlthcare Assistants & Support Staff,Ludlow Hospital Inpatient Wards,THORNBURY NURSING SERVICES LTD,2927052,285.52,676 2854 93
Department of Health,CT Revenue Funds,02/07/2015,Agency Hlthcare Assistants & Support Staff,Whitchurch Hospital Inpatient Ward,ID MEDICAL,7982,287.5,733 7385 18
Department of Health,CT Revenue Funds,02/07/2015,Agency Hlthcare Assistants & Support Staff,Whitchurch Hospital Inpatient Ward,ID MEDICAL,8088,287.5,733 7385 18
Department of Health,CT Revenue Funds,02/07/2015,Agency Hlthcare Assistants & Support Staff,Whitchurch Hospital Inpatient Ward,ID MEDICAL,8096,287.5,733 7385 18
Department of Health,CT Revenue Funds,02/07/2015,Agency Hlthcare Assistants & Support Staff,Ludlow Hospital Inpatient Wards,ID MEDICAL,7952,299,733 7385 18
Department of Health,CT Revenue Funds,02/07/2015,Agency Hlthcare Assistants & Support Staff,Ludlow Hospital Inpatient Wards,ID MEDICAL,7954,299,733 7385 18
Department of Health,CT Revenue Funds,02/07/2015,Agency Hlthcare Assistants & Support Staff,Ludlow Hospital Inpatient Wards,ID MEDICAL,7961,299,733 7385 18
Department of Health,CT Revenue Funds,02/07/2015,Agency Hlthcare Assistants & Support Staff,Ludlow Hospital Inpatient Wards,ID MEDICAL,8048,299,733 7385 18
Department of Health,CT Revenue Funds,02/07/2015,Agency Hlthcare Assistants & Support Staff,Ludlow Hospital Inpatient Wards,ID MEDICAL,8054,299,733 7385 18
Department of Health,CT Revenue Funds,02/07/2015,Agency Hlthcare Assistants & Support Staff,Whitchurch Hospital Inpatient Ward,ID MEDICAL,8081,345,733 7385 18
Department of Health,CT Revenue Funds,02/07/2015,Agency Hlthcare Assistants & Support Staff,Ludlow Hospital Inpatient Wards,ID MEDICAL,8051,351,733 7385 18
Department of Health,CT Revenue Funds,02/07/2015,Agency Hlthcare Assistants & Support Staff,Ludlow Hospital Inpatient Wards,ID MEDICAL,8055,351,733 7385 18
Department of Health,CT Revenue Funds,02/07/2015,Agency Hlthcare Assistants & Support Staff,Ludlow Hospital Inpatient Wards,ID MEDICAL,8064,351,733 7385 18
Department of Health,CT Revenue Funds,02/07/2015,Agency Hlthcare Assistants & Support Staff,Ludlow Hospital Inpatient Wards,THORNBURY NURSING SERVICES LTD,2928612,370.21,676 2854 93
Department of Health,CT Revenue Funds,02/07/2015,Agency Hlthcare Assistants & Support Staff,Whitchurch Hospital Inpatient Ward,THORNBURY NURSING SERVICES LTD,2954397,376.99,676 2854 93
Department of Health,CT Revenue Funds,02/07/2015,Agency Hlthcare Assistants & Support Staff,Ludlow Hospital Inpatient Wards,ID MEDICAL,8072,380,733 7385 18
Department of Health,CT Revenue Funds,02/07/2015,Agency Hlthcare Assistants & Support Staff,Ludlow Hospital Inpatient Wards,ID MEDICAL,337743,390,733 7385 18
Department of Health,CT Revenue Funds,02/07/2015,Agency Hlthcare Assistants & Support Staff,Whitchurch Hospital Inpatient Ward,ID MEDICAL,8094,394.35,733 7385 18
Department of Health,CT Revenue Funds,02/07/2015,Agency Hlthcare Assistants & Support Staff,Ludlow Hospital Inpatient Wards,ID MEDICAL,335895,412.5,733 7385 18
Department of Health,CT Revenue Funds,02/07/2015,Agency Hlthcare Assistants & Support Staff,Ludlow Hospital Inpatient Wards,THORNBURY NURSING SERVICES LTD,2957562,442.6,676 2854 93
Department of Health,CT Revenue Funds,02/07/2015,Agency Hlthcare Assistants & Support Staff,Ludlow Hospital Inpatient Wards,ID MEDICAL,8059,471.5,733 7385 18
Department of Health,CT Revenue Funds,02/07/2015,Agency Hlthcare Assistants & Support Staff,Ludlow Hospital Inpatient Wards,THORNBURY NURSING SERVICES LTD,2952958,478.86,676 2854 93
Department of Health,CT Revenue Funds,02/07/2015,Agency Hlthcare Assistants & Support Staff,Ludlow Hospital Inpatient Wards,THORNBURY NURSING SERVICES LTD,2948872,495.88,676 2854 93
Department of Health,CT Revenue Funds,02/07/2015,Agency Hlthcare Assistants & Support Staff,Ludlow Hospital Inpatient Wards,ID MEDICAL,8047,500,733 7385 18
Department of Health,CT Revenue Funds,02/07/2015,Agency Hlthcare Assistants & Support Staff,Ludlow Hospital Inpatient Wards,ID MEDICAL,8061,500,733 7385 18
Department of Health,CT Revenue Funds,02/07/2015,Agency Hlthcare Assistants & Support Staff,Ludlow Hospital Inpatient Wards,ID MEDICAL,8060,557.75,733 7385 18
Department of Health,CT Revenue Funds,02/07/2015,Agency Hlthcare Assistants & Support Staff,Whitchurch Hospital Inpatient Ward,ID MEDICAL,8091,575,733 7385 18
Department of Health,CT Revenue Funds,02/07/2015,Agency Hlthcare Assistants & Support Staff,Whitchurch Hospital Inpatient Ward,ID MEDICAL,8086,590.4,733 7385 18
Department of Health,CT Revenue Funds,02/07/2015,Agency Hlthcare Assistants & Support Staff,Ludlow Hospital Inpatient Wards,ID MEDICAL,8052,598,733 7385 18
Department of Health,CT Revenue Funds,02/07/2015,Agency Hlthcare Assistants & Support Staff,Ludlow Hospital Inpatient Wards,ID MEDICAL,7884,644.25,733 7385 18
Department of Health,CT Revenue Funds,02/07/2015,Agency Hlthcare Assistants & Support Staff,Whitchurch Hospital Inpatient Ward,ID MEDICAL,8089,750,733 7385 18
Department of Health,CT Revenue Funds,02/07/2015,Agency Hlthcare Assistants & Support Staff,Ludlow Hospital Inpatient Wards,ID MEDICAL,8049,770,733 7385 18
Department of Health,CT Revenue Funds,02/07/2015,Agency Hlthcare Assistants & Support Staff,Stoke Heath Prison Healthcare,VIP NURSING LTD,60763,880.89,
Department of Health,CT Revenue Funds,02/07/2015,Agency Hlthcare Assistants & Support Staff,Whitchurch Hospital Inpatient Ward,ID MEDICAL,8102,912.5,733 7385 18
Department of Health,CT Revenue Funds,02/07/2015,Agency Hlthcare Assistants & Support Staff,Bridgnorth Hospital Inpatient Ward,ID MEDICAL,8035,922.5,733 7385 18
Department of Health,CT Revenue Funds,02/07/2015,Agency Hlthcare Assistants & Support Staff,Whitchurch Hospital Inpatient Ward,ID MEDICAL,8090,1000,733 7385 18
Department of Health,CT Revenue Funds,02/07/2015,Agency Hlthcare Assistants & Support Staff,Whitchurch Hospital Inpatient Ward,ID MEDICAL,8092,1000,733 7385 18
Department of Health,CT Revenue Funds,02/07/2015,Agency Hlthcare Assistants & Support Staff,Whitchurch Hospital Inpatient Ward,ID MEDICAL,8093,1000,733 7385 18
Department of Health,CT Revenue Funds,02/07/2015,Agency Hlthcare Assistants & Support Staff,Stoke Heath Prison Healthcare,VIP NURSING LTD,60764,1174.52,
Department of Health,CT Revenue Funds,02/07/2015,Agency Hlthcare Assistants & Support Staff,Bishops Castle Hospital Inpatient Ward,ID MEDICAL,8028,1362.5,733 7385 18
Department of Health,CT Revenue Funds,02/07/2015,Agency Hlthcare Assistants & Support Staff,Whitchurch Hospital Inpatient Ward,ID MEDICAL,8081,1725,733 7385 18
Department of Health,CT Revenue Funds,02/07/2015,Agency Hlthcare Assistants & Support Staff,Whitchurch Hospital Inpatient Ward,ID MEDICAL,8094,1971.75,733 7385 18
Department of Health,CT Revenue Funds,02/07/2015,Agency Hlthcare Assistants & Support Staff,Whitchurch Hospital Inpatient Ward,ID MEDICAL,8087,2715,733 7385 18
Department of Health,CT Revenue Funds,02/07/2015,Agency Hlthcare Assistants & Support Staff,Whitchurch Hospital Inpatient Ward,ID MEDICAL,8086,2952,733 7385 18
Department of Health,CT Revenue Funds,02/07/2015,Agency Nursing,Whitchurch Hospital Inpatient Ward,ID MEDICAL,8101,7.5,733 7385 18
Department of Health,CT Revenue Funds,02/07/2015,Agency Nursing,Shropshire Community Paediatric Medical Staff,RANDSTAD CARE LTD,1926214,15.54,
Department of Health,CT Revenue Funds,02/07/2015,Agency Nursing,Shropshire CAMHS Team,SANCTUARY PERSONNEL LTD,00413183,23.36,
Department of Health,CT Revenue Funds,02/07/2015,Agency Nursing,Shropshire Community Paediatric Medical Staff,RANDSTAD CARE LTD,1926214,77.72,
Department of Health,CT Revenue Funds,02/07/2015,Agency Nursing,Shropshire CAMHS Team,SANCTUARY PERSONNEL LTD,00413183,116.78,
Department of Health,CT Revenue Funds,02/07/2015,Agency Nursing,CAMHS Team (T&W),HCL SOCIAL CARE,HSOC5416545,148.62,
Department of Health,CT Revenue Funds,02/07/2015,Agency Nursing,Ludlow Hospital Inpatient Wards,ID MEDICAL,8019,216,733 7385 18
Department of Health,CT Revenue Funds,02/07/2015,Agency Nursing,Shropshire CAMHS Team,SANCTUARY PERSONNEL LTD,00413182,243.75,
Department of Health,CT Revenue Funds,02/07/2015,Agency Nursing,Ludlow Hospital Inpatient Wards,ID MEDICAL,8066,262.5,733 7385 18
Department of Health,CT Revenue Funds,02/07/2015,Agency Nursing,Whitchurch Hospital Inpatient Ward,ID MEDICAL,8100,262.5,733 7385 18
Department of Health,CT Revenue Funds,02/07/2015,Agency Nursing,Ludlow Hospital Inpatient Wards,ID MEDICAL,337741,274.8,733 7385 18
Department of Health,CT Revenue Funds,02/07/2015,Agency Nursing,Bridgnorth Hospital Inpatient Ward,ID MEDICAL,8033,283.52,733 7385 18
Department of Health,CT Revenue Funds,02/07/2015,Agency Nursing,Whitchurch Hospital Inpatient Ward,ID MEDICAL,337998,300,733 7385 18
Department of Health,CT Revenue Funds,02/07/2015,Agency Nursing,Shropshire CAMHS Team,JCJ LTD,SWP5417701,312,
Department of Health,CT Revenue Funds,02/07/2015,Agency Nursing,Shropshire Primary CAMHS Service,HCL SOCIAL CARE,HSOC5416024,314.82,
Department of Health,CT Revenue Funds,02/07/2015,Agency Nursing,Ludlow Hospital Inpatient Wards,ID MEDICAL,7957,328,733 7385 18
Department of Health,CT Revenue Funds,02/07/2015,Agency Nursing,Shropshire Community Paediatric Medical Staff,RANDSTAD CARE LTD,1926213,355.35,
Department of Health,CT Revenue Funds,02/07/2015,Agency Nursing,Ludlow Hospital Inpatient Wards,ID MEDICAL,7880,370.5,733 7385 18
Department of Health,CT Revenue Funds,02/07/2015,Agency Nursing,Ludlow Hospital Inpatient Wards,ID MEDICAL,7878,374.68,733 7385 18
Department of Health,CT Revenue Funds,02/07/2015,Agency Nursing,Ludlow Hospital Inpatient Wards,ID MEDICAL,7959,380,733 7385 18
Department of Health,CT Revenue Funds,02/07/2015,Agency Nursing,Ludlow Hospital Inpatient Wards,ID MEDICAL,8063,380,733 7385 18
Department of Health,CT Revenue Funds,02/07/2015,Agency Nursing,Whitchurch Hospital Inpatient Ward,ID MEDICAL,8083,380,733 7385 18
Department of Health,CT Revenue Funds,02/07/2015,Agency Nursing,Whitchurch Hospital Inpatient Ward,ID MEDICAL,8084,380,733 7385 18
Department of Health,CT Revenue Funds,02/07/2015,Agency Nursing,Bridgnorth Hospital Inpatient Ward,THORNBURY NURSING SERVICES LTD,2952223,425.44,676 2854 93
Department of Health,CT Revenue Funds,02/07/2015,Agency Nursing,Ludlow Hospital Inpatient Wards,THORNBURY NURSING SERVICES LTD,2951488,438.48,676 2854 93
Department of Health,CT Revenue Funds,02/07/2015,Agency Nursing,Whitchurch Hospital Inpatient Ward,THORNBURY NURSING SERVICES LTD,2954401,441.14,676 2854 93
Department of Health,CT Revenue Funds,02/07/2015,Agency Nursing,Ludlow Hospital Inpatient Wards,THORNBURY NURSING SERVICES LTD,2936840,443.39,676 2854 93
Department of Health,CT Revenue Funds,02/07/2015,Agency Nursing,Ludlow Hospital Inpatient Wards,THORNBURY NURSING SERVICES LTD,2952960,446.89,676 2854 93
Department of Health,CT Revenue Funds,02/07/2015,Agency Nursing,Ludlow Hospital Inpatient Wards,ID MEDICAL,7877,447.1,733 7385 18
Department of Health,CT Revenue Funds,02/07/2015,Agency Nursing,Ludlow Hospital Inpatient Wards,ID MEDICAL,7882,447.1,733 7385 18
Department of Health,CT Revenue Funds,02/07/2015,Agency Nursing,Ludlow Hospital Inpatient Wards,ID MEDICAL,7953,447.1,733 7385 18
Department of Health,CT Revenue Funds,02/07/2015,Agency Nursing,Ludlow Hospital Inpatient Wards,ID MEDICAL,7958,447.1,733 7385 18
Department of Health,CT Revenue Funds,02/07/2015,Agency Nursing,Ludlow Hospital Inpatient Wards,ID MEDICAL,8057,447.1,733 7385 18
Department of Health,CT Revenue Funds,02/07/2015,Agency Nursing,Ludlow Hospital Inpatient Wards,THORNBURY NURSING SERVICES LTD,2928610,450.24,676 2854 93
Department of Health,CT Revenue Funds,02/07/2015,Agency Nursing,Ludlow Hospital Inpatient Wards,THORNBURY NURSING SERVICES LTD,2927062,455,676 2854 93
Department of Health,CT Revenue Funds,02/07/2015,Agency Nursing,Ludlow Hospital Inpatient Wards,ID MEDICAL,8056,455,733 7385 18
Department of Health,CT Revenue Funds,02/07/2015,Agency Nursing,Ludlow Hospital Inpatient Wards,THORNBURY NURSING SERVICES LTD,2928615,459.77,676 2854 93
Department of Health,CT Revenue Funds,02/07/2015,Agency Nursing,Ludlow Hospital Inpatient Wards,ID MEDICAL,7881,460,733 7385 18
Department of Health,CT Revenue Funds,02/07/2015,Agency Nursing,Ludlow Hospital Inpatient Wards,ID MEDICAL,8071,460,733 7385 18
Department of Health,CT Revenue Funds,02/07/2015,Agency Nursing,Ludlow Hospital Inpatient Wards,ID MEDICAL,7962,463.12,733 7385 18
Department of Health,CT Revenue Funds,02/07/2015,Agency Nursing,Shropshire CAMHS Team,SUGARMAN GROUP LTD,TM307352,463.76,
Department of Health,CT Revenue Funds,02/07/2015,Agency Nursing,Ludlow Hospital Inpatient Wards,THORNBURY NURSING SERVICES LTD,2927064,470.4,676 2854 93
Department of Health,CT Revenue Funds,02/07/2015,Agency Nursing,Ludlow Hospital Inpatient Wards,THORNBURY NURSING SERVICES LTD,2951487,470.4,676 2854 93
Department of Health,CT Revenue Funds,02/07/2015,Agency Nursing,Bridgnorth Hospital Inpatient Ward,THORNBURY NURSING SERVICES LTD,2952226,471.45,676 2854 93
Department of Health,CT Revenue Funds,02/07/2015,Agency Nursing,Whitchurch Hospital Inpatient Ward,ID MEDICAL,8099,475,733 7385 18
Department of Health,CT Revenue Funds,02/07/2015,Agency Nursing,Ludlow Hospital Inpatient Wards,THORNBURY NURSING SERVICES LTD,2927060,476.4,676 2854 93
Department of Health,CT Revenue Funds,02/07/2015,Agency Nursing,Whitchurch Hospital Inpatient Ward,THORNBURY NURSING SERVICES LTD,2954399,477.65,676 2854 93
Department of Health,CT Revenue Funds,02/07/2015,Agency Nursing,Bishops Castle Hospital Inpatient Ward,THORNBURY NURSING SERVICES LTD,2948778,507.14,676 2854 93
Department of Health,CT Revenue Funds,02/07/2015,Agency Nursing,Bridgnorth Hospital Inpatient Ward,THORNBURY NURSING SERVICES LTD,2951305,511.72,676 2854 93
Department of Health,CT Revenue Funds,02/07/2015,Agency Nursing,Ludlow Hospital Inpatient Wards,THORNBURY NURSING SERVICES LTD,2928613,519.72,676 2854 93
Department of Health,CT Revenue Funds,02/07/2015,Agency Nursing,Ludlow Hospital Inpatient Wards,THORNBURY NURSING SERVICES LTD,2927056,521.6,676 2854 93
Department of Health,CT Revenue Funds,02/07/2015,Agency Nursing,Bridgnorth Hospital Inpatient Ward,THORNBURY NURSING SERVICES LTD,2952222,532.44,676 2854 93
Department of Health,CT Revenue Funds,02/07/2015,Agency Nursing,Bridgnorth Hospital Inpatient Ward,THORNBURY NURSING SERVICES LTD,2952221,548.64,676 2854 93
Department of Health,CT Revenue Funds,02/07/2015,Agency Nursing,Ludlow Hospital Inpatient Wards,THORNBURY NURSING SERVICES LTD,2952962,548.7,676 2854 93
Department of Health,CT Revenue Funds,02/07/2015,Agency Nursing,Whitchurch Hospital Inpatient Ward,THORNBURY NURSING SERVICES LTD,2954403,552.06,676 2854 93
Department of Health,CT Revenue Funds,02/07/2015,Agency Nursing,Ludlow Hospital Inpatient Wards,THORNBURY NURSING SERVICES LTD,2928614,554.3,676 2854 93
Department of Health,CT Revenue Funds,02/07/2015,Agency Nursing,Ludlow Hospital Inpatient Wards,THORNBURY NURSING SERVICES LTD,2927054,558.78,676 2854 93
Department of Health,CT Revenue Funds,02/07/2015,Agency Nursing,Ludlow Hospital Inpatient Wards,THORNBURY NURSING SERVICES LTD,2950353,561.58,676 2854 93
Department of Health,CT Revenue Funds,02/07/2015,Agency Nursing,Ludlow Hospital Inpatient Wards,ID MEDICAL,7879,581.23,733 7385 18
Department of Health,CT Revenue Funds,02/07/2015,Agency Nursing,Ludlow Hospital Inpatient Wards,THORNBURY NURSING SERVICES LTD,2948870,587.8,676 2854 93
Department of Health,CT Revenue Funds,02/07/2015,Agency Nursing,Bridgnorth Hospital Inpatient Ward,THORNBURY NURSING SERVICES LTD,2957379,653.54,676 2854 93
Department of Health,CT Revenue Funds,02/07/2015,Agency Nursing,Bridgnorth Hospital Inpatient Ward,THORNBURY NURSING SERVICES LTD,2957381,653.54,676 2854 93
Department of Health,CT Revenue Funds,02/07/2015,Agency Nursing,Bridgnorth Hospital Inpatient Ward,THORNBURY NURSING SERVICES LTD,2957382,653.54,676 2854 93
Department of Health,CT Revenue Funds,02/07/2015,Agency Nursing,Bridgnorth Hospital Inpatient Ward,THORNBURY NURSING SERVICES LTD,2952227,697.55,676 2854 93
Department of Health,CT Revenue Funds,02/07/2015,Agency Nursing,Bridgnorth Hospital Inpatient Ward,THORNBURY NURSING SERVICES LTD,2952225,728.32,676 2854 93
Department of Health,CT Revenue Funds,02/07/2015,Agency Nursing,Ludlow Hospital Inpatient Wards,THORNBURY NURSING SERVICES LTD,2952956,728.42,676 2854 93
Department of Health,CT Revenue Funds,02/07/2015,Agency Nursing,Whitchurch Hospital Inpatient Ward,THORNBURY NURSING SERVICES LTD,2945289,734.02,676 2854 93
Department of Health,CT Revenue Funds,02/07/2015,Agency Nursing,Ludlow Hospital Inpatient Wards,THORNBURY NURSING SERVICES LTD,2948871,738.22,676 2854 93
Department of Health,CT Revenue Funds,02/07/2015,Agency Nursing,CAMHS Team (T&W),HCL SOCIAL CARE,HSOC5416545,743.09,
Department of Health,CT Revenue Funds,02/07/2015,Agency Nursing,Ludlow Hospital Inpatient Wards,THORNBURY NURSING SERVICES LTD,2957561,746.06,676 2854 93
Department of Health,CT Revenue Funds,02/07/2015,Agency Nursing,Bishops Castle Hospital Inpatient Ward,THORNBURY NURSING SERVICES LTD,2950335,746.9,676 2854 93
Department of Health,CT Revenue Funds,02/07/2015,Agency Nursing,Ludlow Hospital Inpatient Wards,THORNBURY NURSING SERVICES LTD,2930995,748.58,676 2854 93
Department of Health,CT Revenue Funds,02/07/2015,Agency Nursing,Whitchurch Hospital Inpatient Ward,ID MEDICAL,8095,760,733 7385 18
Department of Health,CT Revenue Funds,02/07/2015,Agency Nursing,Whitchurch Hospital Inpatient Ward,ID MEDICAL,8098,760,733 7385 18
Department of Health,CT Revenue Funds,02/07/2015,Agency Nursing,Whitchurch Hospital Inpatient Ward,ID MEDICAL,8097,810,733 7385 18
Department of Health,CT Revenue Funds,02/07/2015,Agency Nursing,Stoke Heath Prison Healthcare,SANCTUARY PERSONNEL LTD,00410040,834,
Department of Health,CT Revenue Funds,02/07/2015,Agency Nursing,Ludlow Hospital Inpatient Wards,ID MEDICAL,7848,840,733 7385 18
Department of Health,CT Revenue Funds,02/07/2015,Agency Nursing,Bridgnorth Hospital Inpatient Ward,THORNBURY NURSING SERVICES LTD,2952224,844.56,676 2854 93
Department of Health,CT Revenue Funds,02/07/2015,Agency Nursing,Ludlow Hospital Inpatient Wards,ID MEDICAL,337742,935.25,733 7385 18
Department of Health,CT Revenue Funds,02/07/2015,Agency Nursing,Stoke Heath Prison Healthcare,MEDACS HEALTHCARE SERVICES PLC,604-735248,940.37,745 7310 30
Department of Health,CT Revenue Funds,02/07/2015,Agency Nursing,Bridgnorth Hospital Inpatient Ward,THORNBURY NURSING SERVICES LTD,2957380,953.61,676 2854 93
Department of Health,CT Revenue Funds,02/07/2015,Agency Nursing,Ludlow Hospital Inpatient Wards,ID MEDICAL,8067,1053,733 7385 18
Department of Health,CT Revenue Funds,02/07/2015,Agency Nursing,Shropshire CAMHS Team,SANCTUARY PERSONNEL LTD,00413182,1218.75,
Department of Health,CT Revenue Funds,02/07/2015,Agency Nursing,Ludlow Hospital Inpatient Wards,ID MEDICAL,8062,1220,733 7385 18
Department of Health,CT Revenue Funds,02/07/2015,Agency Nursing,Shropshire CAMHS Team,JCJ LTD,SWP5417701,1560,
Department of Health,CT Revenue Funds,02/07/2015,Agency Nursing,Stoke Heath Prison Healthcare,VIP NURSING LTD,59129,1564.07,
Department of Health,CT Revenue Funds,02/07/2015,Agency Nursing,Shropshire Primary CAMHS Service,HCL SOCIAL CARE,HSOC5416024,1574.08,
Department of Health,CT Revenue Funds,02/07/2015,Agency Nursing,Shropshire CAMHS Team,HCL SOCIAL CARE,HSOC5417655,1627.12,
Department of Health,CT Revenue Funds,02/07/2015,Agency Nursing,Bishops Castle Hospital Inpatient Ward,ID MEDICAL,8021,1681.5,733 7385 18
Department of Health,CT Revenue Funds,02/07/2015,Agency Nursing,Stoke Heath Prison Healthcare,VIP NURSING LTD,60786,2091.51,
Department of Health,CT Revenue Funds,02/07/2015,Agency Nursing,Shropshire CAMHS Team,SUGARMAN GROUP LTD,TM307352,2318.8,
Department of Health,CT Revenue Funds,02/07/2015,Agency Nursing,Ludlow Hospital Inpatient Wards,ID MEDICAL,8050,2740,733 7385 18
Department of Health,CT Revenue Funds,02/07/2015,Agency Nursing,Whitchurch Hospital Inpatient Ward,ID MEDICAL,8085,2740,733 7385 18
Department of Health,CT Revenue Funds,02/07/2015,Agency PAMs,North East Shropshire Interdisciplinary Teams,SEVEN RESOURCING LTD,113962,53.6,
Department of Health,CT Revenue Funds,02/07/2015,Agency PAMs,Single Point of Referral,SEVEN RESOURCING LTD,113962,63.8,
Department of Health,CT Revenue Funds,02/07/2015,Agency PAMs,Therapy Winter Monies,LONDON TEACHING POOL LTD,535080,179.18,
Department of Health,CT Revenue Funds,02/07/2015,Agency PAMs,Ludlow Hospital Physiotherapy,LONDON TEACHING POOL LTD,535264,239.7,
Department of Health,CT Revenue Funds,02/07/2015,Agency PAMs,North East Shropshire Interdisciplinary Teams,SEVEN RESOURCING LTD,113962,268.01,
Department of Health,CT Revenue Funds,02/07/2015,Agency PAMs,Shropshire CAMHS Team,PULSE,2940429,283.58,676 2854 93
Department of Health,CT Revenue Funds,02/07/2015,Agency PAMs,Shropshire CAMHS Team,PULSE,2953398,283.58,676 2854 93
Department of Health,CT Revenue Funds,02/07/2015,Agency PAMs,Ludlow Hospital Occupational Therapy,SEVEN RESOURCING LTD,114076,318.34,
Department of Health,CT Revenue Funds,02/07/2015,Agency PAMs,Single Point of Referral,SEVEN RESOURCING LTD,113962,318.99,
Department of Health,CT Revenue Funds,02/07/2015,Agency PAMs,Therapy Winter Monies,LONDON TEACHING POOL LTD,535080,895.88,
Department of Health,CT Revenue Funds,02/07/2015,Agency PAMs,Ludlow Hospital Physiotherapy,LONDON TEACHING POOL LTD,535264,1198.5,
Department of Health,CT Revenue Funds,02/07/2015,Agency PAMs,Shropshire CAMHS Team,PULSE,2940429,1417.88,676 2854 93
Department of Health,CT Revenue Funds,02/07/2015,Agency PAMs,Shropshire CAMHS Team,PULSE,2953398,1417.88,676 2854 93
Department of Health,CT Revenue Funds,02/07/2015,Agency PAMs,Ludlow Hospital Occupational Therapy,SEVEN RESOURCING LTD,114076,1591.68,
Department of Health,CT Revenue Funds,02/07/2015,AMICUS,Payables,UNITE THE UNION,QTR END JUN15,450.3,
Department of Health,CT Revenue Funds,02/07/2015,ANAES : Accessories & Equipment,Ludlow Hospital Inpatient Wards,NHS SUPPLY CHAIN,1016053559,-0.01,654 4347 29
Department of Health,CT Revenue Funds,02/07/2015,ANAES : Accessories & Equipment,Community Childrens Nurses,NHS SUPPLY CHAIN,1016053559,-0.01,654 4347 29
Department of Health,CT Revenue Funds,02/07/2015,ANAES : Accessories & Equipment,Community Childrens Nurses,NHS SUPPLY CHAIN,1016053559,0.01,654 4347 29
Department of Health,CT Revenue Funds,02/07/2015,ANAES : Accessories & Equipment,Community Childrens Nurses,NHS SUPPLY CHAIN,1016053559,0.02,654 4347 29
Department of Health,CT Revenue Funds,02/07/2015,ANAES : Accessories & Equipment,Community Childrens Nurses,NHS SUPPLY CHAIN,1016053559,0.08,654 4347 29
Department of Health,CT Revenue Funds,02/07/2015,ANAES : Accessories & Equipment,Community Childrens Nurses,NHS SUPPLY CHAIN,1016053559,0.1,654 4347 29
Department of Health,CT Revenue Funds,02/07/2015,ANAES : Accessories & Equipment,Ludlow Hospital Inpatient Wards,NHS SUPPLY CHAIN,1016053559,0.38,654 4347 29
Department of Health,CT Revenue Funds,02/07/2015,ANAES : Accessories & Equipment,Community Childrens Nurses,NHS SUPPLY CHAIN,1016053559,0.4,654 4347 29
Department of Health,CT Revenue Funds,02/07/2015,ANAES : Accessories & Equipment,Ludlow Hospital Inpatient Wards,NHS SUPPLY CHAIN,1016053559,0.51,654 4347 29
Department of Health,CT Revenue Funds,02/07/2015,ANAES : Accessories & Equipment,Ludlow Hospital Inpatient Wards,NHS SUPPLY CHAIN,1016053559,1.88,654 4347 29
Department of Health,CT Revenue Funds,02/07/2015,ANAES : Accessories & Equipment,Oswestry Minor Injuries Unit,NHS SUPPLY CHAIN,1016053559,1.9,654 4347 29
Department of Health,CT Revenue Funds,02/07/2015,ANAES : Accessories & Equipment,Ludlow Hospital Inpatient Wards,NHS SUPPLY CHAIN,1016053559,2.55,654 4347 29
Department of Health,CT Revenue Funds,02/07/2015,ANAES : Accessories & Equipment,Community Childrens Nurses,NHS SUPPLY CHAIN,1016053559,2.96,654 4347 29
Department of Health,CT Revenue Funds,02/07/2015,ANAES : Accessories & Equipment,Community Childrens Nurses,RESMED (UK) LTD,2000015562,3.2,945 6405 08
Department of Health,CT Revenue Funds,02/07/2015,ANAES : Accessories & Equipment,Ludlow Hospital Minor Injuries Unit,BUNZL HEALTHCARE,OP/I441635,4.24,286 0142 66
Department of Health,CT Revenue Funds,02/07/2015,ANAES : Accessories & Equipment,Community Childrens Nurses,NHS SUPPLY CHAIN,1016053559,9.2,654 4347 29
Department of Health,CT Revenue Funds,02/07/2015,ANAES : Accessories & Equipment,Oswestry Minor Injuries Unit,NHS SUPPLY CHAIN,1016053559,9.48,654 4347 29
Department of Health,CT Revenue Funds,02/07/2015,ANAES : Accessories & Equipment,Community Childrens Nurses,NHS SUPPLY CHAIN,1016053559,11.99,654 4347 29
Department of Health,CT Revenue Funds,02/07/2015,ANAES : Accessories & Equipment,Community Childrens Nurses,NHS SUPPLY CHAIN,1016053559,12.18,654 4347 29
Department of Health,CT Revenue Funds,02/07/2015,ANAES : Accessories & Equipment,Community Childrens Nurses,NHS SUPPLY CHAIN,1016053559,14.78,654 4347 29
Department of Health,CT Revenue Funds,02/07/2015,ANAES : Accessories & Equipment,Community Childrens Nurses,NHS SUPPLY CHAIN,1016053559,15.31,654 4347 29
Department of Health,CT Revenue Funds,02/07/2015,ANAES : Accessories & Equipment,Community Childrens Nurses,RESMED (UK) LTD,2000015562,16,945 6405 08
Department of Health,CT Revenue Funds,02/07/2015,ANAES : Accessories & Equipment,Community Childrens Nurses,NHS SUPPLY CHAIN,1016053559,16.33,654 4347 29
Department of Health,CT Revenue Funds,02/07/2015,ANAES : Accessories & Equipment,Community Childrens Nurses,NHS SUPPLY CHAIN,1016053559,18.4,654 4347 29
Department of Health,CT Revenue Funds,02/07/2015,ANAES : Accessories & Equipment,Ludlow Hospital Minor Injuries Unit,BUNZL HEALTHCARE,OP/I441635,21.18,286 0142 66
Department of Health,CT Revenue Funds,02/07/2015,ANAES : Accessories & Equipment,Community Childrens Nurses,NHS SUPPLY CHAIN,1016053559,23.96,654 4347 29
Department of Health,CT Revenue Funds,02/07/2015,ANAES : Accessories & Equipment,Community Childrens Nurses,PLATON MEDICAL LTD,79484,26.52,
Department of Health,CT Revenue Funds,02/07/2015,ANAES : Accessories & Equipment,Community Childrens Nurses,NHS SUPPLY CHAIN,1016053559,45.99,654 4347 29
Department of Health,CT Revenue Funds,02/07/2015,ANAES : Accessories & Equipment,Community Childrens Nurses,NHS SUPPLY CHAIN,1016053559,48.72,654 4347 29
Department of Health,CT Revenue Funds,02/07/2015,ANAES : Accessories & Equipment,Community Childrens Nurses,NHS SUPPLY CHAIN,1016053559,59.96,654 4347 29
Department of Health,CT Revenue Funds,02/07/2015,ANAES : Accessories & Equipment,Community Childrens Nurses,NHS SUPPLY CHAIN,1016053559,60.9,654 4347 29
Department of Health,CT Revenue Funds,02/07/2015,ANAES : Accessories & Equipment,Community Childrens Nurses,NHS SUPPLY CHAIN,1016053559,76.56,654 4347 29
Department of Health,CT Revenue Funds,02/07/2015,ANAES : Accessories & Equipment,Community Childrens Nurses,NHS SUPPLY CHAIN,1016053559,81.63,654 4347 29
Department of Health,CT Revenue Funds,02/07/2015,ANAES : Accessories & Equipment,Community Childrens Nurses,NHS SUPPLY CHAIN,1016053559,91.98,654 4347 29
Department of Health,CT Revenue Funds,02/07/2015,ANAES : Accessories & Equipment,Community Childrens Nurses,NHS SUPPLY CHAIN,1016053559,119.78,654 4347 29
Department of Health,CT Revenue Funds,02/07/2015,ANAES : Accessories & Equipment,Community Childrens Nurses,PLATON MEDICAL LTD,79484,132.6,
Department of Health,CT Revenue Funds,02/07/2015,ANAES : Accessories & Equipment,Community Childrens Nurses,NHS SUPPLY CHAIN,1016053559,243.6,654 4347 29
Department of Health,CT Revenue Funds,02/07/2015,Analysers,Single Point of Referral,NHS SUPPLY CHAIN,1016053559,-0.01,654 4347 29
Department of Health,CT Revenue Funds,02/07/2015,Analysers,South West Interdisciplinary Teams,NHS SUPPLY CHAIN,1016053559,0.01,654 4347 29
Department of Health,CT Revenue Funds,02/07/2015,Analysers,Single Point of Referral,NHS SUPPLY CHAIN,1016053559,0.45,654 4347 29
Department of Health,CT Revenue Funds,02/07/2015,Analysers,Oswestry DAART,NHS SUPPLY CHAIN,1016053559,1.04,654 4347 29
Department of Health,CT Revenue Funds,02/07/2015,Analysers,South West Interdisciplinary Teams,NHS SUPPLY CHAIN,1016053559,1.8,654 4347 29
Department of Health,CT Revenue Funds,02/07/2015,Analysers,South West Interdisciplinary Teams,NHS SUPPLY CHAIN,1016053559,1.8,654 4347 29
Department of Health,CT Revenue Funds,02/07/2015,Analysers,Single Point of Referral,NHS SUPPLY CHAIN,1016053559,2.24,654 4347 29
Department of Health,CT Revenue Funds,02/07/2015,Analysers,Oswestry DAART,NHS SUPPLY CHAIN,1016053559,5.18,654 4347 29
Department of Health,CT Revenue Funds,02/07/2015,Analysers,South West Interdisciplinary Teams,NHS SUPPLY CHAIN,1016053559,8.31,654 4347 29
Department of Health,CT Revenue Funds,02/07/2015,Analysers,South West Interdisciplinary Teams,NHS SUPPLY CHAIN,1016053559,9.02,654 4347 29
Department of Health,CT Revenue Funds,02/07/2015,Analysers,South West Interdisciplinary Teams,NHS SUPPLY CHAIN,1016053559,9.02,654 4347 29
Department of Health,CT Revenue Funds,02/07/2015,Analysers,South West Interdisciplinary Teams,NHS SUPPLY CHAIN,1016053559,41.52,654 4347 29
Department of Health,CT Revenue Funds,02/07/2015,Audit Fees : Statutory,Finance Directorate Management,GRANT THORNTON,8386372,2250,
Department of Health,CT Revenue Funds,02/07/2015,Audit Fees : Statutory,Finance Directorate Management,GRANT THORNTON,8386372,11250,
Department of Health,CT Revenue Funds,02/07/2015,Bags Sacks,Ludlow Hospital Hotel Services,NHS SUPPLY CHAIN,1016053559,-0.05,654 4347 29
Department of Health,CT Revenue Funds,02/07/2015,Bags Sacks,Bishops Castle Hospital Inpatient Ward,NHS SUPPLY CHAIN,1016053559,-0.03,654 4347 29
Department of Health,CT Revenue Funds,02/07/2015,Bags Sacks,Ludlow Hospital Hotel Services,NHS SUPPLY CHAIN,1016053559,-0.03,654 4347 29
Department of Health,CT Revenue Funds,02/07/2015,Bags Sacks,Whitchurch Hospital Inpatient Ward,NHS SUPPLY CHAIN,1016053559,-0.02,654 4347 29
Department of Health,CT Revenue Funds,02/07/2015,Bags Sacks,Whitchurch Hospital Minor Injuries Unit,NHS SUPPLY CHAIN,1016053559,-0.01,654 4347 29
Department of Health,CT Revenue Funds,02/07/2015,Bags Sacks,Bishops Castle Hospital Inpatient Ward,NHS SUPPLY CHAIN,1016053559,-0.01,654 4347 29
Department of Health,CT Revenue Funds,02/07/2015,Bags Sacks,Ludlow Hospital Hotel Services,NHS SUPPLY CHAIN,1016053559,-0.01,654 4347 29
Department of Health,CT Revenue Funds,02/07/2015,Bags Sacks,Ludlow Hospital Hotel Services,NHS SUPPLY CHAIN,1016053559,-0.01,654 4347 29
Department of Health,CT Revenue Funds,02/07/2015,Bags Sacks,Bishops Castle Hospital Inpatient Ward,NHS SUPPLY CHAIN,1016053559,0.01,654 4347 29
Department of Health,CT Revenue Funds,02/07/2015,Bags Sacks,Ludlow Hospital Inpatient Wards,NHS SUPPLY CHAIN,1016053559,0.01,654 4347 29
Department of Health,CT Revenue Funds,02/07/2015,Bags Sacks,Ludlow Hospital Hotel Services,NHS SUPPLY CHAIN,1016053559,0.01,654 4347 29
Department of Health,CT Revenue Funds,02/07/2015,Bags Sacks,Ludlow Hospital Hotel Services,NHS SUPPLY CHAIN,1016053559,0.01,654 4347 29
Department of Health,CT Revenue Funds,02/07/2015,Bags Sacks,Ludlow Hospital Hotel Services,NHS SUPPLY CHAIN,1016053559,0.04,654 4347 29
Department of Health,CT Revenue Funds,02/07/2015,Bags Sacks,Ludlow Hospital Hotel Services,NHS SUPPLY CHAIN,1016053559,0.05,654 4347 29
Department of Health,CT Revenue Funds,02/07/2015,Bags Sacks,Ludlow Hospital Hotel Services,NHS SUPPLY CHAIN,1016053559,0.05,654 4347 29
Department of Health,CT Revenue Funds,02/07/2015,Bags Sacks,Ludlow Hospital Hotel Services,NHS SUPPLY CHAIN,1016053559,0.07,654 4347 29
Department of Health,CT Revenue Funds,02/07/2015,Bags Sacks,Ludlow Hospital Hotel Services,NHS SUPPLY CHAIN,1016053559,0.11,654 4347 29
Department of Health,CT Revenue Funds,02/07/2015,Bags Sacks,Ludlow Hospital Hotel Services,NHS SUPPLY CHAIN,1016053559,0.25,654 4347 29
Department of Health,CT Revenue Funds,02/07/2015,Bags Sacks,Podiatry Services,NHS SUPPLY CHAIN,1016053559,0.29,654 4347 29
Department of Health,CT Revenue Funds,02/07/2015,Bags Sacks,Ludlow Hospital Hotel Services,NHS SUPPLY CHAIN,1016053559,0.33,654 4347 29
Department of Health,CT Revenue Funds,02/07/2015,Bags Sacks,Ludlow Hospital Hotel Services,NHS SUPPLY CHAIN,1016053559,0.54,654 4347 29
Department of Health,CT Revenue Funds,02/07/2015,Bags Sacks,Whitchurch Hospital Minor Injuries Unit,NHS SUPPLY CHAIN,1016053559,0.76,654 4347 29
Department of Health,CT Revenue Funds,02/07/2015,Bags Sacks,South West Interdisciplinary Teams,NHS SUPPLY CHAIN,1016053559,0.87,654 4347 29
Department of Health,CT Revenue Funds,02/07/2015,Bags Sacks,Ludlow Hospital Hotel Services,NHS SUPPLY CHAIN,1016053559,1.35,654 4347 29
Department of Health,CT Revenue Funds,02/07/2015,Bags Sacks,Bridgnorth Hospital Inpatient Ward,NHS SUPPLY CHAIN,1016053559,1.39,654 4347 29
Department of Health,CT Revenue Funds,02/07/2015,Bags Sacks,Podiatry Services,NHS SUPPLY CHAIN,1016053559,1.43,654 4347 29
Department of Health,CT Revenue Funds,02/07/2015,Bags Sacks,Whitchurch Hospital Inpatient Ward,NHS SUPPLY CHAIN,1016053559,1.43,654 4347 29
Department of Health,CT Revenue Funds,02/07/2015,Bags Sacks,Ludlow Hospital Hotel Services,NHS SUPPLY CHAIN,1016053559,1.46,654 4347 29
Department of Health,CT Revenue Funds,02/07/2015,Bags Sacks,Ludlow Hospital Inpatient Wards,NHS SUPPLY CHAIN,1016053559,1.51,654 4347 29
Department of Health,CT Revenue Funds,02/07/2015,Bags Sacks,Ludlow Hospital Hotel Services,NHS SUPPLY CHAIN,1016053559,1.64,654 4347 29
Department of Health,CT Revenue Funds,02/07/2015,Bags Sacks,Bishops Castle Hospital Inpatient Ward,NHS SUPPLY CHAIN,1016053559,1.72,654 4347 29
Department of Health,CT Revenue Funds,02/07/2015,Bags Sacks,Whitchurch Hospital Minor Injuries Unit,NHS SUPPLY CHAIN,1016053559,2.01,654 4347 29
Department of Health,CT Revenue Funds,02/07/2015,Bags Sacks,Bishops Castle Hospital Inpatient Ward,NHS SUPPLY CHAIN,1016053559,2.23,654 4347 29
Department of Health,CT Revenue Funds,02/07/2015,Bags Sacks,Ludlow Hospital Hotel Services,NHS SUPPLY CHAIN,1016053559,2.74,654 4347 29
Department of Health,CT Revenue Funds,02/07/2015,Bags Sacks,Ludlow Hospital Hotel Services,NHS SUPPLY CHAIN,1016053559,3.66,654 4347 29
Department of Health,CT Revenue Funds,02/07/2015,Bags Sacks,Whitchurch Hospital Minor Injuries Unit,NHS SUPPLY CHAIN,1016053559,3.78,654 4347 29
Department of Health,CT Revenue Funds,02/07/2015,Bags Sacks,South West Interdisciplinary Teams,NHS SUPPLY CHAIN,1016053559,4.34,654 4347 29
Department of Health,CT Revenue Funds,02/07/2015,Bags Sacks,Ludlow Hospital Hotel Services,NHS SUPPLY CHAIN,1016053559,6.76,654 4347 29
Department of Health,CT Revenue Funds,02/07/2015,Bags Sacks,Bridgnorth Hospital Inpatient Ward,NHS SUPPLY CHAIN,1016053559,6.96,654 4347 29
Department of Health,CT Revenue Funds,02/07/2015,Bags Sacks,Whitchurch Hospital Inpatient Ward,NHS SUPPLY CHAIN,1016053559,7.15,654 4347 29
Department of Health,CT Revenue Funds,02/07/2015,Bags Sacks,Ludlow Hospital Hotel Services,NHS SUPPLY CHAIN,1016053559,7.32,654 4347 29
Department of Health,CT Revenue Funds,02/07/2015,Bags Sacks,Ludlow Hospital Inpatient Wards,NHS SUPPLY CHAIN,1016053559,7.56,654 4347 29
Department of Health,CT Revenue Funds,02/07/2015,Bags Sacks,Ludlow Hospital Hotel Services,NHS SUPPLY CHAIN,1016053559,8.11,654 4347 29
Department of Health,CT Revenue Funds,02/07/2015,Bags Sacks,Ludlow Hospital Hotel Services,NHS SUPPLY CHAIN,1016053559,8.22,654 4347 29
Department of Health,CT Revenue Funds,02/07/2015,Bags Sacks,Bishops Castle Hospital Inpatient Ward,NHS SUPPLY CHAIN,1016053559,8.58,654 4347 29
Department of Health,CT Revenue Funds,02/07/2015,Bags Sacks,Whitchurch Hospital Minor Injuries Unit,NHS SUPPLY CHAIN,1016053559,10.08,654 4347 29
Department of Health,CT Revenue Funds,02/07/2015,Bags Sacks,Ludlow Hospital Hotel Services,NHS SUPPLY CHAIN,1016053559,10.18,654 4347 29
Department of Health,CT Revenue Funds,02/07/2015,Bags Sacks,Bishops Castle Hospital Inpatient Ward,NHS SUPPLY CHAIN,1016053559,11.16,654 4347 29
Department of Health,CT Revenue Funds,02/07/2015,Bags Sacks,Ludlow Hospital Hotel Services,NHS SUPPLY CHAIN,1016053559,13.7,654 4347 29
Department of Health,CT Revenue Funds,02/07/2015,Bags Sacks,Ludlow Hospital Hotel Services,NHS SUPPLY CHAIN,1016053559,18.3,654 4347 29
Department of Health,CT Revenue Funds,02/07/2015,Bags Sacks,Ludlow Hospital Hotel Services,NHS SUPPLY CHAIN,1016053559,40.56,654 4347 29
Department of Health,CT Revenue Funds,02/07/2015,Bags Sacks,Ludlow Hospital Hotel Services,NHS SUPPLY CHAIN,1016053559,50.88,654 4347 29
Department of Health,CT Revenue Funds,02/07/2015,Bed Accessories,Community Equipment Stores,HOSPITAL DIRECT (MARKETING) LTD,50299,11,752 7823 12
Department of Health,CT Revenue Funds,02/07/2015,Bed Accessories,Community Equipment Stores,SIDHIL LTD,574251,18.2,461 1277 66
Department of Health,CT Revenue Funds,02/07/2015,Bed Accessories,Community Equipment Stores,ROMA MEDICAL AIDS LTD,556543,48.4,763 0039 51
Department of Health,CT Revenue Funds,02/07/2015,Bed Accessories,Community Equipment Stores,HOSPITAL DIRECT (MARKETING) LTD,50299,55,752 7823 12
Department of Health,CT Revenue Funds,02/07/2015,Bed Accessories,Community Equipment Stores,SIDHIL LTD,574251,91,461 1277 66
Department of Health,CT Revenue Funds,02/07/2015,Bed Accessories,Community Equipment Stores,HANDICARE LTD,SIN417655,160,
Department of Health,CT Revenue Funds,02/07/2015,Bed Accessories,Community Equipment Stores,ROMA MEDICAL AIDS LTD,556543,242,763 0039 51
Department of Health,CT Revenue Funds,02/07/2015,Bed Accessories,Community Equipment Stores,FRONTIER THERAPEUTICS,416515,336.96,700 8536 57
Department of Health,CT Revenue Funds,02/07/2015,Bed Accessories,Community Equipment Stores,HANDICARE LTD,SIN417655,800,
Department of Health,CT Revenue Funds,02/07/2015,Bed Accessories,Community Equipment Stores,FRONTIER THERAPEUTICS,416515,1684.8,700 8536 57
Department of Health,CT Revenue Funds,02/07/2015,Bedding & Linen : Non-Disposable,Continence Services,NHS SUPPLY CHAIN,1016053559,-0.4,654 4347 29
Department of Health,CT Revenue Funds,02/07/2015,Bedding & Linen : Non-Disposable,Continence Services,NHS SUPPLY CHAIN,1016053559,-0.08,654 4347 29
Department of Health,CT Revenue Funds,02/07/2015,Bedding & Linen : Non-Disposable,Bridgnorth Hospital Inpatient Ward,NHS SUPPLY CHAIN,1016053559,0.01,654 4347 29
Department of Health,CT Revenue Funds,02/07/2015,Bedding & Linen : Non-Disposable,Bishops Castle Hospital Inpatient Ward,NHS SUPPLY CHAIN,1016053559,0.01,654 4347 29
Department of Health,CT Revenue Funds,02/07/2015,Bedding & Linen : Non-Disposable,Continence Services,NHS SUPPLY CHAIN,1016053559,0.03,654 4347 29
Department of Health,CT Revenue Funds,02/07/2015,Bedding & Linen : Non-Disposable,Continence Services,NHS SUPPLY CHAIN,1016053559,0.13,654 4347 29
Department of Health,CT Revenue Funds,02/07/2015,Bedding & Linen : Non-Disposable,Whitchurch Hospital Inpatient Ward,NHS SUPPLY CHAIN,1016053559,1.23,654 4347 29
Department of Health,CT Revenue Funds,02/07/2015,Bedding & Linen : Non-Disposable,Bishops Castle Hospital Inpatient Ward,NHS SUPPLY CHAIN,1016053559,2.01,654 4347 29
Department of Health,CT Revenue Funds,02/07/2015,Bedding & Linen : Non-Disposable,Bishops Castle Hospital Inpatient Ward,NHS SUPPLY CHAIN,1016053559,2.05,654 4347 29
Department of Health,CT Revenue Funds,02/07/2015,Bedding & Linen : Non-Disposable,Bridgnorth Hospital Inpatient Ward,NHS SUPPLY CHAIN,1016053559,3.91,654 4347 29
Department of Health,CT Revenue Funds,02/07/2015,Bedding & Linen : Non-Disposable,Whitchurch Hospital Inpatient Ward,NHS SUPPLY CHAIN,1016053559,6.13,654 4347 29
Department of Health,CT Revenue Funds,02/07/2015,Bedding & Linen : Non-Disposable,Bishops Castle Hospital Inpatient Ward,NHS SUPPLY CHAIN,1016053559,10.06,654 4347 29
Department of Health,CT Revenue Funds,02/07/2015,Bedding & Linen : Non-Disposable,Bishops Castle Hospital Inpatient Ward,NHS SUPPLY CHAIN,1016053559,10.23,654 4347 29
Department of Health,CT Revenue Funds,02/07/2015,Bedding & Linen : Non-Disposable,Bridgnorth Hospital Inpatient Ward,NHS SUPPLY CHAIN,1016053559,19.56,654 4347 29
Department of Health,CT Revenue Funds,02/07/2015,Bedding & Linen : Non-Disposable,Continence Services,NHS SUPPLY CHAIN,1016053559,140.64,654 4347 29
Department of Health,CT Revenue Funds,02/07/2015,Bedding & Linen : Non-Disposable,Continence Services,NHS SUPPLY CHAIN,1016053559,163.68,654 4347 29
Department of Health,CT Revenue Funds,02/07/2015,Bedding & Linen : Non-Disposable,Continence Services,NHS SUPPLY CHAIN,1016053559,703.2,654 4347 29
Department of Health,CT Revenue Funds,02/07/2015,Bedding & Linen : Non-Disposable,Continence Services,NHS SUPPLY CHAIN,1016053559,818.4,654 4347 29
Department of Health,CT Revenue Funds,02/07/2015,Bedpans & Urinals,Bridgnorth Hospital Inpatient Ward,VERNACARE LTD,OP/I372172,47.52,498 0975 81
Department of Health,CT Revenue Funds,02/07/2015,Bedpans & Urinals,Bridgnorth Hospital Inpatient Ward,VERNACARE LTD,OP/I372172,237.6,498 0975 81
Department of Health,CT Revenue Funds,02/07/2015,Beds,Community Equipment Stores,SIDHIL LTD,574249,1070,461 1277 66
Department of Health,CT Revenue Funds,02/07/2015,Beds,Community Equipment Stores,SIDHIL LTD,574417,1070,461 1277 66
Department of Health,CT Revenue Funds,02/07/2015,Beds,Community Equipment Stores,SIDHIL LTD,574249,5350,461 1277 66
Department of Health,CT Revenue Funds,02/07/2015,Beds,Community Equipment Stores,SIDHIL LTD,574417,5350,461 1277 66
Department of Health,CT Revenue Funds,02/07/2015,Beverages,Chairman and Chief Executives Office,NHS SUPPLY CHAIN,1016053559,10.26,654 4347 29
Department of Health,CT Revenue Funds,02/07/2015,Beverages,Chairman and Chief Executives Office,NHS SUPPLY CHAIN,1016053559,10.67,654 4347 29
Department of Health,CT Revenue Funds,02/07/2015,Beverages,Whitchurch Hospital Catering,NHS SUPPLY CHAIN,1016053559,23.4,654 4347 29
Department of Health,CT Revenue Funds,02/07/2015,Beverages,Whitchurch Hospital Catering,NHS SUPPLY CHAIN,1016053559,47.58,654 4347 29
Department of Health,CT Revenue Funds,02/07/2015,Blood Products,South West Interdisciplinary Teams,ROCHE DIAGNOSTICS LTD,6570469280,26.88,684 4244 18
Department of Health,CT Revenue Funds,02/07/2015,Blood Products,South West Interdisciplinary Teams,ROCHE DIAGNOSTICS LTD,6570469280,134.39,684 4244 18
Department of Health,CT Revenue Funds,02/07/2015,"Books, Journals & Subscriptions",Shropshire FNP,HARLOW PRINTING LTD,598354,-41.7,
Department of Health,CT Revenue Funds,02/07/2015,"Books, Journals & Subscriptions",Shropshire Community Paediatric Medical Staff,BAAF,PF131626,-2,
Department of Health,CT Revenue Funds,02/07/2015,"Books, Journals & Subscriptions",Shropshire FNP,BLACKWELLS BOOKSHOP,00149732,0.13,532 5855 39
Department of Health,CT Revenue Funds,02/07/2015,"Books, Journals & Subscriptions",Shropshire Community Paediatric Medical Staff,BAAF,PF131626,2,
Department of Health,CT Revenue Funds,02/07/2015,"Books, Journals & Subscriptions",Shropshire Community Paediatric Medical Staff,BAAF,PF131626,7.5,
Department of Health,CT Revenue Funds,02/07/2015,"Books, Journals & Subscriptions",Shropshire Community Paediatric Medical Staff,BAAF,PF131626,10,
Department of Health,CT Revenue Funds,02/07/2015,"Books, Journals & Subscriptions",Shropshire Community Paediatric Medical Staff,BAAF,PF131626,23.9,
Department of Health,CT Revenue Funds,02/07/2015,"Books, Journals & Subscriptions",Shropshire FNP,HARLOW PRINTING LTD,598354,41.7,
Department of Health,CT Revenue Funds,02/07/2015,"Books, Journals & Subscriptions",Shropshire FNP,HARLOW PRINTING LTD,598354,208.5,
Department of Health,CT Revenue Funds,02/07/2015,"Books, Journals & Subscriptions",Shropshire FNP,BLACKWELLS BOOKSHOP,00149732,224.5,532 5855 39
Department of Health,CT Revenue Funds,02/07/2015,Buffers Compound Solutions,Bridgnorth Hospital Inpatient Ward,NHS SUPPLY CHAIN,1016053559,1.8,654 4347 29
Department of Health,CT Revenue Funds,02/07/2015,Buffers Compound Solutions,Bishops Castle Hospital Inpatient Ward,NHS SUPPLY CHAIN,1016053559,1.8,654 4347 29
Department of Health,CT Revenue Funds,02/07/2015,Buffers Compound Solutions,Whitchurch Hospital Inpatient Ward,NHS SUPPLY CHAIN,1016053559,3.6,654 4347 29
Department of Health,CT Revenue Funds,02/07/2015,Buffers Compound Solutions,Bridgnorth Hospital Inpatient Ward,NHS SUPPLY CHAIN,1016053559,8.99,654 4347 29
Department of Health,CT Revenue Funds,02/07/2015,Buffers Compound Solutions,Bishops Castle Hospital Inpatient Ward,NHS SUPPLY CHAIN,1016053559,8.99,654 4347 29
Department of Health,CT Revenue Funds,02/07/2015,Buffers Compound Solutions,Whitchurch Hospital Inpatient Ward,NHS SUPPLY CHAIN,1016053559,17.98,654 4347 29
Department of Health,CT Revenue Funds,02/07/2015,Car Parking,South West Interdisciplinary Teams,SHROPSHIRE COUNCIL,11 PERMITS SEE ATTACHED,165,162 3474 72
Department of Health,CT Revenue Funds,02/07/2015,Catering Equipment - Purchase,Whitchurch Hospital Inpatient Ward,NHS SUPPLY CHAIN,1016053559,-0.03,654 4347 29
Department of Health,CT Revenue Funds,02/07/2015,Catering Equipment - Purchase,Whitchurch Hospital Minor Injuries Unit,NHS SUPPLY CHAIN,1016053559,-0.02,654 4347 29
Department of Health,CT Revenue Funds,02/07/2015,Catering Equipment - Purchase,Whitchurch Hospital Inpatient Ward,NHS SUPPLY CHAIN,1016053559,-0.01,654 4347 29
Department of Health,CT Revenue Funds,02/07/2015,Catering Equipment - Purchase,Bridgnorth Hospital Minor Injuries Unit,NHS SUPPLY CHAIN,1016053559,0.25,654 4347 29
Department of Health,CT Revenue Funds,02/07/2015,Catering Equipment - Purchase,Whitchurch Hospital Minor Injuries Unit,NHS SUPPLY CHAIN,1016053559,0.98,654 4347 29
Department of Health,CT Revenue Funds,02/07/2015,Catering Equipment - Purchase,Bridgnorth Hospital Minor Injuries Unit,NHS SUPPLY CHAIN,1016053559,1.23,654 4347 29
Department of Health,CT Revenue Funds,02/07/2015,Catering Equipment - Purchase,Whitchurch Hospital Inpatient Ward,NHS SUPPLY CHAIN,1016053559,1.84,654 4347 29
Department of Health,CT Revenue Funds,02/07/2015,Catering Equipment - Purchase,Whitchurch Hospital Minor Injuries Unit,NHS SUPPLY CHAIN,1016053559,4.92,654 4347 29
Department of Health,CT Revenue Funds,02/07/2015,Catering Equipment - Purchase,Community Nursing Team 5,THE PLASTIC BOX COMPANY LTD,WEB77476,5.6,
Department of Health,CT Revenue Funds,02/07/2015,Catering Equipment - Purchase,Whitchurch Hospital Inpatient Ward,NHS SUPPLY CHAIN,1016053559,9.2,654 4347 29
Department of Health,CT Revenue Funds,02/07/2015,Catering Equipment - Purchase,Community Nursing Team 5,THE PLASTIC BOX COMPANY LTD,WEB77476,10,
Department of Health,CT Revenue Funds,02/07/2015,Catering Equipment - Purchase,Community Nursing Team 5,THE PLASTIC BOX COMPANY LTD,WEB77476,28,
Department of Health,CT Revenue Funds,02/07/2015,Catering Equipment - Purchase,Community Nursing Team 5,THE PLASTIC BOX COMPANY LTD,WEB77476,50,
Department of Health,CT Revenue Funds,02/07/2015,Catering Provisions,Whitchurch Hospital Catering,NHS SUPPLY CHAIN,1016053559,-0.01,654 4347 29
Department of Health,CT Revenue Funds,02/07/2015,Catering Provisions,Whitchurch Hospital Inpatient Ward,NHS SUPPLY CHAIN,1016053559,-0.01,654 4347 29
Department of Health,CT Revenue Funds,02/07/2015,Catering Provisions,Whitchurch Hospital Catering,NHS SUPPLY CHAIN,1016053559,0.01,654 4347 29
Department of Health,CT Revenue Funds,02/07/2015,Catering Provisions,Bridgnorth Hospital Inpatient Ward,NHS SUPPLY CHAIN,1016053559,0.01,654 4347 29
Department of Health,CT Revenue Funds,02/07/2015,Catering Provisions,Whitchurch Hospital Inpatient Ward,NHS SUPPLY CHAIN,1016053559,0.41,654 4347 29
Department of Health,CT Revenue Funds,02/07/2015,Catering Provisions,Bridgnorth Hospital Inpatient Ward,NHS SUPPLY CHAIN,1016053559,0.75,654 4347 29
Department of Health,CT Revenue Funds,02/07/2015,Catering Provisions,Whitchurch Hospital Catering,NHS SUPPLY CHAIN,1016053559,1.01,654 4347 29
Department of Health,CT Revenue Funds,02/07/2015,Catering Provisions,Whitchurch Hospital Inpatient Ward,NHS SUPPLY CHAIN,1016053559,2.04,654 4347 29
Department of Health,CT Revenue Funds,02/07/2015,Catering Provisions,Ludlow Hospital Inpatient Wards,NHS SUPPLY CHAIN,1016053559,2.65,654 4347 29
Department of Health,CT Revenue Funds,02/07/2015,Catering Provisions,Shrewsbury and Atcham DAART,NHS SUPPLY CHAIN,1016053559,3.01,654 4347 29
Department of Health,CT Revenue Funds,02/07/2015,Catering Provisions,Shrewsbury and Atcham DAART,NHS SUPPLY CHAIN,1016053559,3.16,654 4347 29
Department of Health,CT Revenue Funds,02/07/2015,Catering Provisions,Bridgnorth Hospital Inpatient Ward,NHS SUPPLY CHAIN,1016053559,3.72,654 4347 29
Department of Health,CT Revenue Funds,02/07/2015,Catering Provisions,Whitchurch Hospital Catering,NHS SUPPLY CHAIN,1016053559,5.06,654 4347 29
Department of Health,CT Revenue Funds,02/07/2015,Catering Provisions,Whitchurch Hospital Catering,NHS SUPPLY CHAIN,1016053559,5.16,654 4347 29
Department of Health,CT Revenue Funds,02/07/2015,Catering Provisions,Chairman and Chief Executives Office,NHS SUPPLY CHAIN,1016053559,5.4,654 4347 29
Department of Health,CT Revenue Funds,02/07/2015,Catering Provisions,Ludlow Hospital Inpatient Wards,NHS SUPPLY CHAIN,1016053559,5.8,654 4347 29
Department of Health,CT Revenue Funds,02/07/2015,Catering Provisions,Whitchurch Hospital Catering,NHS SUPPLY CHAIN,1016053559,5.94,654 4347 29
Department of Health,CT Revenue Funds,02/07/2015,Catering Provisions,Whitchurch Hospital Catering,NHS SUPPLY CHAIN,1016053559,6.09,654 4347 29
Department of Health,CT Revenue Funds,02/07/2015,Catering Provisions,Whitchurch Hospital Catering,NHS SUPPLY CHAIN,1016053559,8.01,654 4347 29
Department of Health,CT Revenue Funds,02/07/2015,Catering Provisions,Whitchurch Hospital Catering,NHS SUPPLY CHAIN,1016053559,8.12,654 4347 29
Department of Health,CT Revenue Funds,02/07/2015,Catering Provisions,Whitchurch Hospital Catering,BIDVEST FOODSERVICE,61892730,8.51,643 9946 92
Department of Health,CT Revenue Funds,02/07/2015,Catering Provisions,Whitchurch Hospital Catering,NHS SUPPLY CHAIN,1016053559,9.24,654 4347 29
Department of Health,CT Revenue Funds,02/07/2015,Catering Provisions,Whitchurch Hospital Catering,NHS SUPPLY CHAIN,1016053559,9.84,654 4347 29
Department of Health,CT Revenue Funds,02/07/2015,Catering Provisions,Whitchurch Hospital Catering,NHS SUPPLY CHAIN,1016053559,11.64,654 4347 29
Department of Health,CT Revenue Funds,02/07/2015,Catering Provisions,Whitchurch Hospital Catering,NHS SUPPLY CHAIN,1016053559,11.66,654 4347 29
Department of Health,CT Revenue Funds,02/07/2015,Catering Provisions,Whitchurch Hospital Catering,NHS SUPPLY CHAIN,1016053559,13.02,654 4347 29
Department of Health,CT Revenue Funds,02/07/2015,Catering Provisions,Ludlow Hospital Inpatient Wards,NHS SUPPLY CHAIN,1016053559,13.25,654 4347 29
Department of Health,CT Revenue Funds,02/07/2015,Catering Provisions,Whitchurch Hospital Catering,NHS SUPPLY CHAIN,1016053559,13.96,654 4347 29
Department of Health,CT Revenue Funds,02/07/2015,Catering Provisions,Whitchurch Hospital Catering,NHS SUPPLY CHAIN,1016053559,15,654 4347 29
Department of Health,CT Revenue Funds,02/07/2015,Catering Provisions,Whitchurch Hospital Catering,NHS SUPPLY CHAIN,1016053559,15.84,654 4347 29
Department of Health,CT Revenue Funds,02/07/2015,Catering Provisions,Whitchurch Hospital Catering,NHS SUPPLY CHAIN,1016053559,16.24,654 4347 29
Department of Health,CT Revenue Funds,02/07/2015,Catering Provisions,Whitchurch Hospital Catering,NHS SUPPLY CHAIN,1016053559,17.16,654 4347 29
Department of Health,CT Revenue Funds,02/07/2015,Catering Provisions,Whitchurch Hospital Catering,NHS SUPPLY CHAIN,1016053559,17.96,654 4347 29
Department of Health,CT Revenue Funds,02/07/2015,Catering Provisions,Whitchurch Hospital Catering,NHS SUPPLY CHAIN,1016053559,18.84,654 4347 29
Department of Health,CT Revenue Funds,02/07/2015,Catering Provisions,Whitchurch Hospital Catering,NHS SUPPLY CHAIN,1016053559,20.08,654 4347 29
Department of Health,CT Revenue Funds,02/07/2015,Catering Provisions,Whitchurch Hospital Catering,NHS SUPPLY CHAIN,1016053559,20.4,654 4347 29
Department of Health,CT Revenue Funds,02/07/2015,Catering Provisions,Whitchurch Hospital Catering,BIDVEST FOODSERVICE,61995717,21.16,643 9946 92
Department of Health,CT Revenue Funds,02/07/2015,Catering Provisions,Whitchurch Hospital Catering,NHS SUPPLY CHAIN,1016053559,25.44,654 4347 29
Department of Health,CT Revenue Funds,02/07/2015,Catering Provisions,Whitchurch Hospital Catering,NHS SUPPLY CHAIN,1016053559,25.68,654 4347 29
Department of Health,CT Revenue Funds,02/07/2015,Catering Provisions,Whitchurch Hospital Catering,NHS SUPPLY CHAIN,1016053559,26.54,654 4347 29
Department of Health,CT Revenue Funds,02/07/2015,Catering Provisions,Whitchurch Hospital Catering,NHS SUPPLY CHAIN,1016053559,27.6,654 4347 29
Department of Health,CT Revenue Funds,02/07/2015,Catering Provisions,Whitchurch Hospital Catering,NHS SUPPLY CHAIN,1016053559,30.6,654 4347 29
Department of Health,CT Revenue Funds,02/07/2015,Catering Provisions,Whitchurch Hospital Catering,NHS SUPPLY CHAIN,1016053559,34.32,654 4347 29
Department of Health,CT Revenue Funds,02/07/2015,Catering Provisions,Whitchurch Hospital Catering,NHS SUPPLY CHAIN,1016053559,39.52,654 4347 29
Department of Health,CT Revenue Funds,02/07/2015,Catering Provisions,Whitchurch Hospital Catering,NHS SUPPLY CHAIN,1016053559,40.04,654 4347 29
Department of Health,CT Revenue Funds,02/07/2015,Catering Provisions,Whitchurch Hospital Catering,NHS SUPPLY CHAIN,1016053559,40.26,654 4347 29
Department of Health,CT Revenue Funds,02/07/2015,Catering Provisions,Whitchurch Hospital Catering,BIDVEST FOODSERVICE,61892730,42.57,643 9946 92
Department of Health,CT Revenue Funds,02/07/2015,Catering Provisions,Whitchurch Hospital Catering,NHS SUPPLY CHAIN,1016053559,42.72,654 4347 29
Department of Health,CT Revenue Funds,02/07/2015,Catering Provisions,Ludlow Hospital Catering,OLLECO CYMRU,309998,63.8,909 9860 70
Department of Health,CT Revenue Funds,02/07/2015,Catering Provisions,Bridgnorth Hospital Catering,JOHAL DAIRIES LTD,2468134,100.52,101 3075 37
Department of Health,CT Revenue Funds,02/07/2015,Catering Provisions,Bridgnorth Hospital Catering,JOHAL DAIRIES LTD,2472049,105.34,101 3075 37
Department of Health,CT Revenue Funds,02/07/2015,Catering Provisions,Whitchurch Hospital Catering,BIDVEST FOODSERVICE,61995717,105.81,643 9946 92
Department of Health,CT Revenue Funds,02/07/2015,Catering Provisions,Whitchurch Hospital Catering,NHS SUPPLY CHAIN,1016053559,129.16,654 4347 29
Department of Health,CT Revenue Funds,02/07/2015,Catering Provisions,Whitchurch Hospital Catering,BIDVEST FOODSERVICE,61995717,290.33,643 9946 92
Department of Health,CT Revenue Funds,02/07/2015,Catering Provisions,Bridgnorth Hospital Catering,BIDVEST FOODSERVICE,61953803,503.17,643 9946 92
Department of Health,CT Revenue Funds,02/07/2015,Catering Provisions,Whitchurch Hospital Catering,BIDVEST FOODSERVICE,61892730,572.07,643 9946 92
Department of Health,CT Revenue Funds,02/07/2015,Catheters,Ludlow Hospital Inpatient Wards,NHS SUPPLY CHAIN,1016053559,2.15,654 4347 29
Department of Health,CT Revenue Funds,02/07/2015,Catheters,Ludlow Hospital Inpatient Wards,NHS SUPPLY CHAIN,1016053559,10.73,654 4347 29
Department of Health,CT Revenue Funds,02/07/2015,Charity Donations,Payables,CHARITIES TRUST,JUN15,40,
Department of Health,CT Revenue Funds,02/07/2015,Cleaning Equipment,Ludlow Hospital Hotel Services,NISBETS,11171720,-2.2,974 8030 00
Department of Health,CT Revenue Funds,02/07/2015,Cleaning Equipment,Ludlow Hospital Hotel Services,NISBETS,11171720,-0.14,974 8030 00
Department of Health,CT Revenue Funds,02/07/2015,Cleaning Equipment,Ludlow Hospital Hotel Services,NISBETS,11171720,-0.01,974 8030 00
Department of Health,CT Revenue Funds,02/07/2015,Cleaning Equipment,Ludlow Hospital Hotel Services,NISBETS,11171720,0.14,974 8030 00
Department of Health,CT Revenue Funds,02/07/2015,Cleaning Equipment,Ludlow Hospital Hotel Services,NISBETS,11171720,0.14,974 8030 00
Department of Health,CT Revenue Funds,02/07/2015,Cleaning Equipment,Ludlow Hospital Hotel Services,NISBETS,11171720,0.7,974 8030 00
Department of Health,CT Revenue Funds,02/07/2015,Cleaning Equipment,Ludlow Hospital Hotel Services,NISBETS,11171720,2.2,974 8030 00
Department of Health,CT Revenue Funds,02/07/2015,Cleaning Equipment,Ludlow Hospital Hotel Services,NISBETS,11171720,2.2,974 8030 00
Department of Health,CT Revenue Funds,02/07/2015,Cleaning Equipment,Bishops Castle Hospital Domestics,SYR LTD,SI-2022795,5.01,277 2297 28
Department of Health,CT Revenue Funds,02/07/2015,Cleaning Equipment,Bishops Castle Hospital Domestics,SYR LTD,SI-2022795,5.01,277 2297 28
Department of Health,CT Revenue Funds,02/07/2015,Cleaning Equipment,Bishops Castle Hospital Domestics,SYR LTD,SI-2022795,5.01,277 2297 28
Department of Health,CT Revenue Funds,02/07/2015,Cleaning Equipment,Ludlow Hospital Hotel Services,NISBETS,11171720,10.99,974 8030 00
Department of Health,CT Revenue Funds,02/07/2015,Cleaning Equipment,Bishops Castle Hospital Domestics,SYR LTD,SI-2022795,25.05,277 2297 28
Department of Health,CT Revenue Funds,02/07/2015,Cleaning Equipment,Bishops Castle Hospital Domestics,SYR LTD,SI-2022795,25.05,277 2297 28
Department of Health,CT Revenue Funds,02/07/2015,Cleaning Equipment,Bishops Castle Hospital Domestics,SYR LTD,SI-2022795,25.05,277 2297 28
Department of Health,CT Revenue Funds,02/07/2015,Cleaning Materials,Whitchurch Hospital Hotel Services,NHS SUPPLY CHAIN,1016053559,-0.03,654 4347 29
Department of Health,CT Revenue Funds,02/07/2015,Cleaning Materials,Bishops Castle Hospital Domestics,NHS SUPPLY CHAIN,1016053559,-0.03,654 4347 29
Department of Health,CT Revenue Funds,02/07/2015,Cleaning Materials,Whitchurch Hospital Hotel Services,NHS SUPPLY CHAIN,1016053559,-0.02,654 4347 29
Department of Health,CT Revenue Funds,02/07/2015,Cleaning Materials,Whitchurch Hospital Hotel Services,NHS SUPPLY CHAIN,1016053559,-0.02,654 4347 29
Department of Health,CT Revenue Funds,02/07/2015,Cleaning Materials,Whitchurch Hospital Inpatient Ward,NHS SUPPLY CHAIN,1016053559,-0.01,654 4347 29
Department of Health,CT Revenue Funds,02/07/2015,Cleaning Materials,Bishops Castle Hospital Domestics,NHS SUPPLY CHAIN,1016053559,-0.01,654 4347 29
Department of Health,CT Revenue Funds,02/07/2015,Cleaning Materials,Ludlow Hospital Hotel Services,NHS SUPPLY CHAIN,1016053559,-0.01,654 4347 29
Department of Health,CT Revenue Funds,02/07/2015,Cleaning Materials,Ludlow Hospital Hotel Services,NHS SUPPLY CHAIN,1016053559,-0.01,654 4347 29
Department of Health,CT Revenue Funds,02/07/2015,Cleaning Materials,Bishops Castle Hospital Domestics,NHS SUPPLY CHAIN,1016053559,-0.01,654 4347 29
Department of Health,CT Revenue Funds,02/07/2015,Cleaning Materials,Whitchurch Hospital Hotel Services,NHS SUPPLY CHAIN,1016053559,-0.01,654 4347 29
Department of Health,CT Revenue Funds,02/07/2015,Cleaning Materials,Ludlow Hospital Hotel Services,NHS SUPPLY CHAIN,1016053559,0.02,654 4347 29
Department of Health,CT Revenue Funds,02/07/2015,Cleaning Materials,Ludlow Hospital Hotel Services,NHS SUPPLY CHAIN,1016053559,0.02,654 4347 29
Department of Health,CT Revenue Funds,02/07/2015,Cleaning Materials,North Telford Health Visitors,NHS SUPPLY CHAIN,1016053559,0.12,654 4347 29
Department of Health,CT Revenue Funds,02/07/2015,Cleaning Materials,Ludlow Hospital Hotel Services,NHS SUPPLY CHAIN,1016053559,0.23,654 4347 29
Department of Health,CT Revenue Funds,02/07/2015,Cleaning Materials,North Telford Health Visitors,NHS SUPPLY CHAIN,1016053559,0.58,654 4347 29
Department of Health,CT Revenue Funds,02/07/2015,Cleaning Materials,Whitchurch Hospital Inpatient Ward,NHS SUPPLY CHAIN,1016053559,0.66,654 4347 29
Department of Health,CT Revenue Funds,02/07/2015,Cleaning Materials,Bishops Castle Hospital Domestics,SYR LTD,SI-2022795,0.9,277 2297 28
Department of Health,CT Revenue Funds,02/07/2015,Cleaning Materials,Bishops Castle Hospital Domestics,SYR LTD,SI-2022795,0.9,277 2297 28
Department of Health,CT Revenue Funds,02/07/2015,Cleaning Materials,Bishops Castle Hospital Domestics,SYR LTD,SI-2022795,0.9,277 2297 28
Department of Health,CT Revenue Funds,02/07/2015,Cleaning Materials,Bishops Castle Hospital Domestics,SYR LTD,SI-2022795,0.9,277 2297 28
Department of Health,CT Revenue Funds,02/07/2015,Cleaning Materials,Whitchurch Hospital Inpatient Ward,NHS SUPPLY CHAIN,1016053559,1.13,654 4347 29
Department of Health,CT Revenue Funds,02/07/2015,Cleaning Materials,Ludlow Hospital Hotel Services,NHS SUPPLY CHAIN,1016053559,1.15,654 4347 29
Department of Health,CT Revenue Funds,02/07/2015,Cleaning Materials,Ludlow Hospital Hotel Services,NHS SUPPLY CHAIN,1016053559,1.17,654 4347 29
Department of Health,CT Revenue Funds,02/07/2015,Cleaning Materials,Bishops Castle Hospital Domestics,NHS SUPPLY CHAIN,1016053559,1.17,654 4347 29
Department of Health,CT Revenue Funds,02/07/2015,Cleaning Materials,Whitchurch Hospital Hotel Services,NHS SUPPLY CHAIN,1016053559,1.24,654 4347 29
Department of Health,CT Revenue Funds,02/07/2015,Cleaning Materials,Bishops Castle Hospital Domestics,SYR LTD,SI-2022795,1.59,277 2297 28
Department of Health,CT Revenue Funds,02/07/2015,Cleaning Materials,Bishops Castle Hospital Domestics,SYR LTD,SI-2022795,1.59,277 2297 28
Department of Health,CT Revenue Funds,02/07/2015,Cleaning Materials,Bishops Castle Hospital Domestics,SYR LTD,SI-2022795,1.59,277 2297 28
Department of Health,CT Revenue Funds,02/07/2015,Cleaning Materials,Bishops Castle Hospital Domestics,SYR LTD,SI-2022795,1.59,277 2297 28
Department of Health,CT Revenue Funds,02/07/2015,Cleaning Materials,Bishops Castle Hospital Domestics,NHS SUPPLY CHAIN,1016053559,1.72,654 4347 29
Department of Health,CT Revenue Funds,02/07/2015,Cleaning Materials,Ludlow Hospital Hotel Services,NHS SUPPLY CHAIN,1016053559,1.88,654 4347 29
Department of Health,CT Revenue Funds,02/07/2015,Cleaning Materials,Ludlow Hospital Hotel Services,NHS SUPPLY CHAIN,1016053559,1.88,654 4347 29
Department of Health,CT Revenue Funds,02/07/2015,Cleaning Materials,Oswestry Minor Injuries Unit,NHS SUPPLY CHAIN,1016053559,2,654 4347 29
Department of Health,CT Revenue Funds,02/07/2015,Cleaning Materials,Ludlow Hospital Hotel Services,NHS SUPPLY CHAIN,1016053559,2.4,654 4347 29
Department of Health,CT Revenue Funds,02/07/2015,Cleaning Materials,Whitchurch Hospital Inpatient Ward,NHS SUPPLY CHAIN,1016053559,3.28,654 4347 29
Department of Health,CT Revenue Funds,02/07/2015,Cleaning Materials,Ludlow Hospital Hotel Services,NHS SUPPLY CHAIN,1016053559,3.78,654 4347 29
Department of Health,CT Revenue Funds,02/07/2015,Cleaning Materials,Whitchurch Hospital Hotel Services,NHS SUPPLY CHAIN,1016053559,3.86,654 4347 29
Department of Health,CT Revenue Funds,02/07/2015,Cleaning Materials,Ludlow Hospital Hotel Services,NHS SUPPLY CHAIN,1016053559,4.47,654 4347 29
Department of Health,CT Revenue Funds,02/07/2015,Cleaning Materials,Bishops Castle Hospital Domestics,SYR LTD,SI-2022795,4.5,277 2297 28
Department of Health,CT Revenue Funds,02/07/2015,Cleaning Materials,Bishops Castle Hospital Domestics,SYR LTD,SI-2022795,4.5,277 2297 28
Department of Health,CT Revenue Funds,02/07/2015,Cleaning Materials,Bishops Castle Hospital Domestics,SYR LTD,SI-2022795,4.5,277 2297 28
Department of Health,CT Revenue Funds,02/07/2015,Cleaning Materials,Bishops Castle Hospital Domestics,SYR LTD,SI-2022795,4.5,277 2297 28
Department of Health,CT Revenue Funds,02/07/2015,Cleaning Materials,Bishops Castle Hospital Domestics,SYR LTD,SI-2022795,5.01,277 2297 28
Department of Health,CT Revenue Funds,02/07/2015,Cleaning Materials,Ludlow Hospital Hotel Services,NHS SUPPLY CHAIN,1016053559,5.33,654 4347 29
Department of Health,CT Revenue Funds,02/07/2015,Cleaning Materials,Whitchurch Hospital Inpatient Ward,NHS SUPPLY CHAIN,1016053559,5.66,654 4347 29
Department of Health,CT Revenue Funds,02/07/2015,Cleaning Materials,Ludlow Hospital Hotel Services,NHS SUPPLY CHAIN,1016053559,5.74,654 4347 29
Department of Health,CT Revenue Funds,02/07/2015,Cleaning Materials,Whitchurch Hospital Hotel Services,NHS SUPPLY CHAIN,1016053559,5.8,654 4347 29
Department of Health,CT Revenue Funds,02/07/2015,Cleaning Materials,Bishops Castle Hospital Domestics,NHS SUPPLY CHAIN,1016053559,5.84,654 4347 29
Department of Health,CT Revenue Funds,02/07/2015,Cleaning Materials,Whitchurch Hospital Hotel Services,NHS SUPPLY CHAIN,1016053559,6.18,654 4347 29
Department of Health,CT Revenue Funds,02/07/2015,Cleaning Materials,Bishops Castle Hospital Domestics,SYR LTD,SI-2022795,7.96,277 2297 28
Department of Health,CT Revenue Funds,02/07/2015,Cleaning Materials,Bishops Castle Hospital Domestics,SYR LTD,SI-2022795,7.96,277 2297 28
Department of Health,CT Revenue Funds,02/07/2015,Cleaning Materials,Bishops Castle Hospital Domestics,SYR LTD,SI-2022795,7.96,277 2297 28
Department of Health,CT Revenue Funds,02/07/2015,Cleaning Materials,Bishops Castle Hospital Domestics,SYR LTD,SI-2022795,7.96,277 2297 28
Department of Health,CT Revenue Funds,02/07/2015,Cleaning Materials,Ludlow Hospital Hotel Services,NHS SUPPLY CHAIN,1016053559,8.1,654 4347 29
Department of Health,CT Revenue Funds,02/07/2015,Cleaning Materials,Bishops Castle Hospital Domestics,NHS SUPPLY CHAIN,1016053559,8.56,654 4347 29
Department of Health,CT Revenue Funds,02/07/2015,Cleaning Materials,Ludlow Hospital Hotel Services,NHS SUPPLY CHAIN,1016053559,9.4,654 4347 29
Department of Health,CT Revenue Funds,02/07/2015,Cleaning Materials,Ludlow Hospital Hotel Services,NHS SUPPLY CHAIN,1016053559,9.4,654 4347 29
Department of Health,CT Revenue Funds,02/07/2015,Cleaning Materials,Oswestry Minor Injuries Unit,NHS SUPPLY CHAIN,1016053559,10,654 4347 29
Department of Health,CT Revenue Funds,02/07/2015,Cleaning Materials,Ludlow Hospital Hotel Services,NHS SUPPLY CHAIN,1016053559,10.56,654 4347 29
Department of Health,CT Revenue Funds,02/07/2015,Cleaning Materials,Ludlow Hospital Hotel Services,NHS SUPPLY CHAIN,1016053559,12,654 4347 29
Department of Health,CT Revenue Funds,02/07/2015,Cleaning Materials,Whitchurch Hospital Hotel Services,NHS SUPPLY CHAIN,1016053559,13.33,654 4347 29
Department of Health,CT Revenue Funds,02/07/2015,Cleaning Materials,Ludlow Hospital Hotel Services,NHS SUPPLY CHAIN,1016053559,18.88,654 4347 29
Department of Health,CT Revenue Funds,02/07/2015,Cleaning Materials,Whitchurch Hospital Hotel Services,NHS SUPPLY CHAIN,1016053559,19.32,654 4347 29
Department of Health,CT Revenue Funds,02/07/2015,Cleaning Materials,Ludlow Hospital Hotel Services,NHS SUPPLY CHAIN,1016053559,22.34,654 4347 29
Department of Health,CT Revenue Funds,02/07/2015,Cleaning Materials,Bishops Castle Hospital Domestics,SYR LTD,SI-2022795,25.05,277 2297 28
Department of Health,CT Revenue Funds,02/07/2015,Cleaning Materials,Ludlow Hospital Hotel Services,NHS SUPPLY CHAIN,1016053559,26.66,654 4347 29
Department of Health,CT Revenue Funds,02/07/2015,Cleaning Materials,Whitchurch Hospital Hotel Services,NHS SUPPLY CHAIN,1016053559,28.98,654 4347 29
Department of Health,CT Revenue Funds,02/07/2015,Cleaning Materials,Ludlow Hospital Hotel Services,NHS SUPPLY CHAIN,1016053559,40.48,654 4347 29
Department of Health,CT Revenue Funds,02/07/2015,Cleaning Materials,Ludlow Hospital Hotel Services,NHS SUPPLY CHAIN,1016053559,52.78,654 4347 29
Department of Health,CT Revenue Funds,02/07/2015,Cleaning Materials,Whitchurch Hospital Hotel Services,NHS SUPPLY CHAIN,1016053559,66.65,654 4347 29
Department of Health,CT Revenue Funds,02/07/2015,"Colostomy, Ileostomy, Urostomy & Incontinence Products",Bridgnorth Hospital Inpatient Ward,NHS SUPPLY CHAIN,1016053559,0.01,654 4347 29
Department of Health,CT Revenue Funds,02/07/2015,"Colostomy, Ileostomy, Urostomy & Incontinence Products",Bridgnorth Hospital Inpatient Ward,NHS SUPPLY CHAIN,1016053559,0.94,654 4347 29
Department of Health,CT Revenue Funds,02/07/2015,"Colostomy, Ileostomy, Urostomy & Incontinence Products",Community Nursing Team 5,NHS SUPPLY CHAIN,1016053559,1.42,654 4347 29
Department of Health,CT Revenue Funds,02/07/2015,"Colostomy, Ileostomy, Urostomy & Incontinence Products",Bridgnorth Hospital Inpatient Ward,NHS SUPPLY CHAIN,1016053559,1.51,654 4347 29
Department of Health,CT Revenue Funds,02/07/2015,"Colostomy, Ileostomy, Urostomy & Incontinence Products",Whitchurch Hospital Inpatient Ward,NHS SUPPLY CHAIN,1016053559,1.76,654 4347 29
Department of Health,CT Revenue Funds,02/07/2015,"Colostomy, Ileostomy, Urostomy & Incontinence Products",Bridgnorth Hospital Inpatient Ward,NHS SUPPLY CHAIN,1016053559,1.85,654 4347 29
Department of Health,CT Revenue Funds,02/07/2015,"Colostomy, Ileostomy, Urostomy & Incontinence Products",Bridgnorth Hospital Inpatient Ward,NHS SUPPLY CHAIN,1016053559,1.85,654 4347 29
Department of Health,CT Revenue Funds,02/07/2015,"Colostomy, Ileostomy, Urostomy & Incontinence Products",Bishops Castle Hospital Inpatient Ward,NHS SUPPLY CHAIN,1016053559,1.88,654 4347 29
Department of Health,CT Revenue Funds,02/07/2015,"Colostomy, Ileostomy, Urostomy & Incontinence Products",Whitchurch Hospital Inpatient Ward,NHS SUPPLY CHAIN,1016053559,2.78,654 4347 29
Department of Health,CT Revenue Funds,02/07/2015,"Colostomy, Ileostomy, Urostomy & Incontinence Products",Bridgnorth Hospital Inpatient Ward,NHS SUPPLY CHAIN,1016053559,4.7,654 4347 29
Department of Health,CT Revenue Funds,02/07/2015,"Colostomy, Ileostomy, Urostomy & Incontinence Products",Community Nursing Team 5,NHS SUPPLY CHAIN,1016053559,7.09,654 4347 29
Department of Health,CT Revenue Funds,02/07/2015,"Colostomy, Ileostomy, Urostomy & Incontinence Products",Bridgnorth Hospital Inpatient Ward,NHS SUPPLY CHAIN,1016053559,7.56,654 4347 29
Department of Health,CT Revenue Funds,02/07/2015,"Colostomy, Ileostomy, Urostomy & Incontinence Products",Whitchurch Hospital Inpatient Ward,NHS SUPPLY CHAIN,1016053559,8.78,654 4347 29
Department of Health,CT Revenue Funds,02/07/2015,"Colostomy, Ileostomy, Urostomy & Incontinence Products",Bridgnorth Hospital Inpatient Ward,NHS SUPPLY CHAIN,1016053559,9.23,654 4347 29
Department of Health,CT Revenue Funds,02/07/2015,"Colostomy, Ileostomy, Urostomy & Incontinence Products",Bridgnorth Hospital Inpatient Ward,NHS SUPPLY CHAIN,1016053559,9.23,654 4347 29
Department of Health,CT Revenue Funds,02/07/2015,"Colostomy, Ileostomy, Urostomy & Incontinence Products",Bishops Castle Hospital Inpatient Ward,NHS SUPPLY CHAIN,1016053559,9.4,654 4347 29
Department of Health,CT Revenue Funds,02/07/2015,"Colostomy, Ileostomy, Urostomy & Incontinence Products",Whitchurch Hospital Inpatient Ward,NHS SUPPLY CHAIN,1016053559,13.92,654 4347 29
Department of Health,CT Revenue Funds,02/07/2015,Communication Aids,Child Speech and Language Therapy,THERAPY BOX,4810,7.8,
Department of Health,CT Revenue Funds,02/07/2015,Communication Aids,Child Speech and Language Therapy,THERAPY BOX,4810,15.8,
Department of Health,CT Revenue Funds,02/07/2015,Communication Aids,Child Speech and Language Therapy,THERAPY BOX,4810,39,
Department of Health,CT Revenue Funds,02/07/2015,Communication Aids,Child Speech and Language Therapy,THERAPY BOX,4810,79,
Department of Health,CT Revenue Funds,02/07/2015,Communication Aids,Child Speech and Language Therapy,THERAPY BOX,4810,898.8,
Department of Health,CT Revenue Funds,02/07/2015,Communication Aids,Child Speech and Language Therapy,THERAPY BOX,4810,4494,
Department of Health,CT Revenue Funds,02/07/2015,Computer Consumables,Finance Directorate Management,NHS SUPPLY CHAIN,1016053559,-1.08,654 4347 29
Department of Health,CT Revenue Funds,02/07/2015,Computer Consumables,Shrewsbury and Atcham North Interdisciplinary Teams,NHS SUPPLY CHAIN,1016053559,-0.02,654 4347 29
Department of Health,CT Revenue Funds,02/07/2015,Computer Consumables,Coral House,NHS SUPPLY CHAIN,1016053559,-0.01,654 4347 29
Department of Health,CT Revenue Funds,02/07/2015,Computer Consumables,Single Point of Referral,NHS SUPPLY CHAIN,1016053559,-0.01,654 4347 29
Department of Health,CT Revenue Funds,02/07/2015,Computer Consumables,Single Point of Referral,NHS SUPPLY CHAIN,1016053559,-0.01,654 4347 29
Department of Health,CT Revenue Funds,02/07/2015,Computer Consumables,Tissue Viability Nurses (T&W),NHS SUPPLY CHAIN,1016053559,-0.01,654 4347 29
Department of Health,CT Revenue Funds,02/07/2015,Computer Consumables,Oswestry Minor Injuries Unit,NHS SUPPLY CHAIN,1016053559,-0.01,654 4347 29
Department of Health,CT Revenue Funds,02/07/2015,Computer Consumables,Quality,NHS SUPPLY CHAIN,1016053559,-0.01,654 4347 29
Department of Health,CT Revenue Funds,02/07/2015,Computer Consumables,Shrewsbury and Atcham North Interdisciplinary Teams,ADVANTAGE BUSINESS SUPPLIES LTD,11/I50750,-0.01,771 8285 01
Department of Health,CT Revenue Funds,02/07/2015,Computer Consumables,Whitchurch Hospital Administration,NHS SUPPLY CHAIN,1016053559,0.01,654 4347 29
Department of Health,CT Revenue Funds,02/07/2015,Computer Consumables,Whitchurch Hospital Administration,NHS SUPPLY CHAIN,1016053559,0.01,654 4347 29
Department of Health,CT Revenue Funds,02/07/2015,Computer Consumables,Whitchurch Hospital Administration,NHS SUPPLY CHAIN,1016053559,0.01,654 4347 29
Department of Health,CT Revenue Funds,02/07/2015,Computer Consumables,Ludlow Hospital Inpatient Wards,NHS SUPPLY CHAIN,1016053559,0.01,654 4347 29
Department of Health,CT Revenue Funds,02/07/2015,Computer Consumables,HR and Workforce,NHS SUPPLY CHAIN,1016053559,0.01,654 4347 29
Department of Health,CT Revenue Funds,02/07/2015,Computer Consumables,CAMHS Team (T&W),NHS SUPPLY CHAIN,1016053559,0.01,654 4347 29
Department of Health,CT Revenue Funds,02/07/2015,Computer Consumables,Single Point of Referral,NHS SUPPLY CHAIN,1016053559,0.01,654 4347 29
Department of Health,CT Revenue Funds,02/07/2015,Computer Consumables,Community Nursing Team 4,NHS SUPPLY CHAIN,1016053559,0.02,654 4347 29
Department of Health,CT Revenue Funds,02/07/2015,Computer Consumables,Single Point of Referral,NHS SUPPLY CHAIN,1016053559,0.06,654 4347 29
Department of Health,CT Revenue Funds,02/07/2015,Computer Consumables,Community Nursing Team 4,NHS SUPPLY CHAIN,1016053559,0.08,654 4347 29
Department of Health,CT Revenue Funds,02/07/2015,Computer Consumables,Single Point of Referral,NHS SUPPLY CHAIN,1016053559,0.32,654 4347 29
Department of Health,CT Revenue Funds,02/07/2015,Computer Consumables,Community Nursing Team 4,NHS SUPPLY CHAIN,1016053559,0.4,654 4347 29
Department of Health,CT Revenue Funds,02/07/2015,Computer Consumables,Shrewsbury and Atcham North Interdisciplinary Teams,NHS SUPPLY CHAIN,1016053559,0.48,654 4347 29
Department of Health,CT Revenue Funds,02/07/2015,Computer Consumables,APCS - Management - Telford and Wrekin,NHS SUPPLY CHAIN,1016053559,1.44,654 4347 29
Department of Health,CT Revenue Funds,02/07/2015,Computer Consumables,APCS - Management - Telford and Wrekin,NHS SUPPLY CHAIN,1016053559,1.44,654 4347 29
Department of Health,CT Revenue Funds,02/07/2015,Computer Consumables,Domiciliary Physio T&W,NHS SUPPLY CHAIN,1016053559,1.91,654 4347 29
Department of Health,CT Revenue Funds,02/07/2015,Computer Consumables,Domiciliary Physio T&W,NHS SUPPLY CHAIN,1016053559,1.91,654 4347 29
Department of Health,CT Revenue Funds,02/07/2015,Computer Consumables,Domiciliary Physio T&W,NHS SUPPLY CHAIN,1016053559,1.91,654 4347 29
Department of Health,CT Revenue Funds,02/07/2015,Computer Consumables,Community Nursing Team 4,NHS SUPPLY CHAIN,1016053559,2,654 4347 29
Department of Health,CT Revenue Funds,02/07/2015,Computer Consumables,Shrewsbury and Atcham North Interdisciplinary Teams,NHS SUPPLY CHAIN,1016053559,2.4,654 4347 29
Department of Health,CT Revenue Funds,02/07/2015,Computer Consumables,Oswestry Primary Care Centre,NHS SUPPLY CHAIN,1016053559,2.55,654 4347 29
Department of Health,CT Revenue Funds,02/07/2015,Computer Consumables,Oswestry Primary Care Centre,NHS SUPPLY CHAIN,1016053559,2.68,654 4347 29
Department of Health,CT Revenue Funds,02/07/2015,Computer Consumables,Whitchurch Hospital Administration,NHS SUPPLY CHAIN,1016053559,2.87,654 4347 29
Department of Health,CT Revenue Funds,02/07/2015,Computer Consumables,Bridgnorth Hospital Occupational Therapy,NHS SUPPLY CHAIN,1016053559,2.89,654 4347 29
Department of Health,CT Revenue Funds,02/07/2015,Computer Consumables,North Telford Health Visitors,NHS SUPPLY CHAIN,1016053559,2.97,654 4347 29
Department of Health,CT Revenue Funds,02/07/2015,Computer Consumables,Community Nursing Team 1,HELLIFIELD OFFICE SUPPLIES UK LTD,12798,3.18,109 4644 13
Department of Health,CT Revenue Funds,02/07/2015,Computer Consumables,Community Nursing Team 5,HELLIFIELD OFFICE SUPPLIES UK LTD,12863,3.2,109 4644 13
Department of Health,CT Revenue Funds,02/07/2015,Computer Consumables,Community Nursing Team 5,HELLIFIELD OFFICE SUPPLIES UK LTD,12863,3.2,109 4644 13
Department of Health,CT Revenue Funds,02/07/2015,Computer Consumables,Community Nursing Team 5,HELLIFIELD OFFICE SUPPLIES UK LTD,12863,3.2,109 4644 13
Department of Health,CT Revenue Funds,02/07/2015,Computer Consumables,Bishops Castle Hospital Management,NHS SUPPLY CHAIN,1016053559,3.38,654 4347 29
Department of Health,CT Revenue Funds,02/07/2015,Computer Consumables,Stoke Heath Prison Healthcare,MISCO COMPUTER SUPPLIES LTD,10600491,3.67,494 1756 15
Department of Health,CT Revenue Funds,02/07/2015,Computer Consumables,Oswestry Primary Care Centre,NHS SUPPLY CHAIN,1016053559,4.02,654 4347 29
Department of Health,CT Revenue Funds,02/07/2015,Computer Consumables,CAMHS Team (T&W),NHS SUPPLY CHAIN,1016053559,4.65,654 4347 29
Department of Health,CT Revenue Funds,02/07/2015,Computer Consumables,Ludlow Hospital Inpatient Wards,NHS SUPPLY CHAIN,1016053559,4.71,654 4347 29
Department of Health,CT Revenue Funds,02/07/2015,Computer Consumables,Ludlow Hospital Inpatient Wards,NHS SUPPLY CHAIN,1016053559,4.71,654 4347 29
Department of Health,CT Revenue Funds,02/07/2015,Computer Consumables,Ludlow Hospital Inpatient Wards,NHS SUPPLY CHAIN,1016053559,4.71,654 4347 29
Department of Health,CT Revenue Funds,02/07/2015,Computer Consumables,Tissue Viability Nurses (T&W),NHS SUPPLY CHAIN,1016053559,4.72,654 4347 29
Department of Health,CT Revenue Funds,02/07/2015,Computer Consumables,Ludlow Hospital Inpatient Wards,NHS SUPPLY CHAIN,1016053559,4.73,654 4347 29
Department of Health,CT Revenue Funds,02/07/2015,Computer Consumables,CAMHS Team (T&W),NHS SUPPLY CHAIN,1016053559,4.73,654 4347 29
Department of Health,CT Revenue Funds,02/07/2015,Computer Consumables,Single Point of Referral,NHS SUPPLY CHAIN,1016053559,4.78,654 4347 29
Department of Health,CT Revenue Funds,02/07/2015,Computer Consumables,Single Point of Referral,NHS SUPPLY CHAIN,1016053559,4.78,654 4347 29
Department of Health,CT Revenue Funds,02/07/2015,Computer Consumables,North Telford Health Visitors,NHS SUPPLY CHAIN,1016053559,4.94,654 4347 29
Department of Health,CT Revenue Funds,02/07/2015,Computer Consumables,North Telford Health Visitors,NHS SUPPLY CHAIN,1016053559,5.28,654 4347 29
Department of Health,CT Revenue Funds,02/07/2015,Computer Consumables,Shropshire School Nurses,NHS SUPPLY CHAIN,1016053559,5.33,654 4347 29
Department of Health,CT Revenue Funds,02/07/2015,Computer Consumables,Finance Directorate Management,NHS SUPPLY CHAIN,1016053559,5.38,654 4347 29
Department of Health,CT Revenue Funds,02/07/2015,Computer Consumables,CAMHS Team (T&W),NHS SUPPLY CHAIN,1016053559,5.8,654 4347 29
Department of Health,CT Revenue Funds,02/07/2015,Computer Consumables,Chairman and Chief Executives Office,HELLIFIELD OFFICE SUPPLIES UK LTD,12861,6,109 4644 13
Department of Health,CT Revenue Funds,02/07/2015,Computer Consumables,Shrewsbury and Atcham DAART,NHS SUPPLY CHAIN,1016053559,6.35,654 4347 29
Department of Health,CT Revenue Funds,02/07/2015,Computer Consumables,Coral House,NHS SUPPLY CHAIN,1016053559,6.35,654 4347 29
Department of Health,CT Revenue Funds,02/07/2015,Computer Consumables,Community Nursing Team 5,HELLIFIELD OFFICE SUPPLIES UK LTD,12863,6.4,109 4644 13
Department of Health,CT Revenue Funds,02/07/2015,Computer Consumables,Whitchurch Hospital Administration,NHS SUPPLY CHAIN,1016053559,6.45,654 4347 29
Department of Health,CT Revenue Funds,02/07/2015,Computer Consumables,Whitchurch Hospital Administration,NHS SUPPLY CHAIN,1016053559,6.45,654 4347 29
Department of Health,CT Revenue Funds,02/07/2015,Computer Consumables,APCS - Management - Telford and Wrekin,NHS SUPPLY CHAIN,1016053559,7.18,654 4347 29
Department of Health,CT Revenue Funds,02/07/2015,Computer Consumables,APCS - Management - Telford and Wrekin,NHS SUPPLY CHAIN,1016053559,7.18,654 4347 29
Department of Health,CT Revenue Funds,02/07/2015,Computer Consumables,ICS South East,NHS SUPPLY CHAIN,1016053559,7.18,654 4347 29
Department of Health,CT Revenue Funds,02/07/2015,Computer Consumables,Single Point of Referral,NHS SUPPLY CHAIN,1016053559,7.44,654 4347 29
Department of Health,CT Revenue Funds,02/07/2015,Computer Consumables,Coral House,NHS SUPPLY CHAIN,1016053559,7.44,654 4347 29
Department of Health,CT Revenue Funds,02/07/2015,Computer Consumables,Tissue Viability Nurses (T&W),NHS SUPPLY CHAIN,1016053559,7.61,654 4347 29
Department of Health,CT Revenue Funds,02/07/2015,Computer Consumables,Coral House,NHS SUPPLY CHAIN,1016053559,7.8,654 4347 29
Department of Health,CT Revenue Funds,02/07/2015,Computer Consumables,Coral House,NHS SUPPLY CHAIN,1016053559,7.96,654 4347 29
Department of Health,CT Revenue Funds,02/07/2015,Computer Consumables,Coral House,NHS SUPPLY CHAIN,1016053559,7.96,654 4347 29
Department of Health,CT Revenue Funds,02/07/2015,Computer Consumables,Oswestry Primary Care Centre,NHS SUPPLY CHAIN,1016053559,8.04,654 4347 29
Department of Health,CT Revenue Funds,02/07/2015,Computer Consumables,Whitchurch Hospital Administration,NHS SUPPLY CHAIN,1016053559,8.28,654 4347 29
Department of Health,CT Revenue Funds,02/07/2015,Computer Consumables,Bishops Castle Hospital Management,NHS SUPPLY CHAIN,1016053559,8.42,654 4347 29
Department of Health,CT Revenue Funds,02/07/2015,Computer Consumables,Shrewsbury and Atcham DAART,NHS SUPPLY CHAIN,1016053559,8.43,654 4347 29
Department of Health,CT Revenue Funds,02/07/2015,Computer Consumables,Shrewsbury and Atcham DAART,NHS SUPPLY CHAIN,1016053559,8.43,654 4347 29
Department of Health,CT Revenue Funds,02/07/2015,Computer Consumables,Coral House,NHS SUPPLY CHAIN,1016053559,8.43,654 4347 29
Department of Health,CT Revenue Funds,02/07/2015,Computer Consumables,Coral House,NHS SUPPLY CHAIN,1016053559,8.43,654 4347 29
Department of Health,CT Revenue Funds,02/07/2015,Computer Consumables,Coral House,NHS SUPPLY CHAIN,1016053559,8.43,654 4347 29
Department of Health,CT Revenue Funds,02/07/2015,Computer Consumables,Coral House,NHS SUPPLY CHAIN,1016053559,8.51,654 4347 29
Department of Health,CT Revenue Funds,02/07/2015,Computer Consumables,Coral House,NHS SUPPLY CHAIN,1016053559,8.54,654 4347 29
Department of Health,CT Revenue Funds,02/07/2015,Computer Consumables,Community Physiotherapy (T&W),HELLIFIELD OFFICE SUPPLIES UK LTD,12596,9.44,109 4644 13
Department of Health,CT Revenue Funds,02/07/2015,Computer Consumables,Domiciliary Physio T&W,NHS SUPPLY CHAIN,1016053559,9.53,654 4347 29
Department of Health,CT Revenue Funds,02/07/2015,Computer Consumables,Domiciliary Physio T&W,NHS SUPPLY CHAIN,1016053559,9.53,654 4347 29
Department of Health,CT Revenue Funds,02/07/2015,Computer Consumables,Domiciliary Physio T&W,NHS SUPPLY CHAIN,1016053559,9.53,654 4347 29
Department of Health,CT Revenue Funds,02/07/2015,Computer Consumables,Single Point of Referral,NHS SUPPLY CHAIN,1016053559,9.55,654 4347 29
Department of Health,CT Revenue Funds,02/07/2015,Computer Consumables,Coral House,NHS SUPPLY CHAIN,1016053559,9.61,654 4347 29
Department of Health,CT Revenue Funds,02/07/2015,Computer Consumables,HR and Workforce,NHS SUPPLY CHAIN,1016053559,9.97,654 4347 29
Department of Health,CT Revenue Funds,02/07/2015,Computer Consumables,HR and Workforce,NHS SUPPLY CHAIN,1016053559,9.97,654 4347 29
Department of Health,CT Revenue Funds,02/07/2015,Computer Consumables,HR and Workforce,NHS SUPPLY CHAIN,1016053559,9.97,654 4347 29
Department of Health,CT Revenue Funds,02/07/2015,Computer Consumables,Bishops Castle Hospital Management,NHS SUPPLY CHAIN,1016053559,9.97,654 4347 29
Department of Health,CT Revenue Funds,02/07/2015,Computer Consumables,Bishops Castle Hospital Management,NHS SUPPLY CHAIN,1016053559,9.97,654 4347 29
Department of Health,CT Revenue Funds,02/07/2015,Computer Consumables,North Shropshire Health Visitors,NHS SUPPLY CHAIN,1016053559,10.03,654 4347 29
Department of Health,CT Revenue Funds,02/07/2015,Computer Consumables,Bishops Castle Hospital Management,NHS SUPPLY CHAIN,1016053559,10.06,654 4347 29
Department of Health,CT Revenue Funds,02/07/2015,Computer Consumables,Quality,NHS SUPPLY CHAIN,1016053559,10.24,654 4347 29
Department of Health,CT Revenue Funds,02/07/2015,Computer Consumables,Quality,NHS SUPPLY CHAIN,1016053559,10.24,654 4347 29
Department of Health,CT Revenue Funds,02/07/2015,Computer Consumables,Quality,NHS SUPPLY CHAIN,1016053559,10.24,654 4347 29
Department of Health,CT Revenue Funds,02/07/2015,Computer Consumables,Oswestry Minor Injuries Unit,NHS SUPPLY CHAIN,1016053559,10.56,654 4347 29
Department of Health,CT Revenue Funds,02/07/2015,Computer Consumables,Oswestry Minor Injuries Unit,NHS SUPPLY CHAIN,1016053559,10.66,654 4347 29
Department of Health,CT Revenue Funds,02/07/2015,Computer Consumables,Oswestry Minor Injuries Unit,NHS SUPPLY CHAIN,1016053559,10.66,654 4347 29
Department of Health,CT Revenue Funds,02/07/2015,Computer Consumables,Oswestry Minor Injuries Unit,NHS SUPPLY CHAIN,1016053559,10.75,654 4347 29
Department of Health,CT Revenue Funds,02/07/2015,Computer Consumables,Whitchurch Hospital Administration,NHS SUPPLY CHAIN,1016053559,11.03,654 4347 29
Department of Health,CT Revenue Funds,02/07/2015,Computer Consumables,Oswestry Primary Care Centre,NHS SUPPLY CHAIN,1016053559,12.73,654 4347 29
Department of Health,CT Revenue Funds,02/07/2015,Computer Consumables,Bridgnorth Hospital Inpatient Ward,NHS SUPPLY CHAIN,1016053559,12.9,654 4347 29
Department of Health,CT Revenue Funds,02/07/2015,Computer Consumables,Bridgnorth Hospital Administration,NHS SUPPLY CHAIN,1016053559,12.9,654 4347 29
Department of Health,CT Revenue Funds,02/07/2015,Computer Consumables,Whitchurch Hospital Administration,NHS SUPPLY CHAIN,1016053559,12.95,654 4347 29
Department of Health,CT Revenue Funds,02/07/2015,Computer Consumables,Oswestry Primary Care Centre,NHS SUPPLY CHAIN,1016053559,13.4,654 4347 29
Department of Health,CT Revenue Funds,02/07/2015,Computer Consumables,Whitchurch Hospital Administration,NHS SUPPLY CHAIN,1016053559,14.36,654 4347 29
Department of Health,CT Revenue Funds,02/07/2015,Computer Consumables,Bridgnorth Hospital Occupational Therapy,NHS SUPPLY CHAIN,1016053559,14.47,654 4347 29
Department of Health,CT Revenue Funds,02/07/2015,Computer Consumables,Occupational Health Shropshire,NHS SUPPLY CHAIN,1016053559,14.5,654 4347 29
Department of Health,CT Revenue Funds,02/07/2015,Computer Consumables,Finance Directorate Management,NHS SUPPLY CHAIN,1016053559,14.82,654 4347 29
Department of Health,CT Revenue Funds,02/07/2015,Computer Consumables,North Telford Health Visitors,NHS SUPPLY CHAIN,1016053559,14.85,654 4347 29
Department of Health,CT Revenue Funds,02/07/2015,Computer Consumables,Single Point of Referral,NHS SUPPLY CHAIN,1016053559,15.29,654 4347 29
Department of Health,CT Revenue Funds,02/07/2015,Computer Consumables,Single Point of Referral,NHS SUPPLY CHAIN,1016053559,15.86,654 4347 29
Department of Health,CT Revenue Funds,02/07/2015,Computer Consumables,Coral House,NHS SUPPLY CHAIN,1016053559,15.86,654 4347 29
Department of Health,CT Revenue Funds,02/07/2015,Computer Consumables,Community Nursing Team 1,HELLIFIELD OFFICE SUPPLIES UK LTD,12798,15.9,109 4644 13
Department of Health,CT Revenue Funds,02/07/2015,Computer Consumables,Community Nursing Team 5,HELLIFIELD OFFICE SUPPLIES UK LTD,12863,16,109 4644 13
Department of Health,CT Revenue Funds,02/07/2015,Computer Consumables,Community Nursing Team 5,HELLIFIELD OFFICE SUPPLIES UK LTD,12863,16,109 4644 13
Department of Health,CT Revenue Funds,02/07/2015,Computer Consumables,Community Nursing Team 5,HELLIFIELD OFFICE SUPPLIES UK LTD,12863,16,109 4644 13
Department of Health,CT Revenue Funds,02/07/2015,Computer Consumables,Bishops Castle Hospital Management,NHS SUPPLY CHAIN,1016053559,16.88,654 4347 29
Department of Health,CT Revenue Funds,02/07/2015,Computer Consumables,Stoke Heath Prison Healthcare,MISCO COMPUTER SUPPLIES LTD,10600491,18.33,494 1756 15
Department of Health,CT Revenue Funds,02/07/2015,Computer Consumables,Bridgnorth Hospital Administration,NHS SUPPLY CHAIN,1016053559,19.02,654 4347 29
Department of Health,CT Revenue Funds,02/07/2015,Computer Consumables,Bridgnorth Hospital Administration,NHS SUPPLY CHAIN,1016053559,19.02,654 4347 29
Department of Health,CT Revenue Funds,02/07/2015,Computer Consumables,Ludlow Hospital Inpatient Wards,NHS SUPPLY CHAIN,1016053559,19.94,654 4347 29
Department of Health,CT Revenue Funds,02/07/2015,Computer Consumables,Ludlow Hospital Inpatient Wards,NHS SUPPLY CHAIN,1016053559,19.94,654 4347 29
Department of Health,CT Revenue Funds,02/07/2015,Computer Consumables,Ludlow Hospital Inpatient Wards,NHS SUPPLY CHAIN,1016053559,19.94,654 4347 29
Department of Health,CT Revenue Funds,02/07/2015,Computer Consumables,Oswestry Primary Care Centre,NHS SUPPLY CHAIN,1016053559,20.1,654 4347 29
Department of Health,CT Revenue Funds,02/07/2015,Computer Consumables,HR and Workforce,NHS SUPPLY CHAIN,1016053559,20.11,654 4347 29
Department of Health,CT Revenue Funds,02/07/2015,Computer Consumables,Ludlow Hospital Inpatient Wards,NHS SUPPLY CHAIN,1016053559,20.11,654 4347 29
Department of Health,CT Revenue Funds,02/07/2015,Computer Consumables,Quality,NHS SUPPLY CHAIN,1016053559,21.19,654 4347 29
Department of Health,CT Revenue Funds,02/07/2015,Computer Consumables,Single Point of Referral,NHS SUPPLY CHAIN,1016053559,21.73,654 4347 29
Department of Health,CT Revenue Funds,02/07/2015,Computer Consumables,CAMHS Team (T&W),NHS SUPPLY CHAIN,1016053559,23.26,654 4347 29
Department of Health,CT Revenue Funds,02/07/2015,Computer Consumables,Ludlow Hospital Inpatient Wards,NHS SUPPLY CHAIN,1016053559,23.55,654 4347 29
Department of Health,CT Revenue Funds,02/07/2015,Computer Consumables,Ludlow Hospital Inpatient Wards,NHS SUPPLY CHAIN,1016053559,23.55,654 4347 29
Department of Health,CT Revenue Funds,02/07/2015,Computer Consumables,Ludlow Hospital Inpatient Wards,NHS SUPPLY CHAIN,1016053559,23.55,654 4347 29
Department of Health,CT Revenue Funds,02/07/2015,Computer Consumables,Tissue Viability Nurses (T&W),NHS SUPPLY CHAIN,1016053559,23.58,654 4347 29
Department of Health,CT Revenue Funds,02/07/2015,Computer Consumables,Ludlow Hospital Inpatient Wards,NHS SUPPLY CHAIN,1016053559,23.67,654 4347 29
Department of Health,CT Revenue Funds,02/07/2015,Computer Consumables,CAMHS Team (T&W),NHS SUPPLY CHAIN,1016053559,23.67,654 4347 29
Department of Health,CT Revenue Funds,02/07/2015,Computer Consumables,Single Point of Referral,NHS SUPPLY CHAIN,1016053559,23.88,654 4347 29
Department of Health,CT Revenue Funds,02/07/2015,Computer Consumables,Single Point of Referral,NHS SUPPLY CHAIN,1016053559,23.88,654 4347 29
Department of Health,CT Revenue Funds,02/07/2015,Computer Consumables,North Telford Health Visitors,NHS SUPPLY CHAIN,1016053559,24.68,654 4347 29
Department of Health,CT Revenue Funds,02/07/2015,Computer Consumables,Community Nursing Team 5,ADVANTAGE BUSINESS SUPPLIES LTD,11/I44153,25,771 8285 01
Department of Health,CT Revenue Funds,02/07/2015,Computer Consumables,Community Nursing Team 5,ADVANTAGE BUSINESS SUPPLIES LTD,11/I45482,25,771 8285 01
Department of Health,CT Revenue Funds,02/07/2015,Computer Consumables,North Telford Health Visitors,NHS SUPPLY CHAIN,1016053559,26.41,654 4347 29
Department of Health,CT Revenue Funds,02/07/2015,Computer Consumables,Shropshire School Nurses,NHS SUPPLY CHAIN,1016053559,26.64,654 4347 29
Department of Health,CT Revenue Funds,02/07/2015,Computer Consumables,Finance Directorate Management,NHS SUPPLY CHAIN,1016053559,26.88,654 4347 29
Department of Health,CT Revenue Funds,02/07/2015,Computer Consumables,Finance Directorate Management,NHS SUPPLY CHAIN,1016053559,27.43,654 4347 29
Department of Health,CT Revenue Funds,02/07/2015,Computer Consumables,CAMHS Team (T&W),NHS SUPPLY CHAIN,1016053559,29,654 4347 29
Department of Health,CT Revenue Funds,02/07/2015,Computer Consumables,Chairman and Chief Executives Office,HELLIFIELD OFFICE SUPPLIES UK LTD,12861,29.98,109 4644 13
Department of Health,CT Revenue Funds,02/07/2015,Computer Consumables,Coral House,NHS SUPPLY CHAIN,1016053559,30.94,654 4347 29
Department of Health,CT Revenue Funds,02/07/2015,Computer Consumables,Shrewsbury and Atcham DAART,NHS SUPPLY CHAIN,1016053559,31.75,654 4347 29
Department of Health,CT Revenue Funds,02/07/2015,Computer Consumables,Coral House,NHS SUPPLY CHAIN,1016053559,31.75,654 4347 29
Department of Health,CT Revenue Funds,02/07/2015,Computer Consumables,Community Nursing Team 5,HELLIFIELD OFFICE SUPPLIES UK LTD,12863,32,109 4644 13
Department of Health,CT Revenue Funds,02/07/2015,Computer Consumables,Whitchurch Hospital Administration,NHS SUPPLY CHAIN,1016053559,32.26,654 4347 29
Department of Health,CT Revenue Funds,02/07/2015,Computer Consumables,Whitchurch Hospital Administration,NHS SUPPLY CHAIN,1016053559,32.26,654 4347 29
Department of Health,CT Revenue Funds,02/07/2015,Computer Consumables,Shrewsbury and Atcham North Interdisciplinary Teams,ADVANTAGE BUSINESS SUPPLIES LTD,11/I50750,32.62,771 8285 01
Department of Health,CT Revenue Funds,02/07/2015,Computer Consumables,ICS South East,NHS SUPPLY CHAIN,1016053559,35.88,654 4347 29
Department of Health,CT Revenue Funds,02/07/2015,Computer Consumables,Coral House,NHS SUPPLY CHAIN,1016053559,37.18,654 4347 29
Department of Health,CT Revenue Funds,02/07/2015,Computer Consumables,Single Point of Referral,NHS SUPPLY CHAIN,1016053559,37.18,654 4347 29
Department of Health,CT Revenue Funds,02/07/2015,Computer Consumables,Tissue Viability Nurses (T&W),NHS SUPPLY CHAIN,1016053559,38.05,654 4347 29
Department of Health,CT Revenue Funds,02/07/2015,Computer Consumables,Coral House,NHS SUPPLY CHAIN,1016053559,39.01,654 4347 29
Department of Health,CT Revenue Funds,02/07/2015,Computer Consumables,Coral House,NHS SUPPLY CHAIN,1016053559,39.78,654 4347 29
Department of Health,CT Revenue Funds,02/07/2015,Computer Consumables,Coral House,NHS SUPPLY CHAIN,1016053559,39.78,654 4347 29
Department of Health,CT Revenue Funds,02/07/2015,Computer Consumables,Oswestry Primary Care Centre,NHS SUPPLY CHAIN,1016053559,40.2,654 4347 29
Department of Health,CT Revenue Funds,02/07/2015,Computer Consumables,Finance Directorate Management,NHS SUPPLY CHAIN,1016053559,40.75,654 4347 29
Department of Health,CT Revenue Funds,02/07/2015,Computer Consumables,Finance Directorate Management,NHS SUPPLY CHAIN,1016053559,40.75,654 4347 29
Department of Health,CT Revenue Funds,02/07/2015,Computer Consumables,Finance Directorate Management,NHS SUPPLY CHAIN,1016053559,40.75,654 4347 29
Department of Health,CT Revenue Funds,02/07/2015,Computer Consumables,Whitchurch Hospital Administration,NHS SUPPLY CHAIN,1016053559,41.37,654 4347 29
Department of Health,CT Revenue Funds,02/07/2015,Computer Consumables,Bishops Castle Hospital Management,NHS SUPPLY CHAIN,1016053559,42.08,654 4347 29
Department of Health,CT Revenue Funds,02/07/2015,Computer Consumables,Shrewsbury and Atcham DAART,NHS SUPPLY CHAIN,1016053559,42.16,654 4347 29
Department of Health,CT Revenue Funds,02/07/2015,Computer Consumables,Shrewsbury and Atcham DAART,NHS SUPPLY CHAIN,1016053559,42.16,654 4347 29
Department of Health,CT Revenue Funds,02/07/2015,Computer Consumables,Coral House,NHS SUPPLY CHAIN,1016053559,42.16,654 4347 29
Department of Health,CT Revenue Funds,02/07/2015,Computer Consumables,Coral House,NHS SUPPLY CHAIN,1016053559,42.16,654 4347 29
Department of Health,CT Revenue Funds,02/07/2015,Computer Consumables,Coral House,NHS SUPPLY CHAIN,1016053559,42.16,654 4347 29
Department of Health,CT Revenue Funds,02/07/2015,Computer Consumables,Coral House,NHS SUPPLY CHAIN,1016053559,42.54,654 4347 29
Department of Health,CT Revenue Funds,02/07/2015,Computer Consumables,Coral House,NHS SUPPLY CHAIN,1016053559,42.69,654 4347 29
Department of Health,CT Revenue Funds,02/07/2015,Computer Consumables,Community Nursing Team 5,ADVANTAGE BUSINESS SUPPLIES LTD,11/I45482,44.8,771 8285 01
Department of Health,CT Revenue Funds,02/07/2015,Computer Consumables,Community Physiotherapy (T&W),HELLIFIELD OFFICE SUPPLIES UK LTD,12596,47.2,109 4644 13
Department of Health,CT Revenue Funds,02/07/2015,Computer Consumables,Single Point of Referral,NHS SUPPLY CHAIN,1016053559,47.76,654 4347 29
Department of Health,CT Revenue Funds,02/07/2015,Computer Consumables,Coral House,NHS SUPPLY CHAIN,1016053559,48.06,654 4347 29
Department of Health,CT Revenue Funds,02/07/2015,Computer Consumables,Bishops Castle Hospital Management,NHS SUPPLY CHAIN,1016053559,49.85,654 4347 29
Department of Health,CT Revenue Funds,02/07/2015,Computer Consumables,Bishops Castle Hospital Management,NHS SUPPLY CHAIN,1016053559,49.85,654 4347 29
Department of Health,CT Revenue Funds,02/07/2015,Computer Consumables,HR and Workforce,NHS SUPPLY CHAIN,1016053559,49.85,654 4347 29
Department of Health,CT Revenue Funds,02/07/2015,Computer Consumables,HR and Workforce,NHS SUPPLY CHAIN,1016053559,49.85,654 4347 29
Department of Health,CT Revenue Funds,02/07/2015,Computer Consumables,HR and Workforce,NHS SUPPLY CHAIN,1016053559,49.85,654 4347 29
Department of Health,CT Revenue Funds,02/07/2015,Computer Consumables,North Shropshire Health Visitors,NHS SUPPLY CHAIN,1016053559,50.15,654 4347 29
Department of Health,CT Revenue Funds,02/07/2015,Computer Consumables,Bishops Castle Hospital Management,NHS SUPPLY CHAIN,1016053559,50.28,654 4347 29
Department of Health,CT Revenue Funds,02/07/2015,Computer Consumables,Quality,NHS SUPPLY CHAIN,1016053559,51.18,654 4347 29
Department of Health,CT Revenue Funds,02/07/2015,Computer Consumables,Quality,NHS SUPPLY CHAIN,1016053559,51.18,654 4347 29
Department of Health,CT Revenue Funds,02/07/2015,Computer Consumables,Quality,NHS SUPPLY CHAIN,1016053559,51.18,654 4347 29
Department of Health,CT Revenue Funds,02/07/2015,Computer Consumables,Oswestry Minor Injuries Unit,NHS SUPPLY CHAIN,1016053559,52.82,654 4347 29
Department of Health,CT Revenue Funds,02/07/2015,Computer Consumables,Oswestry Minor Injuries Unit,NHS SUPPLY CHAIN,1016053559,53.28,654 4347 29
Department of Health,CT Revenue Funds,02/07/2015,Computer Consumables,Oswestry Minor Injuries Unit,NHS SUPPLY CHAIN,1016053559,53.28,654 4347 29
Department of Health,CT Revenue Funds,02/07/2015,Computer Consumables,Oswestry Minor Injuries Unit,NHS SUPPLY CHAIN,1016053559,53.76,654 4347 29
Department of Health,CT Revenue Funds,02/07/2015,Computer Consumables,Shropshire CAMHS Team,NHS SUPPLY CHAIN,1016053559,54.05,654 4347 29
Department of Health,CT Revenue Funds,02/07/2015,Computer Consumables,Whitchurch Hospital Administration,NHS SUPPLY CHAIN,1016053559,55.16,654 4347 29
Department of Health,CT Revenue Funds,02/07/2015,Computer Consumables,Bridgnorth Hospital Administration,NHS SUPPLY CHAIN,1016053559,64.48,654 4347 29
Department of Health,CT Revenue Funds,02/07/2015,Computer Consumables,Bridgnorth Hospital Inpatient Ward,NHS SUPPLY CHAIN,1016053559,64.48,654 4347 29
Department of Health,CT Revenue Funds,02/07/2015,Computer Consumables,Whitchurch Hospital Administration,NHS SUPPLY CHAIN,1016053559,64.73,654 4347 29
Department of Health,CT Revenue Funds,02/07/2015,Computer Consumables,Occupational Health Shropshire,NHS SUPPLY CHAIN,1016053559,72.5,654 4347 29
Department of Health,CT Revenue Funds,02/07/2015,Computer Consumables,Finance Directorate Management,NHS SUPPLY CHAIN,1016053559,74.08,654 4347 29
Department of Health,CT Revenue Funds,02/07/2015,Computer Consumables,Single Point of Referral,NHS SUPPLY CHAIN,1016053559,76.46,654 4347 29
Department of Health,CT Revenue Funds,02/07/2015,Computer Consumables,Coral House,NHS SUPPLY CHAIN,1016053559,79.28,654 4347 29
Department of Health,CT Revenue Funds,02/07/2015,Computer Consumables,Single Point of Referral,NHS SUPPLY CHAIN,1016053559,79.28,654 4347 29
Department of Health,CT Revenue Funds,02/07/2015,Computer Consumables,Bridgnorth Hospital Administration,NHS SUPPLY CHAIN,1016053559,95.08,654 4347 29
Department of Health,CT Revenue Funds,02/07/2015,Computer Consumables,Bridgnorth Hospital Administration,NHS SUPPLY CHAIN,1016053559,95.08,654 4347 29
Department of Health,CT Revenue Funds,02/07/2015,Computer Consumables,Ludlow Hospital Inpatient Wards,NHS SUPPLY CHAIN,1016053559,99.7,654 4347 29
Department of Health,CT Revenue Funds,02/07/2015,Computer Consumables,Ludlow Hospital Inpatient Wards,NHS SUPPLY CHAIN,1016053559,99.7,654 4347 29
Department of Health,CT Revenue Funds,02/07/2015,Computer Consumables,Ludlow Hospital Inpatient Wards,NHS SUPPLY CHAIN,1016053559,99.7,654 4347 29
Department of Health,CT Revenue Funds,02/07/2015,Computer Consumables,Ludlow Hospital Inpatient Wards,NHS SUPPLY CHAIN,1016053559,100.56,654 4347 29
Department of Health,CT Revenue Funds,02/07/2015,Computer Consumables,HR and Workforce,NHS SUPPLY CHAIN,1016053559,100.56,654 4347 29
Department of Health,CT Revenue Funds,02/07/2015,Computer Consumables,Quality,NHS SUPPLY CHAIN,1016053559,105.96,654 4347 29
Department of Health,CT Revenue Funds,02/07/2015,Computer Consumables,Single Point of Referral,NHS SUPPLY CHAIN,1016053559,108.66,654 4347 29
Department of Health,CT Revenue Funds,02/07/2015,Computer Consumables,Community Nursing Team 5,ADVANTAGE BUSINESS SUPPLIES LTD,11/I44153,125,771 8285 01
Department of Health,CT Revenue Funds,02/07/2015,Computer Consumables,Community Nursing Team 5,ADVANTAGE BUSINESS SUPPLIES LTD,11/I45482,125,771 8285 01
Department of Health,CT Revenue Funds,02/07/2015,Computer Consumables,Finance Directorate Management,NHS SUPPLY CHAIN,1016053559,137.16,654 4347 29
Department of Health,CT Revenue Funds,02/07/2015,Computer Consumables,Coral House,NHS SUPPLY CHAIN,1016053559,154.72,654 4347 29
Department of Health,CT Revenue Funds,02/07/2015,Computer Consumables,Shrewsbury and Atcham North Interdisciplinary Teams,ADVANTAGE BUSINESS SUPPLIES LTD,11/I50750,163.08,771 8285 01
Department of Health,CT Revenue Funds,02/07/2015,Computer Consumables,Finance Directorate Management,NHS SUPPLY CHAIN,1016053559,203.76,654 4347 29
Department of Health,CT Revenue Funds,02/07/2015,Computer Consumables,Finance Directorate Management,NHS SUPPLY CHAIN,1016053559,203.76,654 4347 29
Department of Health,CT Revenue Funds,02/07/2015,Computer Consumables,Finance Directorate Management,NHS SUPPLY CHAIN,1016053559,203.76,654 4347 29
Department of Health,CT Revenue Funds,02/07/2015,Computer Consumables,Community Nursing Team 5,ADVANTAGE BUSINESS SUPPLIES LTD,11/I45482,224,771 8285 01
Department of Health,CT Revenue Funds,02/07/2015,Computer Consumables,Shropshire CAMHS Team,NHS SUPPLY CHAIN,1016053559,270.25,654 4347 29
Department of Health,CT Revenue Funds,02/07/2015,Computer Hardware & Software,CAMHS Team (T&W),MISCO COMPUTER SUPPLIES LTD,10602507,4.88,494 1756 15
Department of Health,CT Revenue Funds,02/07/2015,Computer Hardware & Software,CAMHS Team (T&W),MISCO COMPUTER SUPPLIES LTD,10602507,8.8,494 1756 15
Department of Health,CT Revenue Funds,02/07/2015,Computer Hardware & Software,CAMHS Team (T&W),MISCO COMPUTER SUPPLIES LTD,10602507,24.38,494 1756 15
Department of Health,CT Revenue Funds,02/07/2015,Computer Hardware & Software,CAMHS Team (T&W),MISCO COMPUTER SUPPLIES LTD,10602507,43.99,494 1756 15
Department of Health,CT Revenue Funds,02/07/2015,Computer Hardware & Software,EPR Programme,OFFICETEAM GROUP LTD,IN742924,170,
Department of Health,CT Revenue Funds,02/07/2015,Computer Hardware & Software,EPR Programme,OFFICETEAM GROUP LTD,IN742924,850,
Department of Health,CT Revenue Funds,02/07/2015,Computer Hardware Purchases,Dudley School Nurses,MISCO COMPUTER SUPPLIES LTD,10594862,-2.32,494 1756 15
Department of Health,CT Revenue Funds,02/07/2015,Computer Hardware Purchases,Dudley School Nurses,MISCO COMPUTER SUPPLIES LTD,10593525,-0.65,494 1756 15
Department of Health,CT Revenue Funds,02/07/2015,Computer Hardware Purchases,Dudley School Nurses,MISCO COMPUTER SUPPLIES LTD,10594862,-0.46,494 1756 15
Department of Health,CT Revenue Funds,02/07/2015,Computer Hardware Purchases,Dudley School Nurses,MISCO COMPUTER SUPPLIES LTD,10593525,-0.33,494 1756 15
Department of Health,CT Revenue Funds,02/07/2015,Computer Hardware Purchases,Dudley School Nurses,MISCO COMPUTER SUPPLIES LTD,10593525,-0.13,494 1756 15
Department of Health,CT Revenue Funds,02/07/2015,Computer Hardware Purchases,Dudley School Nurses,MISCO COMPUTER SUPPLIES LTD,10593525,-0.07,494 1756 15
Department of Health,CT Revenue Funds,02/07/2015,Computer Hardware Purchases,Dudley School Nurses,MISCO COMPUTER SUPPLIES LTD,10593525,1.27,494 1756 15
Department of Health,CT Revenue Funds,02/07/2015,Computer Hardware Purchases,Dudley School Nurses,MISCO COMPUTER SUPPLIES LTD,10594862,3.66,494 1756 15
Department of Health,CT Revenue Funds,02/07/2015,Computer Hardware Purchases,Dudley School Nurses,MISCO COMPUTER SUPPLIES LTD,10593525,6.36,494 1756 15
Department of Health,CT Revenue Funds,02/07/2015,Computer Hardware Purchases,Dudley School Nurses,MISCO COMPUTER SUPPLIES LTD,10593525,13.91,494 1756 15
Department of Health,CT Revenue Funds,02/07/2015,Computer Hardware Purchases,Dudley School Nurses,MISCO COMPUTER SUPPLIES LTD,10594862,18.32,494 1756 15
Department of Health,CT Revenue Funds,02/07/2015,Computer Hardware Purchases,Dudley School Nurses,MISCO COMPUTER SUPPLIES LTD,10593525,69.52,494 1756 15
Department of Health,CT Revenue Funds,02/07/2015,Computer Software / Licence  Fees,Dudley School Nurses,SOFTCAT,INV01174303,553.5,
Department of Health,CT Revenue Funds,02/07/2015,Computer Software / Licence  Fees,Dudley School Nurses,SOFTCAT,INV01174303,647.97,
Department of Health,CT Revenue Funds,02/07/2015,Computer Software / Licence  Fees,Dudley School Nurses,SOFTCAT,INV01174303,2767.5,
Department of Health,CT Revenue Funds,02/07/2015,Computer Software / Licence  Fees,Dudley School Nurses,SOFTCAT,INV01174303,3239.85,
Department of Health,CT Revenue Funds,02/07/2015,Conferences And Seminars,Trust Board,NHS PROVIDERS,0000001029,-44,
Department of Health,CT Revenue Funds,02/07/2015,Conferences And Seminars,Trust Board,NHS PROVIDERS,0000001029,44,
Department of Health,CT Revenue Funds,02/07/2015,Conferences And Seminars,Trust Board,NHS PROVIDERS,0000001029,220,
Department of Health,CT Revenue Funds,02/07/2015,Conferences And Seminars,Trust Board,GSA CHANGE CONSULTANCY LTD,SCHT/866,3060.6,
Department of Health,CT Revenue Funds,02/07/2015,Confidential Waste Collection,Coral House,PHS GROUP LTD,62591037,7.66,542 9514 38
Department of Health,CT Revenue Funds,02/07/2015,Confidential Waste Collection,Wheelchair Services,PHS GROUP LTD,62579955,25.01,542 9514 38
Department of Health,CT Revenue Funds,02/07/2015,Confidential Waste Collection,Continence Services,PHS GROUP LTD,62579955,25.01,542 9514 38
Department of Health,CT Revenue Funds,02/07/2015,Confidential Waste Collection,Community Neuro Rehabilitation Team (CNRT),PHS GROUP LTD,62579955,25.02,542 9514 38
Department of Health,CT Revenue Funds,02/07/2015,Confidential Waste Collection,North Shropshire Health Visitors,PHS GROUP LTD,62547454,38.52,542 9514 38
Department of Health,CT Revenue Funds,02/07/2015,Confidential Waste Collection,APCS - Rheumatology,PHS GROUP LTD,62600812,55.92,542 9514 38
Department of Health,CT Revenue Funds,02/07/2015,Consultant - Rheumatology,Ludlow Hospital Outpatients,ROBERT JONES AND AGNES HUNT NHS FT,20074938,887,654 9380 06
Department of Health,CT Revenue Funds,02/07/2015,Consultant - Rheumatology,Ludlow Hospital Outpatients,ROBERT JONES AND AGNES HUNT NHS FT,20074940,887,654 9380 06
Department of Health,CT Revenue Funds,02/07/2015,Consultant - Rheumatology,APCS - Rheumatology,ROBERT JONES AND AGNES HUNT NHS FT,20074917,17771.69,654 9380 06
Department of Health,CT Revenue Funds,02/07/2015,Contract : Grounds & Gardens,APCS - Rheumatology,SPACECARE (SHROPSHIRE),615024,90,790 8831 89
Department of Health,CT Revenue Funds,02/07/2015,Contract : Other External,Finance Directorate Management,CEIRIOG SAFETY LTD,061513,3471.5,
Department of Health,CT Revenue Funds,02/07/2015,Contract : Photocopying Rental & Charges,Occupational Health Shropshire,XEROX FINANCE LTD,96936828,156.79,232 3646 82
Department of Health,CT Revenue Funds,02/07/2015,Contract : Photocopying Rental & Charges,Glebe Centre Premises,XEROX FINANCE LTD,96936784,235.11,232 3646 82
Department of Health,CT Revenue Funds,02/07/2015,Court Order Payment,Payables,TELFORD & WREKIN COUNCIL,13614546 - JUN15,31.41,162 3321 00
Department of Health,CT Revenue Funds,02/07/2015,Court Order Payment,Payables,CHESHIRE WEST & CHESHIRE COUNCIL,206436834 JUN15,114.34,
Department of Health,CT Revenue Funds,02/07/2015,Court Order Payment,Payables,CHILD SUPPORT AGENCY,NA832670D JUN15,394.98,
Department of Health,CT Revenue Funds,02/07/2015,Court Order Payment,Payables,SHROPSHIRE COUNCIL,JUN15,959.46,162 3474 72
Department of Health,CT Revenue Funds,02/07/2015,Cycle to Work Scheme,Payables,SME HCI LTD,123463 PAYMENT 9,-333.32,
Department of Health,CT Revenue Funds,02/07/2015,Cycle to Work Scheme,Payables,SME HCI LTD,123463 PAYMENT 9,-234,
Department of Health,CT Revenue Funds,02/07/2015,Cycle to Work Scheme,Payables,SME HCI LTD,123463 PAYMENT 9,-120,
Department of Health,CT Revenue Funds,02/07/2015,Cycle to Work Scheme,Payables,SME HCI LTD,123463 PAYMENT 9,-84,
Department of Health,CT Revenue Funds,02/07/2015,Cycle to Work Scheme,Payables,SME HCI LTD,123616 PAYMENT 8,27.84,
Department of Health,CT Revenue Funds,02/07/2015,Cycle to Work Scheme,Payables,SME HCI LTD,123616 PAYMENT 8,34.67,
Department of Health,CT Revenue Funds,02/07/2015,Cycle to Work Scheme,Payables,SME HCI LTD,123752 PAYMENT 7,34.78,
Department of Health,CT Revenue Funds,02/07/2015,Cycle to Work Scheme,Payables,SME HCI LTD,124241 PAYMENT 2,35.86,
Department of Health,CT Revenue Funds,02/07/2015,Cycle to Work Scheme,Payables,SME HCI LTD,124241 PAYMENT 2,39.97,
Department of Health,CT Revenue Funds,02/07/2015,Cycle to Work Scheme,Payables,SME HCI LTD,123752 PAYMENT 7,43.12,
Department of Health,CT Revenue Funds,02/07/2015,Cycle to Work Scheme,Payables,SME HCI LTD,123616 PAYMENT 8,47.66,
Department of Health,CT Revenue Funds,02/07/2015,Cycle to Work Scheme,Payables,SME HCI LTD,123463 PAYMENT 9,48.75,
Department of Health,CT Revenue Funds,02/07/2015,Cycle to Work Scheme,Payables,SME HCI LTD,123938 PAYMENT 5,53.08,
Department of Health,CT Revenue Funds,02/07/2015,Cycle to Work Scheme,Payables,SME HCI LTD,124102 PAYMENT 3,63.7,
Department of Health,CT Revenue Funds,02/07/2015,Cycle to Work Scheme,Payables,SME HCI LTD,124102 PAYMENT 3,65.97,
Department of Health,CT Revenue Funds,02/07/2015,Cycle to Work Scheme,Payables,SME HCI LTD,123752 PAYMENT 7,66.83,
Department of Health,CT Revenue Funds,02/07/2015,Cycle to Work Scheme,Payables,SME HCI LTD,123463 PAYMENT 9,69.44,
Department of Health,CT Revenue Funds,02/07/2015,Cycle to Work Scheme,Payables,SME HCI LTD,124241 PAYMENT 2,69.44,
Department of Health,CT Revenue Funds,02/07/2015,Cycle to Work Scheme,Payables,SME HCI LTD,123463 PAYMENT 9,84,
Department of Health,CT Revenue Funds,02/07/2015,Cycle to Work Scheme,Payables,SME HCI LTD,123463 PAYMENT 9,120,
Department of Health,CT Revenue Funds,02/07/2015,Cycle to Work Scheme,Payables,SME HCI LTD,123463 PAYMENT 9,234,
Department of Health,CT Revenue Funds,02/07/2015,Cycle to Work Scheme,Payables,SME HCI LTD,123463 PAYMENT 9,333.32,
Department of Health,CT Revenue Funds,02/07/2015,Data Lines,IM&T Support,BT PLC,MO14 Q2 VP51078670,119.56,245 7193 48
Department of Health,CT Revenue Funds,02/07/2015,Dental Laboratory Items,Stoke Heath Prison Healthcare,S4 DENTAL LABORATORY,I81522,21.2,
Department of Health,CT Revenue Funds,02/07/2015,Dental Laboratory Items,Stoke Heath Prison Healthcare,S4 DENTAL LABORATORY,I81394,63.5,
Department of Health,CT Revenue Funds,02/07/2015,Dental Officer,PDS Out of Hours,MARK WARD,OOHS JUN15,658.56,
Department of Health,CT Revenue Funds,02/07/2015,Dental Surgery Equipment,Dental Central Admin,WRIGHT COTTRELL,92036991,-192,
Department of Health,CT Revenue Funds,02/07/2015,Dental Surgery Equipment,Dental Central Admin,WRIGHT COTTRELL,92036991,-38.4,
Department of Health,CT Revenue Funds,02/07/2015,Dental Surgery Equipment,Dental Central Admin,WRIGHT COTTRELL,92036991,-38.4,
Department of Health,CT Revenue Funds,02/07/2015,Dental Surgery Equipment,Dental Central Admin,WRIGHT COTTRELL,92037229,-26.95,
Department of Health,CT Revenue Funds,02/07/2015,Dental Surgery Equipment,SpecialCare and Access,DENTAL DIRECTORY BILLERICAY DENTAL,1550643,0.86,
Department of Health,CT Revenue Funds,02/07/2015,Dental Surgery Equipment,SpecialCare and Access,DENTAL DIRECTORY BILLERICAY DENTAL,1550643,4.29,
Department of Health,CT Revenue Funds,02/07/2015,Dental Surgery Equipment,Dental Central Admin,WRIGHT COTTRELL,92037229,26.95,
Department of Health,CT Revenue Funds,02/07/2015,Dental Surgery Equipment,Dental Central Admin,WRIGHT COTTRELL,92036991,38.4,
Department of Health,CT Revenue Funds,02/07/2015,Dental Surgery Equipment,Dental Central Admin,WRIGHT COTTRELL,92036991,38.4,
Department of Health,CT Revenue Funds,02/07/2015,Dental Surgery Equipment,Dental Central Admin,WRIGHT COTTRELL,92037229,134.75,
Department of Health,CT Revenue Funds,02/07/2015,Dental Surgery Equipment,Dental Central Admin,WRIGHT COTTRELL,92036991,192,
Department of Health,CT Revenue Funds,02/07/2015,Dental Surgery Equipment,Dental Central Admin,WRIGHT COTTRELL,92036991,192,
Department of Health,CT Revenue Funds,02/07/2015,Dental Surgery Instruments,Rapid Response (T&W),HENRY SCHEIN MINERVA - CONSUMABLES,65499631,0.22,573 7789 79
Department of Health,CT Revenue Funds,02/07/2015,Dental Surgery Instruments,Rapid Response (T&W),HENRY SCHEIN MINERVA - CONSUMABLES,65499631,1.08,573 7789 79
Department of Health,CT Revenue Funds,02/07/2015,Dental Surgery Sundries,SpecialCare and Access,NHS SUPPLY CHAIN,1016053559,-0.04,654 4347 29
Department of Health,CT Revenue Funds,02/07/2015,Dental Surgery Sundries,SpecialCare and Access,NHS SUPPLY CHAIN,1016053559,-0.01,654 4347 29
Department of Health,CT Revenue Funds,02/07/2015,Dental Surgery Sundries,M Drayton Dental Practice,NHS SUPPLY CHAIN,1016053559,-0.01,654 4347 29
Department of Health,CT Revenue Funds,02/07/2015,Dental Surgery Sundries,M Drayton Dental Practice,NHS SUPPLY CHAIN,1016053559,-0.01,654 4347 29
Department of Health,CT Revenue Funds,02/07/2015,Dental Surgery Sundries,M Drayton Dental Practice,NHS SUPPLY CHAIN,1016053559,-0.01,654 4347 29
Department of Health,CT Revenue Funds,02/07/2015,Dental Surgery Sundries,C Arms Dental Practice,NHS SUPPLY CHAIN,1016053559,-0.01,654 4347 29
Department of Health,CT Revenue Funds,02/07/2015,Dental Surgery Sundries,C Arms Dental Practice,NHS SUPPLY CHAIN,1016053559,-0.01,654 4347 29
Department of Health,CT Revenue Funds,02/07/2015,Dental Surgery Sundries,SpecialCare and Access,NHS SUPPLY CHAIN,1016053559,-0.01,654 4347 29
Department of Health,CT Revenue Funds,02/07/2015,Dental Surgery Sundries,SpecialCare and Access,NHS SUPPLY CHAIN,1016053559,0.01,654 4347 29
Department of Health,CT Revenue Funds,02/07/2015,Dental Surgery Sundries,M Drayton Dental Practice,NHS SUPPLY CHAIN,1016053559,0.01,654 4347 29
Department of Health,CT Revenue Funds,02/07/2015,Dental Surgery Sundries,M Drayton Dental Practice,NHS SUPPLY CHAIN,1016053559,0.01,654 4347 29
Department of Health,CT Revenue Funds,02/07/2015,Dental Surgery Sundries,C Arms Dental Practice,NHS SUPPLY CHAIN,1016053559,0.01,654 4347 29
Department of Health,CT Revenue Funds,02/07/2015,Dental Surgery Sundries,C Arms Dental Practice,NHS SUPPLY CHAIN,1016053559,0.01,654 4347 29
Department of Health,CT Revenue Funds,02/07/2015,Dental Surgery Sundries,SpecialCare and Access,NHS SUPPLY CHAIN,1016053559,0.01,654 4347 29
Department of Health,CT Revenue Funds,02/07/2015,Dental Surgery Sundries,SpecialCare and Access,NHS SUPPLY CHAIN,1016053559,0.03,654 4347 29
Department of Health,CT Revenue Funds,02/07/2015,Dental Surgery Sundries,Podiatry Services,NHS SUPPLY CHAIN,1016053559,0.31,654 4347 29
Department of Health,CT Revenue Funds,02/07/2015,Dental Surgery Sundries,C Arms Dental Practice,NHS SUPPLY CHAIN,1016053559,0.44,654 4347 29
Department of Health,CT Revenue Funds,02/07/2015,Dental Surgery Sundries,C Arms Dental Practice,NHS SUPPLY CHAIN,1016053559,0.69,654 4347 29
Department of Health,CT Revenue Funds,02/07/2015,Dental Surgery Sundries,C Arms Dental Practice,NHS SUPPLY CHAIN,1016053559,0.73,654 4347 29
Department of Health,CT Revenue Funds,02/07/2015,Dental Surgery Sundries,C Arms Dental Practice,NHS SUPPLY CHAIN,1016053559,0.78,654 4347 29
Department of Health,CT Revenue Funds,02/07/2015,Dental Surgery Sundries,SpecialCare and Access,NHS SUPPLY CHAIN,1016053559,0.92,654 4347 29
Department of Health,CT Revenue Funds,02/07/2015,Dental Surgery Sundries,Bridgnorth Hospital Minor Injuries Unit,NHS SUPPLY CHAIN,1016053559,1,654 4347 29
Department of Health,CT Revenue Funds,02/07/2015,Dental Surgery Sundries,Bridgnorth Hospital Minor Injuries Unit,NHS SUPPLY CHAIN,1016053559,1,654 4347 29
Department of Health,CT Revenue Funds,02/07/2015,Dental Surgery Sundries,C Arms Dental Practice,NHS SUPPLY CHAIN,1016053559,1,654 4347 29
Department of Health,CT Revenue Funds,02/07/2015,Dental Surgery Sundries,C Arms Dental Practice,NHS SUPPLY CHAIN,1016053559,1,654 4347 29
Department of Health,CT Revenue Funds,02/07/2015,Dental Surgery Sundries,SpecialCare and Access,NHS SUPPLY CHAIN,1016053559,1.12,654 4347 29
Department of Health,CT Revenue Funds,02/07/2015,Dental Surgery Sundries,SpecialCare and Access,NHS SUPPLY CHAIN,1016053559,1.22,654 4347 29
Department of Health,CT Revenue Funds,02/07/2015,Dental Surgery Sundries,M Drayton Dental Practice,NHS SUPPLY CHAIN,1016053559,1.25,654 4347 29
Department of Health,CT Revenue Funds,02/07/2015,Dental Surgery Sundries,Podiatry Services,NHS SUPPLY CHAIN,1016053559,1.55,654 4347 29
Department of Health,CT Revenue Funds,02/07/2015,Dental Surgery Sundries,C Arms Dental Practice,NHS SUPPLY CHAIN,1016053559,1.84,654 4347 29
Department of Health,CT Revenue Funds,02/07/2015,Dental Surgery Sundries,M Drayton Dental Practice,NHS SUPPLY CHAIN,1016053559,1.9,654 4347 29
Department of Health,CT Revenue Funds,02/07/2015,Dental Surgery Sundries,SpecialCare and Access,NHS SUPPLY CHAIN,1016053559,1.97,654 4347 29
Department of Health,CT Revenue Funds,02/07/2015,Dental Surgery Sundries,C Arms Dental Practice,NHS SUPPLY CHAIN,1016053559,2.03,654 4347 29
Department of Health,CT Revenue Funds,02/07/2015,Dental Surgery Sundries,C Arms Dental Practice,NHS SUPPLY CHAIN,1016053559,2.21,654 4347 29
Department of Health,CT Revenue Funds,02/07/2015,Dental Surgery Sundries,C Arms Dental Practice,NHS SUPPLY CHAIN,1016053559,2.52,654 4347 29
Department of Health,CT Revenue Funds,02/07/2015,Dental Surgery Sundries,SpecialCare and Access,NHS SUPPLY CHAIN,1016053559,2.82,654 4347 29
Department of Health,CT Revenue Funds,02/07/2015,Dental Surgery Sundries,M Drayton Dental Practice,NHS SUPPLY CHAIN,1016053559,3.35,654 4347 29
Department of Health,CT Revenue Funds,02/07/2015,Dental Surgery Sundries,C Arms Dental Practice,NHS SUPPLY CHAIN,1016053559,3.43,654 4347 29
Department of Health,CT Revenue Funds,02/07/2015,Dental Surgery Sundries,C Arms Dental Practice,NHS SUPPLY CHAIN,1016053559,3.43,654 4347 29
Department of Health,CT Revenue Funds,02/07/2015,Dental Surgery Sundries,C Arms Dental Practice,NHS SUPPLY CHAIN,1016053559,3.66,654 4347 29
Department of Health,CT Revenue Funds,02/07/2015,Dental Surgery Sundries,C Arms Dental Practice,NHS SUPPLY CHAIN,1016053559,3.85,654 4347 29
Department of Health,CT Revenue Funds,02/07/2015,Dental Surgery Sundries,C Arms Dental Practice,NHS SUPPLY CHAIN,1016053559,3.91,654 4347 29
Department of Health,CT Revenue Funds,02/07/2015,Dental Surgery Sundries,SpecialCare and Access,NHS SUPPLY CHAIN,1016053559,4.6,654 4347 29
Department of Health,CT Revenue Funds,02/07/2015,Dental Surgery Sundries,M Drayton Dental Practice,NHS SUPPLY CHAIN,1016053559,4.81,654 4347 29
Department of Health,CT Revenue Funds,02/07/2015,Dental Surgery Sundries,C Arms Dental Practice,NHS SUPPLY CHAIN,1016053559,5,654 4347 29
Department of Health,CT Revenue Funds,02/07/2015,Dental Surgery Sundries,C Arms Dental Practice,NHS SUPPLY CHAIN,1016053559,5,654 4347 29
Department of Health,CT Revenue Funds,02/07/2015,Dental Surgery Sundries,Bridgnorth Hospital Minor Injuries Unit,NHS SUPPLY CHAIN,1016053559,5,654 4347 29
Department of Health,CT Revenue Funds,02/07/2015,Dental Surgery Sundries,Bridgnorth Hospital Minor Injuries Unit,NHS SUPPLY CHAIN,1016053559,5,654 4347 29
Department of Health,CT Revenue Funds,02/07/2015,Dental Surgery Sundries,SpecialCare and Access,NHS SUPPLY CHAIN,1016053559,5.04,654 4347 29
Department of Health,CT Revenue Funds,02/07/2015,Dental Surgery Sundries,M Drayton Dental Practice,NHS SUPPLY CHAIN,1016053559,5.27,654 4347 29
Department of Health,CT Revenue Funds,02/07/2015,Dental Surgery Sundries,SpecialCare and Access,NHS SUPPLY CHAIN,1016053559,5.62,654 4347 29
Department of Health,CT Revenue Funds,02/07/2015,Dental Surgery Sundries,C Arms Dental Practice,NHS SUPPLY CHAIN,1016053559,5.74,654 4347 29
Department of Health,CT Revenue Funds,02/07/2015,Dental Surgery Sundries,SpecialCare and Access,NHS SUPPLY CHAIN,1016053559,6.08,654 4347 29
Department of Health,CT Revenue Funds,02/07/2015,Dental Surgery Sundries,M Drayton Dental Practice,NHS SUPPLY CHAIN,1016053559,6.26,654 4347 29
Department of Health,CT Revenue Funds,02/07/2015,Dental Surgery Sundries,M Drayton Dental Practice,NHS SUPPLY CHAIN,1016053559,6.3,654 4347 29
Department of Health,CT Revenue Funds,02/07/2015,Dental Surgery Sundries,C Arms Dental Practice,NHS SUPPLY CHAIN,1016053559,6.48,654 4347 29
Department of Health,CT Revenue Funds,02/07/2015,Dental Surgery Sundries,M Drayton Dental Practice,NHS SUPPLY CHAIN,1016053559,6.85,654 4347 29
Department of Health,CT Revenue Funds,02/07/2015,Dental Surgery Sundries,SpecialCare and Access,NHS SUPPLY CHAIN,1016053559,7.32,654 4347 29
Department of Health,CT Revenue Funds,02/07/2015,Dental Surgery Sundries,M Drayton Dental Practice,NHS SUPPLY CHAIN,1016053559,7.42,654 4347 29
Department of Health,CT Revenue Funds,02/07/2015,Dental Surgery Sundries,M Drayton Dental Practice,NHS SUPPLY CHAIN,1016053559,7.74,654 4347 29
Department of Health,CT Revenue Funds,02/07/2015,Dental Surgery Sundries,C Arms Dental Practice,NHS SUPPLY CHAIN,1016053559,8.28,654 4347 29
Department of Health,CT Revenue Funds,02/07/2015,Dental Surgery Sundries,SpecialCare and Access,NHS SUPPLY CHAIN,1016053559,8.73,654 4347 29
Department of Health,CT Revenue Funds,02/07/2015,Dental Surgery Sundries,M Drayton Dental Practice,NHS SUPPLY CHAIN,1016053559,9.07,654 4347 29
Department of Health,CT Revenue Funds,02/07/2015,Dental Surgery Sundries,C Arms Dental Practice,NHS SUPPLY CHAIN,1016053559,9.2,654 4347 29
Department of Health,CT Revenue Funds,02/07/2015,Dental Surgery Sundries,M Drayton Dental Practice,NHS SUPPLY CHAIN,1016053559,9.52,654 4347 29
Department of Health,CT Revenue Funds,02/07/2015,Dental Surgery Sundries,SpecialCare and Access,NHS SUPPLY CHAIN,1016053559,9.84,654 4347 29
Department of Health,CT Revenue Funds,02/07/2015,Dental Surgery Sundries,C Arms Dental Practice,NHS SUPPLY CHAIN,1016053559,10.14,654 4347 29
Department of Health,CT Revenue Funds,02/07/2015,Dental Surgery Sundries,M Drayton Dental Practice,NHS SUPPLY CHAIN,1016053559,11.63,654 4347 29
Department of Health,CT Revenue Funds,02/07/2015,Dental Surgery Sundries,M Drayton Dental Practice,NHS SUPPLY CHAIN,1016053559,11.94,654 4347 29
Department of Health,CT Revenue Funds,02/07/2015,Dental Surgery Sundries,C Arms Dental Practice,NHS SUPPLY CHAIN,1016053559,12.61,654 4347 29
Department of Health,CT Revenue Funds,02/07/2015,Dental Surgery Sundries,C Arms Dental Practice,NHS SUPPLY CHAIN,1016053559,13.83,654 4347 29
Department of Health,CT Revenue Funds,02/07/2015,Dental Surgery Sundries,SpecialCare and Access,NHS SUPPLY CHAIN,1016053559,14.1,654 4347 29
Department of Health,CT Revenue Funds,02/07/2015,Dental Surgery Sundries,M Drayton Dental Practice,NHS SUPPLY CHAIN,1016053559,16.76,654 4347 29
Department of Health,CT Revenue Funds,02/07/2015,Dental Surgery Sundries,C Arms Dental Practice,NHS SUPPLY CHAIN,1016053559,17.14,654 4347 29
Department of Health,CT Revenue Funds,02/07/2015,Dental Surgery Sundries,SpecialCare and Access,NHS SUPPLY CHAIN,1016053559,18.01,654 4347 29
Department of Health,CT Revenue Funds,02/07/2015,Dental Surgery Sundries,C Arms Dental Practice,NHS SUPPLY CHAIN,1016053559,19.26,654 4347 29
Department of Health,CT Revenue Funds,02/07/2015,Dental Surgery Sundries,SpecialCare and Access,NHS SUPPLY CHAIN,1016053559,20.57,654 4347 29
Department of Health,CT Revenue Funds,02/07/2015,Dental Surgery Sundries,M Drayton Dental Practice,NHS SUPPLY CHAIN,1016053559,24.07,654 4347 29
Department of Health,CT Revenue Funds,02/07/2015,Dental Surgery Sundries,SpecialCare and Access,NHS SUPPLY CHAIN,1016053559,25.22,654 4347 29
Department of Health,CT Revenue Funds,02/07/2015,Dental Surgery Sundries,M Drayton Dental Practice,NHS SUPPLY CHAIN,1016053559,26.36,654 4347 29
Department of Health,CT Revenue Funds,02/07/2015,Dental Surgery Sundries,C Arms Dental Practice,NHS SUPPLY CHAIN,1016053559,28.68,654 4347 29
Department of Health,CT Revenue Funds,02/07/2015,Dental Surgery Sundries,M Drayton Dental Practice,NHS SUPPLY CHAIN,1016053559,31.48,654 4347 29
Department of Health,CT Revenue Funds,02/07/2015,Dental Surgery Sundries,C Arms Dental Practice,NHS SUPPLY CHAIN,1016053559,32.4,654 4347 29
Department of Health,CT Revenue Funds,02/07/2015,Dental Surgery Sundries,M Drayton Dental Practice,NHS SUPPLY CHAIN,1016053559,34.28,654 4347 29
Department of Health,CT Revenue Funds,02/07/2015,Dental Surgery Sundries,SpecialCare and Access,NHS SUPPLY CHAIN,1016053559,36.64,654 4347 29
Department of Health,CT Revenue Funds,02/07/2015,Dental Surgery Sundries,M Drayton Dental Practice,NHS SUPPLY CHAIN,1016053559,37.08,654 4347 29
Department of Health,CT Revenue Funds,02/07/2015,Dental Surgery Sundries,SpecialCare and Access,NHS SUPPLY CHAIN,1016053559,38.28,654 4347 29
Department of Health,CT Revenue Funds,02/07/2015,Dental Surgery Sundries,M Drayton Dental Practice,NHS SUPPLY CHAIN,1016053559,38.7,654 4347 29
Department of Health,CT Revenue Funds,02/07/2015,Dental Surgery Sundries,C Arms Dental Practice,NHS SUPPLY CHAIN,1016053559,41.38,654 4347 29
Department of Health,CT Revenue Funds,02/07/2015,Dental Surgery Sundries,SpecialCare and Access,NHS SUPPLY CHAIN,1016053559,43.62,654 4347 29
Department of Health,CT Revenue Funds,02/07/2015,Dental Surgery Sundries,M Drayton Dental Practice,NHS SUPPLY CHAIN,1016053559,45.36,654 4347 29
Department of Health,CT Revenue Funds,02/07/2015,Dental Surgery Sundries,M Drayton Dental Practice,NHS SUPPLY CHAIN,1016053559,58.16,654 4347 29
Department of Health,CT Revenue Funds,02/07/2015,Dental Surgery Sundries,M Drayton Dental Practice,NHS SUPPLY CHAIN,1016053559,59.69,654 4347 29
Department of Health,CT Revenue Funds,02/07/2015,Dental Surgery Sundries,C Arms Dental Practice,NHS SUPPLY CHAIN,1016053559,69.16,654 4347 29
Department of Health,CT Revenue Funds,02/07/2015,Dental Surgery Sundries,SpecialCare and Access,NHS SUPPLY CHAIN,1016053559,90.06,654 4347 29
Department of Health,CT Revenue Funds,02/07/2015,Dental Surgery Sundries,SpecialCare and Access,NHS SUPPLY CHAIN,1016053559,102.84,654 4347 29
Department of Health,CT Revenue Funds,02/07/2015,Dental Surgery Sundries,SpecialCare and Access,NHS SUPPLY CHAIN,1016053559,191.4,654 4347 29
Department of Health,CT Revenue Funds,02/07/2015,Disposable Table Linen,Ludlow Hospital Inpatient Wards,NHS SUPPLY CHAIN,1016053559,0.01,654 4347 29
Department of Health,CT Revenue Funds,02/07/2015,Disposable Table Linen,Whitchurch Hospital Inpatient Ward,NHS SUPPLY CHAIN,1016053559,0.01,654 4347 29
Department of Health,CT Revenue Funds,02/07/2015,Disposable Table Linen,Whitchurch Hospital Inpatient Ward,NHS SUPPLY CHAIN,1016053559,0.03,654 4347 29
Department of Health,CT Revenue Funds,02/07/2015,Disposable Table Linen,Ludlow Hospital Inpatient Wards,NHS SUPPLY CHAIN,1016053559,0.29,654 4347 29
Department of Health,CT Revenue Funds,02/07/2015,Disposable Table Linen,Whitchurch Hospital Inpatient Ward,NHS SUPPLY CHAIN,1016053559,1.16,654 4347 29
Department of Health,CT Revenue Funds,02/07/2015,Disposable Table Linen,Ludlow Hospital Inpatient Wards,NHS SUPPLY CHAIN,1016053559,1.46,654 4347 29
Department of Health,CT Revenue Funds,02/07/2015,Disposable Table Linen,Whitchurch Hospital Inpatient Ward,NHS SUPPLY CHAIN,1016053559,5.84,654 4347 29
Department of Health,CT Revenue Funds,02/07/2015,Disposable Theatre Drapes & Wipes,Whitchurch Hospital Inpatient Ward,NHS SUPPLY CHAIN,1016053559,-0.04,654 4347 29
Department of Health,CT Revenue Funds,02/07/2015,Disposable Theatre Drapes & Wipes,Ludlow Hospital Inpatient Wards,NHS SUPPLY CHAIN,1016053559,-0.02,654 4347 29
Department of Health,CT Revenue Funds,02/07/2015,Disposable Theatre Drapes & Wipes,Whitchurch Hospital Inpatient Ward,NHS SUPPLY CHAIN,1016053559,-0.01,654 4347 29
Department of Health,CT Revenue Funds,02/07/2015,Disposable Theatre Drapes & Wipes,Ludlow Hospital Inpatient Wards,NHS SUPPLY CHAIN,1016053559,-0.01,654 4347 29
Department of Health,CT Revenue Funds,02/07/2015,Disposable Theatre Drapes & Wipes,Oswestry Minor Injuries Unit,NHS SUPPLY CHAIN,1016053559,-0.01,654 4347 29
Department of Health,CT Revenue Funds,02/07/2015,Disposable Theatre Drapes & Wipes,Whitchurch Hospital Inpatient Ward,NHS SUPPLY CHAIN,1016053559,-0.01,654 4347 29
Department of Health,CT Revenue Funds,02/07/2015,Disposable Theatre Drapes & Wipes,North West Shropshire Interdisciplinary Teams,NHS SUPPLY CHAIN,1016053559,0.01,654 4347 29
Department of Health,CT Revenue Funds,02/07/2015,Disposable Theatre Drapes & Wipes,Shrewsbury and Atcham DAART,NHS SUPPLY CHAIN,1016053559,0.01,654 4347 29
Department of Health,CT Revenue Funds,02/07/2015,Disposable Theatre Drapes & Wipes,Bridgnorth Hospital Inpatient Ward,NHS SUPPLY CHAIN,1016053559,0.01,654 4347 29
Department of Health,CT Revenue Funds,02/07/2015,Disposable Theatre Drapes & Wipes,Bridgnorth Hospital Inpatient Ward,NHS SUPPLY CHAIN,1016053559,0.01,654 4347 29
Department of Health,CT Revenue Funds,02/07/2015,Disposable Theatre Drapes & Wipes,Bishops Castle Hospital Inpatient Ward,NHS SUPPLY CHAIN,1016053559,0.01,654 4347 29
Department of Health,CT Revenue Funds,02/07/2015,Disposable Theatre Drapes & Wipes,North Telford Health Visitors,NHS SUPPLY CHAIN,1016053559,0.02,654 4347 29
Department of Health,CT Revenue Funds,02/07/2015,Disposable Theatre Drapes & Wipes,Whitchurch Hospital Inpatient Ward,NHS SUPPLY CHAIN,1016053559,0.02,654 4347 29
Department of Health,CT Revenue Funds,02/07/2015,Disposable Theatre Drapes & Wipes,Bridgnorth Hospital Inpatient Ward,NHS SUPPLY CHAIN,1016053559,0.02,654 4347 29
Department of Health,CT Revenue Funds,02/07/2015,Disposable Theatre Drapes & Wipes,Bishops Castle Hospital Inpatient Ward,NHS SUPPLY CHAIN,1016053559,0.02,654 4347 29
Department of Health,CT Revenue Funds,02/07/2015,Disposable Theatre Drapes & Wipes,Bridgnorth Hospital Inpatient Ward,NHS SUPPLY CHAIN,1016053559,0.03,654 4347 29
Department of Health,CT Revenue Funds,02/07/2015,Disposable Theatre Drapes & Wipes,Bridgnorth Hospital Inpatient Ward,NHS SUPPLY CHAIN,1016053559,0.04,654 4347 29
Department of Health,CT Revenue Funds,02/07/2015,Disposable Theatre Drapes & Wipes,Bishops Castle Hospital Inpatient Ward,NHS SUPPLY CHAIN,1016053559,0.04,654 4347 29
Department of Health,CT Revenue Funds,02/07/2015,Disposable Theatre Drapes & Wipes,Whitchurch Hospital Inpatient Ward,NHS SUPPLY CHAIN,1016053559,0.04,654 4347 29
Department of Health,CT Revenue Funds,02/07/2015,Disposable Theatre Drapes & Wipes,Ludlow Hospital Inpatient Wards,NHS SUPPLY CHAIN,1016053559,0.04,654 4347 29
Department of Health,CT Revenue Funds,02/07/2015,Disposable Theatre Drapes & Wipes,Whitchurch Hospital Inpatient Ward,NHS SUPPLY CHAIN,1016053559,0.08,654 4347 29
Department of Health,CT Revenue Funds,02/07/2015,Disposable Theatre Drapes & Wipes,Bridgnorth Hospital Inpatient Ward,NHS SUPPLY CHAIN,1016053559,0.09,654 4347 29
Department of Health,CT Revenue Funds,02/07/2015,Disposable Theatre Drapes & Wipes,Bishops Castle Hospital Inpatient Ward,NHS SUPPLY CHAIN,1016053559,0.09,654 4347 29
Department of Health,CT Revenue Funds,02/07/2015,Disposable Theatre Drapes & Wipes,Podiatry Services,NHS SUPPLY CHAIN,1016053559,0.17,654 4347 29
Department of Health,CT Revenue Funds,02/07/2015,Disposable Theatre Drapes & Wipes,Podiatry Services,NHS SUPPLY CHAIN,1016053559,0.17,654 4347 29
Department of Health,CT Revenue Funds,02/07/2015,Disposable Theatre Drapes & Wipes,Podiatry Services,NHS SUPPLY CHAIN,1016053559,0.17,654 4347 29
Department of Health,CT Revenue Funds,02/07/2015,Disposable Theatre Drapes & Wipes,Whitchurch Hospital Inpatient Ward,NHS SUPPLY CHAIN,1016053559,0.19,654 4347 29
Department of Health,CT Revenue Funds,02/07/2015,Disposable Theatre Drapes & Wipes,Ludlow Hospital Inpatient Wards,NHS SUPPLY CHAIN,1016053559,0.19,654 4347 29
Department of Health,CT Revenue Funds,02/07/2015,Disposable Theatre Drapes & Wipes,Podiatry Services,NHS SUPPLY CHAIN,1016053559,0.23,654 4347 29
Department of Health,CT Revenue Funds,02/07/2015,Disposable Theatre Drapes & Wipes,Podiatry Services,NHS SUPPLY CHAIN,1016053559,0.23,654 4347 29
Department of Health,CT Revenue Funds,02/07/2015,Disposable Theatre Drapes & Wipes,North West Shropshire Interdisciplinary Teams,NHS SUPPLY CHAIN,1016053559,0.23,654 4347 29
Department of Health,CT Revenue Funds,02/07/2015,Disposable Theatre Drapes & Wipes,Bridgnorth Hospital Inpatient Ward,NHS SUPPLY CHAIN,1016053559,0.29,654 4347 29
Department of Health,CT Revenue Funds,02/07/2015,Disposable Theatre Drapes & Wipes,Bishops Castle Hospital Inpatient Ward,NHS SUPPLY CHAIN,1016053559,0.29,654 4347 29
Department of Health,CT Revenue Funds,02/07/2015,Disposable Theatre Drapes & Wipes,Podiatry Services,NHS SUPPLY CHAIN,1016053559,0.34,654 4347 29
Department of Health,CT Revenue Funds,02/07/2015,Disposable Theatre Drapes & Wipes,Podiatry Services,NHS SUPPLY CHAIN,1016053559,0.34,654 4347 29
Department of Health,CT Revenue Funds,02/07/2015,Disposable Theatre Drapes & Wipes,Podiatry Services,NHS SUPPLY CHAIN,1016053559,0.46,654 4347 29
Department of Health,CT Revenue Funds,02/07/2015,Disposable Theatre Drapes & Wipes,Podiatry Services,NHS SUPPLY CHAIN,1016053559,0.46,654 4347 29
Department of Health,CT Revenue Funds,02/07/2015,Disposable Theatre Drapes & Wipes,Whitchurch Hospital Inpatient Ward,NHS SUPPLY CHAIN,1016053559,0.58,654 4347 29
Department of Health,CT Revenue Funds,02/07/2015,Disposable Theatre Drapes & Wipes,North Telford Health Visitors,NHS SUPPLY CHAIN,1016053559,0.7,654 4347 29
Department of Health,CT Revenue Funds,02/07/2015,Disposable Theatre Drapes & Wipes,Podiatry Services,NHS SUPPLY CHAIN,1016053559,0.85,654 4347 29
Department of Health,CT Revenue Funds,02/07/2015,Disposable Theatre Drapes & Wipes,Podiatry Services,NHS SUPPLY CHAIN,1016053559,0.85,654 4347 29
Department of Health,CT Revenue Funds,02/07/2015,Disposable Theatre Drapes & Wipes,Podiatry Services,NHS SUPPLY CHAIN,1016053559,0.85,654 4347 29
Department of Health,CT Revenue Funds,02/07/2015,Disposable Theatre Drapes & Wipes,Podiatry Services,NHS SUPPLY CHAIN,1016053559,0.92,654 4347 29
Department of Health,CT Revenue Funds,02/07/2015,Disposable Theatre Drapes & Wipes,Ludlow Hospital Inpatient Wards,NHS SUPPLY CHAIN,1016053559,0.97,654 4347 29
Department of Health,CT Revenue Funds,02/07/2015,Disposable Theatre Drapes & Wipes,Podiatry Services,NHS SUPPLY CHAIN,1016053559,1.02,654 4347 29
Department of Health,CT Revenue Funds,02/07/2015,Disposable Theatre Drapes & Wipes,Podiatry Services,NHS SUPPLY CHAIN,1016053559,1.15,654 4347 29
Department of Health,CT Revenue Funds,02/07/2015,Disposable Theatre Drapes & Wipes,Podiatry Services,NHS SUPPLY CHAIN,1016053559,1.15,654 4347 29
Department of Health,CT Revenue Funds,02/07/2015,Disposable Theatre Drapes & Wipes,North West Shropshire Interdisciplinary Teams,NHS SUPPLY CHAIN,1016053559,1.16,654 4347 29
Department of Health,CT Revenue Funds,02/07/2015,Disposable Theatre Drapes & Wipes,Bridgnorth Hospital Inpatient Ward,NHS SUPPLY CHAIN,1016053559,1.26,654 4347 29
Department of Health,CT Revenue Funds,02/07/2015,Disposable Theatre Drapes & Wipes,Bridgnorth Hospital Inpatient Ward,NHS SUPPLY CHAIN,1016053559,1.46,654 4347 29
Department of Health,CT Revenue Funds,02/07/2015,Disposable Theatre Drapes & Wipes,Bishops Castle Hospital Inpatient Ward,NHS SUPPLY CHAIN,1016053559,1.46,654 4347 29
Department of Health,CT Revenue Funds,02/07/2015,Disposable Theatre Drapes & Wipes,Ludlow Hospital Inpatient Wards,NHS SUPPLY CHAIN,1016053559,1.46,654 4347 29
Department of Health,CT Revenue Funds,02/07/2015,Disposable Theatre Drapes & Wipes,Podiatry Services,NHS SUPPLY CHAIN,1016053559,1.7,654 4347 29
Department of Health,CT Revenue Funds,02/07/2015,Disposable Theatre Drapes & Wipes,Podiatry Services,NHS SUPPLY CHAIN,1016053559,1.7,654 4347 29
Department of Health,CT Revenue Funds,02/07/2015,Disposable Theatre Drapes & Wipes,Shrewsbury and Atcham DAART,NHS SUPPLY CHAIN,1016053559,1.83,654 4347 29
Department of Health,CT Revenue Funds,02/07/2015,Disposable Theatre Drapes & Wipes,Podiatry Services,NHS SUPPLY CHAIN,1016053559,2.3,654 4347 29
Department of Health,CT Revenue Funds,02/07/2015,Disposable Theatre Drapes & Wipes,Podiatry Services,NHS SUPPLY CHAIN,1016053559,2.3,654 4347 29
Department of Health,CT Revenue Funds,02/07/2015,Disposable Theatre Drapes & Wipes,Whitchurch Hospital Inpatient Ward,NHS SUPPLY CHAIN,1016053559,2.92,654 4347 29
Department of Health,CT Revenue Funds,02/07/2015,Disposable Theatre Drapes & Wipes,Whitchurch Hospital Inpatient Ward,NHS SUPPLY CHAIN,1016053559,2.93,654 4347 29
Department of Health,CT Revenue Funds,02/07/2015,Disposable Theatre Drapes & Wipes,Ludlow Hospital Inpatient Wards,NHS SUPPLY CHAIN,1016053559,3.03,654 4347 29
Department of Health,CT Revenue Funds,02/07/2015,Disposable Theatre Drapes & Wipes,North Telford Health Visitors,NHS SUPPLY CHAIN,1016053559,3.48,654 4347 29
Department of Health,CT Revenue Funds,02/07/2015,Disposable Theatre Drapes & Wipes,Bridgnorth Hospital Minor Injuries Unit,NHS SUPPLY CHAIN,1016053559,3.75,654 4347 29
Department of Health,CT Revenue Funds,02/07/2015,Disposable Theatre Drapes & Wipes,Bridgnorth Hospital Inpatient Ward,NHS SUPPLY CHAIN,1016053559,3.75,654 4347 29
Department of Health,CT Revenue Funds,02/07/2015,Disposable Theatre Drapes & Wipes,Bishops Castle Hospital Inpatient Ward,NHS SUPPLY CHAIN,1016053559,3.75,654 4347 29
Department of Health,CT Revenue Funds,02/07/2015,Disposable Theatre Drapes & Wipes,Bridgnorth Hospital Inpatient Ward,NHS SUPPLY CHAIN,1016053559,4.09,654 4347 29
Department of Health,CT Revenue Funds,02/07/2015,Disposable Theatre Drapes & Wipes,Bishops Castle Hospital Inpatient Ward,NHS SUPPLY CHAIN,1016053559,4.09,654 4347 29
Department of Health,CT Revenue Funds,02/07/2015,Disposable Theatre Drapes & Wipes,Podiatry Services,NHS SUPPLY CHAIN,1016053559,4.6,654 4347 29
Department of Health,CT Revenue Funds,02/07/2015,Disposable Theatre Drapes & Wipes,Ludlow Hospital Inpatient Wards,NHS SUPPLY CHAIN,1016053559,4.88,654 4347 29
Department of Health,CT Revenue Funds,02/07/2015,Disposable Theatre Drapes & Wipes,Podiatry Services,NHS SUPPLY CHAIN,1016053559,5.1,654 4347 29
Department of Health,CT Revenue Funds,02/07/2015,Disposable Theatre Drapes & Wipes,Ludlow Hospital Inpatient Wards,NHS SUPPLY CHAIN,1016053559,5.2,654 4347 29
Department of Health,CT Revenue Funds,02/07/2015,Disposable Theatre Drapes & Wipes,Oswestry Minor Injuries Unit,NHS SUPPLY CHAIN,1016053559,5.89,654 4347 29
Department of Health,CT Revenue Funds,02/07/2015,Disposable Theatre Drapes & Wipes,Bridgnorth Hospital Inpatient Ward,NHS SUPPLY CHAIN,1016053559,6.3,654 4347 29
Department of Health,CT Revenue Funds,02/07/2015,Disposable Theatre Drapes & Wipes,Ludlow Hospital Inpatient Wards,NHS SUPPLY CHAIN,1016053559,7.32,654 4347 29
Department of Health,CT Revenue Funds,02/07/2015,Disposable Theatre Drapes & Wipes,Whitchurch Hospital Inpatient Ward,NHS SUPPLY CHAIN,1016053559,7.51,654 4347 29
Department of Health,CT Revenue Funds,02/07/2015,Disposable Theatre Drapes & Wipes,Whitchurch Hospital Inpatient Ward,NHS SUPPLY CHAIN,1016053559,8.17,654 4347 29
Department of Health,CT Revenue Funds,02/07/2015,Disposable Theatre Drapes & Wipes,Shrewsbury and Atcham DAART,NHS SUPPLY CHAIN,1016053559,9.12,654 4347 29
Department of Health,CT Revenue Funds,02/07/2015,Disposable Theatre Drapes & Wipes,Whitchurch Hospital Inpatient Ward,NHS SUPPLY CHAIN,1016053559,14.64,654 4347 29
Department of Health,CT Revenue Funds,02/07/2015,Disposable Theatre Drapes & Wipes,Ludlow Hospital Inpatient Wards,NHS SUPPLY CHAIN,1016053559,15.14,654 4347 29
Department of Health,CT Revenue Funds,02/07/2015,Disposable Theatre Drapes & Wipes,Bridgnorth Hospital Inpatient Ward,NHS SUPPLY CHAIN,1016053559,18.77,654 4347 29
Department of Health,CT Revenue Funds,02/07/2015,Disposable Theatre Drapes & Wipes,Bridgnorth Hospital Minor Injuries Unit,NHS SUPPLY CHAIN,1016053559,18.77,654 4347 29
Department of Health,CT Revenue Funds,02/07/2015,Disposable Theatre Drapes & Wipes,Bishops Castle Hospital Inpatient Ward,NHS SUPPLY CHAIN,1016053559,18.77,654 4347 29
Department of Health,CT Revenue Funds,02/07/2015,Disposable Theatre Drapes & Wipes,Bridgnorth Hospital Inpatient Ward,NHS SUPPLY CHAIN,1016053559,20.44,654 4347 29
Department of Health,CT Revenue Funds,02/07/2015,Disposable Theatre Drapes & Wipes,Bishops Castle Hospital Inpatient Ward,NHS SUPPLY CHAIN,1016053559,20.44,654 4347 29
Department of Health,CT Revenue Funds,02/07/2015,Disposable Theatre Drapes & Wipes,Ludlow Hospital Inpatient Wards,NHS SUPPLY CHAIN,1016053559,26,654 4347 29
Department of Health,CT Revenue Funds,02/07/2015,Disposable Theatre Drapes & Wipes,Oswestry Minor Injuries Unit,NHS SUPPLY CHAIN,1016053559,29.46,654 4347 29
Department of Health,CT Revenue Funds,02/07/2015,Disposable Theatre Drapes & Wipes,Whitchurch Hospital Inpatient Ward,NHS SUPPLY CHAIN,1016053559,37.54,654 4347 29
Department of Health,CT Revenue Funds,02/07/2015,Disposable Theatre Drapes & Wipes,Whitchurch Hospital Inpatient Ward,NHS SUPPLY CHAIN,1016053559,40.88,654 4347 29
Department of Health,CT Revenue Funds,02/07/2015,Domestics From Other NHS Bodies,14 Deercote Hollinswood Premises,SOUTH STAFFORDSHIRE AND SHROPSHIRE HEALTHCARE NHS FOUNDATION TRUST,I0060453,238.83,654 4070 46
Department of Health,CT Revenue Funds,02/07/2015,Domestics From Other NHS Bodies,Monkmoor CDC,SOUTH STAFFORDSHIRE AND SHROPSHIRE HEALTHCARE NHS FOUNDATION TRUST,I0060456,1131.3,654 4070 46
Department of Health,CT Revenue Funds,02/07/2015,Dressings,Community Childrens Nurses,NHS SUPPLY CHAIN,1016053559,2.61,654 4347 29
Department of Health,CT Revenue Funds,02/07/2015,Dressings,Community Childrens Nurses,NHS SUPPLY CHAIN,1016053559,3.91,654 4347 29
Department of Health,CT Revenue Funds,02/07/2015,Dressings,Community Childrens Nurses,NHS SUPPLY CHAIN,1016053559,13.07,654 4347 29
Department of Health,CT Revenue Funds,02/07/2015,Dressings,Community Childrens Nurses,NHS SUPPLY CHAIN,1016053559,19.53,654 4347 29
Department of Health,CT Revenue Funds,02/07/2015,Drugs,APCS - Musculoskeletal - Telford and Wrekin,SHREWSBURY AND TELFORD HOSPITAL NHS TRUST,10100152,-1459.74,
Department of Health,CT Revenue Funds,02/07/2015,Drugs,APCS - Rheumatology,SHREWSBURY AND TELFORD HOSPITAL NHS TRUST,10100460,-696.4,
Department of Health,CT Revenue Funds,02/07/2015,Drugs,APCS - Rheumatology,SHREWSBURY AND TELFORD HOSPITAL NHS TRUST,10100151,-695.85,
Department of Health,CT Revenue Funds,02/07/2015,Drugs,Whitchurch Hospital Inpatient Ward,NHS SUPPLY CHAIN,1016053559,-0.02,654 4347 29
Department of Health,CT Revenue Funds,02/07/2015,Drugs,Bridgnorth Hospital Minor Injuries Unit,NHS SUPPLY CHAIN,1016053559,-0.02,654 4347 29
Department of Health,CT Revenue Funds,02/07/2015,Drugs,South West Interdisciplinary Teams,NHS SUPPLY CHAIN,1016053559,-0.02,654 4347 29
Department of Health,CT Revenue Funds,02/07/2015,Drugs,Ludlow Hospital Minor Injuries Unit,NHS SUPPLY CHAIN,1016053559,-0.01,654 4347 29
Department of Health,CT Revenue Funds,02/07/2015,Drugs,Ludlow Hospital Minor Injuries Unit,NHS SUPPLY CHAIN,1016053559,-0.01,654 4347 29
Department of Health,CT Revenue Funds,02/07/2015,Drugs,South West Interdisciplinary Teams,NHS SUPPLY CHAIN,1016053559,-0.01,654 4347 29
Department of Health,CT Revenue Funds,02/07/2015,Drugs,Bishops Castle Hospital Inpatient Ward,NHS SUPPLY CHAIN,1016053559,-0.01,654 4347 29
Department of Health,CT Revenue Funds,02/07/2015,Drugs,Community Nursing Team 1,NHS SUPPLY CHAIN,1016053559,-0.01,654 4347 29
Department of Health,CT Revenue Funds,02/07/2015,Drugs,Bridgnorth Hospital Theatre,NHS SUPPLY CHAIN,1016053559,-0.01,654 4347 29
Department of Health,CT Revenue Funds,02/07/2015,Drugs,Bridgnorth Hospital Theatre,NHS SUPPLY CHAIN,1016053559,-0.01,654 4347 29
Department of Health,CT Revenue Funds,02/07/2015,Drugs,Bridgnorth Hospital Minor Injuries Unit,NHS SUPPLY CHAIN,1016053559,0.01,654 4347 29
Department of Health,CT Revenue Funds,02/07/2015,Drugs,Single Point of Referral,NHS SUPPLY CHAIN,1016053559,0.01,654 4347 29
Department of Health,CT Revenue Funds,02/07/2015,Drugs,Single Point of Referral,NHS SUPPLY CHAIN,1016053559,0.01,654 4347 29
Department of Health,CT Revenue Funds,02/07/2015,Drugs,Podiatry Services,NHS SUPPLY CHAIN,1016053559,0.17,654 4347 29
Department of Health,CT Revenue Funds,02/07/2015,Drugs,Community Nursing Team 4,NHS SUPPLY CHAIN,1016053559,0.34,654 4347 29
Department of Health,CT Revenue Funds,02/07/2015,Drugs,Single Point of Referral,NHS SUPPLY CHAIN,1016053559,0.51,654 4347 29
Department of Health,CT Revenue Funds,02/07/2015,Drugs,Bridgnorth Hospital Theatre,NHS SUPPLY CHAIN,1016053559,0.56,654 4347 29
Department of Health,CT Revenue Funds,02/07/2015,Drugs,Podiatry Services,NHS SUPPLY CHAIN,1016053559,0.57,654 4347 29
Department of Health,CT Revenue Funds,02/07/2015,Drugs,Bridgnorth Hospital Theatre,NHS SUPPLY CHAIN,1016053559,0.57,654 4347 29
Department of Health,CT Revenue Funds,02/07/2015,Drugs,Bridgnorth Hospital Theatre,NHS SUPPLY CHAIN,1016053559,0.57,654 4347 29
Department of Health,CT Revenue Funds,02/07/2015,Drugs,Single Point of Referral,NHS SUPPLY CHAIN,1016053559,0.67,654 4347 29
Department of Health,CT Revenue Funds,02/07/2015,Drugs,Bridgnorth Hospital Minor Injuries Unit,NHS SUPPLY CHAIN,1016053559,0.67,654 4347 29
Department of Health,CT Revenue Funds,02/07/2015,Drugs,Podiatry Services,NHS SUPPLY CHAIN,1016053559,0.84,654 4347 29
Department of Health,CT Revenue Funds,02/07/2015,Drugs,Podiatry Services,NHS SUPPLY CHAIN,1016053559,0.86,654 4347 29
Department of Health,CT Revenue Funds,02/07/2015,Drugs,Podiatry Services,NHS SUPPLY CHAIN,1016053559,0.86,654 4347 29
Department of Health,CT Revenue Funds,02/07/2015,Drugs,Whitchurch Hospital Minor Injuries Unit,NHS SUPPLY CHAIN,1016053559,1.06,654 4347 29
Department of Health,CT Revenue Funds,02/07/2015,Drugs,Ludlow Hospital Minor Injuries Unit,NHS SUPPLY CHAIN,1016053559,1.13,654 4347 29
Department of Health,CT Revenue Funds,02/07/2015,Drugs,Community Nursing Team 4,NHS SUPPLY CHAIN,1016053559,1.68,654 4347 29
Department of Health,CT Revenue Funds,02/07/2015,Drugs,Community Nursing Team 1,NHS SUPPLY CHAIN,1016053559,1.71,654 4347 29
Department of Health,CT Revenue Funds,02/07/2015,Drugs,Bishops Castle Hospital Inpatient Ward,NHS SUPPLY CHAIN,1016053559,1.71,654 4347 29
Department of Health,CT Revenue Funds,02/07/2015,Drugs,Community Nursing Team 4,NHS SUPPLY CHAIN,1016053559,1.82,654 4347 29
Department of Health,CT Revenue Funds,02/07/2015,Drugs,South West Interdisciplinary Teams,NHS SUPPLY CHAIN,1016053559,1.82,654 4347 29
Department of Health,CT Revenue Funds,02/07/2015,Drugs,Ludlow Hospital Minor Injuries Unit,NHS SUPPLY CHAIN,1016053559,1.85,654 4347 29
Department of Health,CT Revenue Funds,02/07/2015,Drugs,South West Interdisciplinary Teams,NHS SUPPLY CHAIN,1016053559,1.85,654 4347 29
Department of Health,CT Revenue Funds,02/07/2015,Drugs,Community Nursing Team 4,NHS SUPPLY CHAIN,1016053559,2.03,654 4347 29
Department of Health,CT Revenue Funds,02/07/2015,Drugs,South West Interdisciplinary Teams,NHS SUPPLY CHAIN,1016053559,2.03,654 4347 29
Department of Health,CT Revenue Funds,02/07/2015,Drugs,Single Point of Referral,NHS SUPPLY CHAIN,1016053559,2.52,654 4347 29
Department of Health,CT Revenue Funds,02/07/2015,Drugs,South West Interdisciplinary Teams,NHS SUPPLY CHAIN,1016053559,2.77,654 4347 29
Department of Health,CT Revenue Funds,02/07/2015,Drugs,Podiatry Services,NHS SUPPLY CHAIN,1016053559,2.83,654 4347 29
Department of Health,CT Revenue Funds,02/07/2015,Drugs,Bridgnorth Hospital Theatre,NHS SUPPLY CHAIN,1016053559,2.83,654 4347 29
Department of Health,CT Revenue Funds,02/07/2015,Drugs,Bridgnorth Hospital Theatre,NHS SUPPLY CHAIN,1016053559,2.83,654 4347 29
Department of Health,CT Revenue Funds,02/07/2015,Drugs,Bridgnorth Hospital Theatre,NHS SUPPLY CHAIN,1016053559,2.84,654 4347 29
Department of Health,CT Revenue Funds,02/07/2015,Drugs,Bridgnorth Hospital Minor Injuries Unit,NHS SUPPLY CHAIN,1016053559,3.36,654 4347 29
Department of Health,CT Revenue Funds,02/07/2015,Drugs,Single Point of Referral,NHS SUPPLY CHAIN,1016053559,3.36,654 4347 29
Department of Health,CT Revenue Funds,02/07/2015,Drugs,Whitchurch Hospital Inpatient Ward,NHS SUPPLY CHAIN,1016053559,3.42,654 4347 29
Department of Health,CT Revenue Funds,02/07/2015,Drugs,Bridgnorth Hospital Minor Injuries Unit,NHS SUPPLY CHAIN,1016053559,3.7,654 4347 29
Department of Health,CT Revenue Funds,02/07/2015,Drugs,Podiatry Services,NHS SUPPLY CHAIN,1016053559,4.28,654 4347 29
Department of Health,CT Revenue Funds,02/07/2015,Drugs,Podiatry Services,NHS SUPPLY CHAIN,1016053559,4.28,654 4347 29
Department of Health,CT Revenue Funds,02/07/2015,Drugs,Whitchurch Hospital Minor Injuries Unit,NHS SUPPLY CHAIN,1016053559,5.32,654 4347 29
Department of Health,CT Revenue Funds,02/07/2015,Drugs,Ludlow Hospital Minor Injuries Unit,NHS SUPPLY CHAIN,1016053559,5.66,654 4347 29
Department of Health,CT Revenue Funds,02/07/2015,Drugs,North East Shropshire Interdisciplinary Teams,NHS SUPPLY CHAIN,1016053559,7.15,654 4347 29
Department of Health,CT Revenue Funds,02/07/2015,Drugs,Bishops Castle Hospital Inpatient Ward,NHS SUPPLY CHAIN,1016053559,8.56,654 4347 29
Department of Health,CT Revenue Funds,02/07/2015,Drugs,Community Nursing Team 1,NHS SUPPLY CHAIN,1016053559,8.56,654 4347 29
Department of Health,CT Revenue Funds,02/07/2015,Drugs,South West Interdisciplinary Teams,NHS SUPPLY CHAIN,1016053559,9.08,654 4347 29
Department of Health,CT Revenue Funds,02/07/2015,Drugs,Community Nursing Team 4,NHS SUPPLY CHAIN,1016053559,9.08,654 4347 29
Department of Health,CT Revenue Funds,02/07/2015,Drugs,Ludlow Hospital Minor Injuries Unit,NHS SUPPLY CHAIN,1016053559,9.26,654 4347 29
Department of Health,CT Revenue Funds,02/07/2015,Drugs,South West Interdisciplinary Teams,NHS SUPPLY CHAIN,1016053559,9.26,654 4347 29
Department of Health,CT Revenue Funds,02/07/2015,Drugs,South West Interdisciplinary Teams,NHS SUPPLY CHAIN,1016053559,10.13,654 4347 29
Department of Health,CT Revenue Funds,02/07/2015,Drugs,Community Nursing Team 4,NHS SUPPLY CHAIN,1016053559,10.13,654 4347 29
Department of Health,CT Revenue Funds,02/07/2015,Drugs,Bridgnorth Hospital Theatre,NHS SUPPLY CHAIN,1016053559,12.95,654 4347 29
Department of Health,CT Revenue Funds,02/07/2015,Drugs,South West Interdisciplinary Teams,NHS SUPPLY CHAIN,1016053559,13.89,654 4347 29
Department of Health,CT Revenue Funds,02/07/2015,Drugs,Whitchurch Hospital Inpatient Ward,NHS SUPPLY CHAIN,1016053559,17.12,654 4347 29
Department of Health,CT Revenue Funds,02/07/2015,Drugs,Bridgnorth Hospital Minor Injuries Unit,NHS SUPPLY CHAIN,1016053559,18.52,654 4347 29
Department of Health,CT Revenue Funds,02/07/2015,Drugs,North East Shropshire Interdisciplinary Teams,NHS SUPPLY CHAIN,1016053559,35.73,654 4347 29
Department of Health,CT Revenue Funds,02/07/2015,Drugs,Occupational Health Stoke,SANOFI PASTEUR MSD,6060553459,42.96,247 9665 11
Department of Health,CT Revenue Funds,02/07/2015,Drugs,Bridgnorth Hospital Theatre,NHS SUPPLY CHAIN,1016053559,64.76,654 4347 29
Department of Health,CT Revenue Funds,02/07/2015,Drugs,APCS - Musculoskeletal - Telford and Wrekin,SHREWSBURY AND TELFORD HOSPITAL NHS TRUST,10100460,155.9,
Department of Health,CT Revenue Funds,02/07/2015,Drugs,Occupational Health Stoke,SANOFI PASTEUR MSD,6060553459,214.8,247 9665 11
Department of Health,CT Revenue Funds,02/07/2015,Drugs,APCS - Musculoskeletal - Telford and Wrekin,SHREWSBURY AND TELFORD HOSPITAL NHS TRUST,10100151,264.47,
Department of Health,CT Revenue Funds,02/07/2015,Drugs,APCS - Musculoskeletal - Telford and Wrekin,SHREWSBURY AND TELFORD HOSPITAL NHS TRUST,10100152,316.87,
Department of Health,CT Revenue Funds,02/07/2015,Drugs,APCS - Rheumatology,SHREWSBURY AND TELFORD HOSPITAL NHS TRUST,10100151,431.38,
Department of Health,CT Revenue Funds,02/07/2015,Drugs,APCS - Rheumatology,SHREWSBURY AND TELFORD HOSPITAL NHS TRUST,10100460,540.5,
Department of Health,CT Revenue Funds,02/07/2015,Drugs,Shrewsbury and Atcham DAART,ALLOGA UK LTD,SIN101387261,616.92,684 0905 20
Department of Health,CT Revenue Funds,02/07/2015,Drugs,APCS - Rheumatology,SHREWSBURY AND TELFORD HOSPITAL NHS TRUST,10100151,695.85,
Department of Health,CT Revenue Funds,02/07/2015,Drugs,APCS - Rheumatology,SHREWSBURY AND TELFORD HOSPITAL NHS TRUST,10100460,696.4,
Department of Health,CT Revenue Funds,02/07/2015,Drugs,APCS - Rheumatology,SHREWSBURY AND TELFORD HOSPITAL NHS TRUST,10100152,1142.87,
Department of Health,CT Revenue Funds,02/07/2015,Drugs,APCS - Musculoskeletal - Telford and Wrekin,SHREWSBURY AND TELFORD HOSPITAL NHS TRUST,10100152,1459.74,
Department of Health,CT Revenue Funds,02/07/2015,Drugs,Shrewsbury and Atcham DAART,ALLOGA UK LTD,SIN101387261,3084.6,684 0905 20
Department of Health,CT Revenue Funds,02/07/2015,Electricity Premises-Bridgnorth Hospital (& temporary site),Bridgnorth Hospital Management,EDF ENERGY,0736510000/000000497081,624.82,
Department of Health,CT Revenue Funds,02/07/2015,Electricity Premises-Bridgnorth Hospital (& temporary site),Bridgnorth Hospital Management,EDF ENERGY,0736510000/000000497074,706.43,
Department of Health,CT Revenue Funds,02/07/2015,Electricity Premises-Bridgnorth Hospital (& temporary site),Bridgnorth Hospital Management,EDF ENERGY,0736510000/000000497081,3124.08,
Department of Health,CT Revenue Funds,02/07/2015,Electricity Premises-Bridgnorth Hospital (& temporary site),Bridgnorth Hospital Management,EDF ENERGY,0736510000/000000497074,3532.12,
Department of Health,CT Revenue Funds,02/07/2015,Electricity Premises-Princess House,Operations Directorate Management,CUSHMAN & WAKEFIELD LLP,SHRSHRS/3205,35.1,
Department of Health,CT Revenue Funds,02/07/2015,Electricity Premises-Princess House,Operations Directorate Management,CUSHMAN & WAKEFIELD LLP,SHRSHRS/3205,175.49,
Department of Health,CT Revenue Funds,02/07/2015,Electricity Premises-Princess House,Operations Directorate Management,CUSHMAN & WAKEFIELD LLP,SHRSHRS/3183,184.7,
Department of Health,CT Revenue Funds,02/07/2015,Electricity Premises-Princess House,Operations Directorate Management,CUSHMAN & WAKEFIELD LLP,SHRSHRS/3183,923.47,
Department of Health,CT Revenue Funds,02/07/2015,Electromedical Equipment Instruments,Falls Prevention,SCREWFIX DIRECT LTD,0646216953,-0.83,232 5555 75
Department of Health,CT Revenue Funds,02/07/2015,Electromedical Equipment Instruments,Falls Prevention,SCREWFIX DIRECT LTD,0646216953,-0.17,232 5555 75
Department of Health,CT Revenue Funds,02/07/2015,Electromedical Equipment Instruments,Whitchurch Hospital Inpatient Ward,NHS SUPPLY CHAIN,1016053559,-0.01,654 4347 29
Department of Health,CT Revenue Funds,02/07/2015,Electromedical Equipment Instruments,Bridgnorth Hospital Inpatient Ward,NHS SUPPLY CHAIN,1016053559,-0.01,654 4347 29
Department of Health,CT Revenue Funds,02/07/2015,Electromedical Equipment Instruments,Ludlow Hospital Inpatient Wards,NHS SUPPLY CHAIN,1016053559,0.01,654 4347 29
Department of Health,CT Revenue Funds,02/07/2015,Electromedical Equipment Instruments,Ludlow Hospital Minor Injuries Unit,NHS SUPPLY CHAIN,1016053559,0.24,654 4347 29
Department of Health,CT Revenue Funds,02/07/2015,Electromedical Equipment Instruments,Whitchurch Hospital Inpatient Ward,NHS SUPPLY CHAIN,1016053559,0.25,654 4347 29
Department of Health,CT Revenue Funds,02/07/2015,Electromedical Equipment Instruments,Bridgnorth Hospital Inpatient Ward,NHS SUPPLY CHAIN,1016053559,0.25,654 4347 29
Department of Health,CT Revenue Funds,02/07/2015,Electromedical Equipment Instruments,Bridgnorth Hospital Inpatient Ward,NHS SUPPLY CHAIN,1016053559,0.49,654 4347 29
Department of Health,CT Revenue Funds,02/07/2015,Electromedical Equipment Instruments,Community Neuro Rehabilitation Team (CNRT),PATTERSON MEDICAL LTD,5143798911,0.7,945 7652 83
Department of Health,CT Revenue Funds,02/07/2015,Electromedical Equipment Instruments,Falls Prevention,SCREWFIX DIRECT LTD,0646216953,1,232 5555 75
Department of Health,CT Revenue Funds,02/07/2015,Electromedical Equipment Instruments,Ludlow Hospital Inpatient Wards,NHS SUPPLY CHAIN,1016053559,1.07,654 4347 29
Department of Health,CT Revenue Funds,02/07/2015,Electromedical Equipment Instruments,Ludlow Hospital Minor Injuries Unit,NHS SUPPLY CHAIN,1016053559,1.2,654 4347 29
Department of Health,CT Revenue Funds,02/07/2015,Electromedical Equipment Instruments,Whitchurch Hospital Inpatient Ward,NHS SUPPLY CHAIN,1016053559,1.26,654 4347 29
Department of Health,CT Revenue Funds,02/07/2015,Electromedical Equipment Instruments,Bridgnorth Hospital Inpatient Ward,NHS SUPPLY CHAIN,1016053559,1.26,654 4347 29
Department of Health,CT Revenue Funds,02/07/2015,Electromedical Equipment Instruments,Bridgnorth Hospital Inpatient Ward,NHS SUPPLY CHAIN,1016053559,1.32,654 4347 29
Department of Health,CT Revenue Funds,02/07/2015,Electromedical Equipment Instruments,Bishops Castle Hospital Inpatient Ward,NHS SUPPLY CHAIN,1016053559,2.18,654 4347 29
Department of Health,CT Revenue Funds,02/07/2015,Electromedical Equipment Instruments,South West Interdisciplinary Teams,NHS SUPPLY CHAIN,1016053559,2.33,654 4347 29
Department of Health,CT Revenue Funds,02/07/2015,Electromedical Equipment Instruments,Bridgnorth Hospital Inpatient Ward,NHS SUPPLY CHAIN,1016053559,2.47,654 4347 29
Department of Health,CT Revenue Funds,02/07/2015,Electromedical Equipment Instruments,Ludlow Hospital Minor Injuries Unit,NHS SUPPLY CHAIN,1016053559,2.86,654 4347 29
Department of Health,CT Revenue Funds,02/07/2015,Electromedical Equipment Instruments,Community Neuro Rehabilitation Team (CNRT),PATTERSON MEDICAL LTD,5143798911,3.52,945 7652 83
Department of Health,CT Revenue Funds,02/07/2015,Electromedical Equipment Instruments,Bridgnorth Hospital Theatre,NHS SUPPLY CHAIN,1016053559,3.81,654 4347 29
Department of Health,CT Revenue Funds,02/07/2015,Electromedical Equipment Instruments,Bridgnorth Hospital Theatre,NHS SUPPLY CHAIN,1016053559,4.08,654 4347 29
Department of Health,CT Revenue Funds,02/07/2015,Electromedical Equipment Instruments,Bridgnorth Hospital Inpatient Ward,NHS SUPPLY CHAIN,1016053559,4.55,654 4347 29
Department of Health,CT Revenue Funds,02/07/2015,Electromedical Equipment Instruments,Bishops Castle Hospital Inpatient Ward,NHS SUPPLY CHAIN,1016053559,4.55,654 4347 29
Department of Health,CT Revenue Funds,02/07/2015,Electromedical Equipment Instruments,Falls Prevention,SCREWFIX DIRECT LTD,0646216953,4.99,232 5555 75
Department of Health,CT Revenue Funds,02/07/2015,Electromedical Equipment Instruments,Ludlow Hospital Inpatient Wards,NHS SUPPLY CHAIN,1016053559,5.34,654 4347 29
Department of Health,CT Revenue Funds,02/07/2015,Electromedical Equipment Instruments,Community Neuro Rehabilitation Team (CNRT),PATTERSON MEDICAL LTD,5143798911,5.93,945 7652 83
Department of Health,CT Revenue Funds,02/07/2015,Electromedical Equipment Instruments,Bridgnorth Hospital Inpatient Ward,NHS SUPPLY CHAIN,1016053559,6.58,654 4347 29
Department of Health,CT Revenue Funds,02/07/2015,Electromedical Equipment Instruments,Bridgnorth Hospital Minor Injuries Unit,NHS SUPPLY CHAIN,1016053559,8.36,654 4347 29
Department of Health,CT Revenue Funds,02/07/2015,Electromedical Equipment Instruments,Whitchurch Hospital Inpatient Ward,NHS SUPPLY CHAIN,1016053559,8.37,654 4347 29
Department of Health,CT Revenue Funds,02/07/2015,Electromedical Equipment Instruments,Bishops Castle Hospital Inpatient Ward,NHS SUPPLY CHAIN,1016053559,10.88,654 4347 29
Department of Health,CT Revenue Funds,02/07/2015,Electromedical Equipment Instruments,Community Neuro Rehabilitation Team (CNRT),PATTERSON MEDICAL LTD,5143798911,11.11,945 7652 83
Department of Health,CT Revenue Funds,02/07/2015,Electromedical Equipment Instruments,South West Interdisciplinary Teams,NHS SUPPLY CHAIN,1016053559,11.63,654 4347 29
Department of Health,CT Revenue Funds,02/07/2015,Electromedical Equipment Instruments,Bishops Castle Hospital Inpatient Ward,NHS SUPPLY CHAIN,1016053559,13.12,654 4347 29
Department of Health,CT Revenue Funds,02/07/2015,Electromedical Equipment Instruments,Ludlow Hospital Minor Injuries Unit,NHS SUPPLY CHAIN,1016053559,14.31,654 4347 29
Department of Health,CT Revenue Funds,02/07/2015,Electromedical Equipment Instruments,Bridgnorth Hospital Theatre,NHS SUPPLY CHAIN,1016053559,19.05,654 4347 29
Department of Health,CT Revenue Funds,02/07/2015,Electromedical Equipment Instruments,Community Neuro Rehabilitation Team (CNRT),PATTERSON MEDICAL LTD,5143798911,20.02,945 7652 83
Department of Health,CT Revenue Funds,02/07/2015,Electromedical Equipment Instruments,Bridgnorth Hospital Theatre,NHS SUPPLY CHAIN,1016053559,20.38,654 4347 29
Department of Health,CT Revenue Funds,02/07/2015,Electromedical Equipment Instruments,Bridgnorth Hospital Inpatient Ward,NHS SUPPLY CHAIN,1016053559,22.73,654 4347 29
Department of Health,CT Revenue Funds,02/07/2015,Electromedical Equipment Instruments,Bishops Castle Hospital Inpatient Ward,NHS SUPPLY CHAIN,1016053559,22.73,654 4347 29
Department of Health,CT Revenue Funds,02/07/2015,Electromedical Equipment Instruments,Community Neuro Rehabilitation Team (CNRT),PATTERSON MEDICAL LTD,5143798911,29.64,945 7652 83
Department of Health,CT Revenue Funds,02/07/2015,Electromedical Equipment Instruments,APCS - Musculoskeletal - Telford and Wrekin,NHS SUPPLY CHAIN,1016053559,34.44,654 4347 29
Department of Health,CT Revenue Funds,02/07/2015,Electromedical Equipment Instruments,Bridgnorth Hospital Minor Injuries Unit,NHS SUPPLY CHAIN,1016053559,41.78,654 4347 29
Department of Health,CT Revenue Funds,02/07/2015,Electromedical Equipment Instruments,Whitchurch Hospital Inpatient Ward,NHS SUPPLY CHAIN,1016053559,41.85,654 4347 29
Department of Health,CT Revenue Funds,02/07/2015,Electromedical Equipment Instruments,Community Neuro Rehabilitation Team (CNRT),PATTERSON MEDICAL LTD,5143798911,55.55,945 7652 83
Department of Health,CT Revenue Funds,02/07/2015,Electromedical Equipment Instruments,Bishops Castle Hospital Inpatient Ward,NHS SUPPLY CHAIN,1016053559,65.62,654 4347 29
Department of Health,CT Revenue Funds,02/07/2015,Electromedical Equipment Instruments,Community Neuro Rehabilitation Team (CNRT),PATTERSON MEDICAL LTD,5143798911,100.08,945 7652 83
Department of Health,CT Revenue Funds,02/07/2015,Electromedical Equipment Instruments,APCS - Musculoskeletal - Telford and Wrekin,NHS SUPPLY CHAIN,1016053559,172.2,654 4347 29
Department of Health,CT Revenue Funds,02/07/2015,Estates From Other NHS Bodies,Occupational Health Stoke,NORTH STAFFORDSHIRE COMBINED HEALTHCARE NHS TRUST,0000045108,246,
Department of Health,CT Revenue Funds,02/07/2015,External Consultancy Fees,Operations Directorate Management,MISS KRISTY PARNELL,19,4400,
Department of Health,CT Revenue Funds,02/07/2015,External Contracts : Catering,Bishops Castle Hospital Management,COVERAGE CARE LTD,PSI92522,2971.73,
Department of Health,CT Revenue Funds,02/07/2015,External Contracts : Domestics,Community Matrons Telford,DUSTBUSTERS,15/DB6913,24,
Department of Health,CT Revenue Funds,02/07/2015,External Contracts : Domestics,Community Matrons Telford,DUSTBUSTERS,15/DB6918,24,
Department of Health,CT Revenue Funds,02/07/2015,External Contracts : Domestics,Community Equipment Stores,DUSTBUSTERS,15/DB6917,84,
Department of Health,CT Revenue Funds,02/07/2015,External Contracts : Domestics,APCS - Rheumatology,CLEVELAND CLEANING LIMITED,04/9357,559.67,
Department of Health,CT Revenue Funds,02/07/2015,Fair Share Credit Union,Payables,FAIRSHARE CREDIT UNION LTD,JUN15,465,
Department of Health,CT Revenue Funds,02/07/2015,Furniture & Fittings,Coral House,SCREWFIX DIRECT LTD,0648501027,-23.33,232 5555 75
Department of Health,CT Revenue Funds,02/07/2015,Furniture & Fittings,Coral House,SCREWFIX DIRECT LTD,0648501027,-4.67,232 5555 75
Department of Health,CT Revenue Funds,02/07/2015,Furniture & Fittings,North Shropshire Health Visitors,NHS SUPPLY CHAIN,1016053559,0.01,654 4347 29
Department of Health,CT Revenue Funds,02/07/2015,Furniture & Fittings,Bridgnorth Hospital Inpatient Ward,FRONTIER THERAPEUTICS,416430,18.43,700 8536 57
Department of Health,CT Revenue Funds,02/07/2015,Furniture & Fittings,North Telford Health Visitors,K-MED,0000082969,19.2,
Department of Health,CT Revenue Funds,02/07/2015,Furniture & Fittings,ICS Central,EMERGENT CROWN OFFICE,115600,21.15,516 1639 55
Department of Health,CT Revenue Funds,02/07/2015,Furniture & Fittings,Coral House,SCREWFIX DIRECT LTD,0648501027,28,232 5555 75
Department of Health,CT Revenue Funds,02/07/2015,Furniture & Fittings,North Shropshire Health Visitors,NHS SUPPLY CHAIN,1016053559,46.39,654 4347 29
Department of Health,CT Revenue Funds,02/07/2015,Furniture & Fittings,ICS Central,EMERGENT CROWN OFFICE,115600,47.16,516 1639 55
Department of Health,CT Revenue Funds,02/07/2015,Furniture & Fittings,Bishops Castle Hospital Medical Staff,FRONTIER THERAPEUTICS,416023,56.16,700 8536 57
Department of Health,CT Revenue Funds,02/07/2015,Furniture & Fittings,ICS Central,EMERGENT CROWN OFFICE,115600,90.72,516 1639 55
Department of Health,CT Revenue Funds,02/07/2015,Furniture & Fittings,Bishops Castle Hospital Medical Staff,FRONTIER THERAPEUTICS,416024,92.14,700 8536 57
Department of Health,CT Revenue Funds,02/07/2015,Furniture & Fittings,Bridgnorth Hospital Inpatient Ward,FRONTIER THERAPEUTICS,416430,92.14,700 8536 57
Department of Health,CT Revenue Funds,02/07/2015,Furniture & Fittings,North Telford Health Visitors,K-MED,0000082969,96,
Department of Health,CT Revenue Funds,02/07/2015,Furniture & Fittings,ICS Central,EMERGENT CROWN OFFICE,115600,105.75,516 1639 55
Department of Health,CT Revenue Funds,02/07/2015,Furniture & Fittings,North Telford Health Visitors,K-MED,0000082969,126.36,
Department of Health,CT Revenue Funds,02/07/2015,Furniture & Fittings,Coral House,SCREWFIX DIRECT LTD,0648501027,139.99,232 5555 75
Department of Health,CT Revenue Funds,02/07/2015,Furniture & Fittings,North Shropshire Health Visitors,NHS SUPPLY CHAIN,1016053559,231.95,654 4347 29
Department of Health,CT Revenue Funds,02/07/2015,Furniture & Fittings,ICS Central,EMERGENT CROWN OFFICE,115600,235.8,516 1639 55
Department of Health,CT Revenue Funds,02/07/2015,Furniture & Fittings,Bishops Castle Hospital Medical Staff,FRONTIER THERAPEUTICS,416023,280.8,700 8536 57
Department of Health,CT Revenue Funds,02/07/2015,Furniture & Fittings,ICS Central,EMERGENT CROWN OFFICE,115600,453.6,516 1639 55
Department of Health,CT Revenue Funds,02/07/2015,Furniture & Fittings,Bishops Castle Hospital Medical Staff,FRONTIER THERAPEUTICS,416024,460.7,700 8536 57
Department of Health,CT Revenue Funds,02/07/2015,Furniture & Fittings,North Telford Health Visitors,K-MED,0000082969,631.8,
Department of Health,CT Revenue Funds,02/07/2015,General Practitioner Sessions / Staff Fund,Whitchurch Hospital Inpatient Ward,RICHMOND HOUSE SURGERY,MAY LOCUM COVER,320,
Department of Health,CT Revenue Funds,02/07/2015,Haberdashery,Oswestry Minor Injuries Unit,NHS SUPPLY CHAIN,1016053559,1.08,654 4347 29
Department of Health,CT Revenue Funds,02/07/2015,Haberdashery,Oswestry Minor Injuries Unit,NHS SUPPLY CHAIN,1016053559,5.38,654 4347 29
Department of Health,CT Revenue Funds,02/07/2015,Hoists/Slings,Community Equipment Stores,PRISM MEDICAL UK,5084327,-15,
Department of Health,CT Revenue Funds,02/07/2015,Hoists/Slings,Community Equipment Stores,PRISM MEDICAL UK,5084327,-3,
Department of Health,CT Revenue Funds,02/07/2015,Hoists/Slings,Community Equipment Stores,SILVALEA LTD,96890,-1.7,
Department of Health,CT Revenue Funds,02/07/2015,Hoists/Slings,Community Equipment Stores,SILVALEA LTD,96890,-0.34,
Department of Health,CT Revenue Funds,02/07/2015,Hoists/Slings,Community Equipment Stores,NHS SUPPLY CHAIN,1016053559,-0.01,654 4347 29
Department of Health,CT Revenue Funds,02/07/2015,Hoists/Slings,Community Equipment Stores,PRISM MEDICAL UK,5084327,30,
Department of Health,CT Revenue Funds,02/07/2015,Hoists/Slings,Community Equipment Stores,SILVALEA LTD,96890,47.04,
Department of Health,CT Revenue Funds,02/07/2015,Hoists/Slings,Community Equipment Stores,PRISM MEDICAL UK,5084327,150,
Department of Health,CT Revenue Funds,02/07/2015,Hoists/Slings,Community Equipment Stores,SILVALEA LTD,96890,235.2,
Department of Health,CT Revenue Funds,02/07/2015,Hoists/Slings,Community Equipment Stores,NHS SUPPLY CHAIN,1016053559,776.36,654 4347 29
Department of Health,CT Revenue Funds,02/07/2015,Hoists/Slings,Community Equipment Stores,NHS SUPPLY CHAIN,1016053559,3881.8,654 4347 29
Department of Health,CT Revenue Funds,02/07/2015,Home Management daily Living Aids Miscellaneous Appliances,Community Equipment Stores,IKA MOBILITY,IN0674,-280.91,971 5578 82
Department of Health,CT Revenue Funds,02/07/2015,Home Management daily Living Aids Miscellaneous Appliances,Community Equipment Stores,IKA MOBILITY,IN0674,-46.82,971 5578 82
Department of Health,CT Revenue Funds,02/07/2015,Home Management daily Living Aids Miscellaneous Appliances,Community Equipment Stores,IKA MOBILITY,IN0672,-25,971 5578 82
Department of Health,CT Revenue Funds,02/07/2015,Home Management daily Living Aids Miscellaneous Appliances,Community Equipment Stores,IKA MOBILITY,IN0673,-25,971 5578 82
Department of Health,CT Revenue Funds,02/07/2015,Home Management daily Living Aids Miscellaneous Appliances,Community Physiotherapy (T&W),PATTERSON MEDICAL LTD,5143813346,2.22,945 7652 83
Department of Health,CT Revenue Funds,02/07/2015,Home Management daily Living Aids Miscellaneous Appliances,North East Shropshire Physiotherapy Clinics,PATTERSON MEDICAL LTD,5143817116,6.32,945 7652 83
Department of Health,CT Revenue Funds,02/07/2015,Home Management daily Living Aids Miscellaneous Appliances,Community Physiotherapy (T&W),PATTERSON MEDICAL LTD,5143813346,11.11,945 7652 83
Department of Health,CT Revenue Funds,02/07/2015,Home Management daily Living Aids Miscellaneous Appliances,Community Equipment Stores,IKA MOBILITY,IN0672,25,971 5578 82
Department of Health,CT Revenue Funds,02/07/2015,Home Management daily Living Aids Miscellaneous Appliances,Community Equipment Stores,IKA MOBILITY,IN0673,25,971 5578 82
Department of Health,CT Revenue Funds,02/07/2015,Home Management daily Living Aids Miscellaneous Appliances,North East Shropshire Physiotherapy Clinics,PATTERSON MEDICAL LTD,5143817116,31.6,945 7652 83
Department of Health,CT Revenue Funds,02/07/2015,Home Management daily Living Aids Miscellaneous Appliances,Community Equipment Stores,IKA MOBILITY,IN0674,46.82,971 5578 82
